Workbook

Sheet PORTADA
C14: 2285

Sheet MENU (hidden)
B3: Descripción | C3: Nombre de la hoja
B4: Formato CFDI 4.0 | C4: FCFDI
B5: Fundamento legal formato CFDI 4.0 | C5: FUNDAMENTO
B6: Algunos requisitos de deducciones | C6: REQUISITOS
B7: Campo descripción | C7: DESCRIPCIÓN
B8: Campos complemento comercio exterior | C8: COMPLEMENTOCE
B9: Campos complemento vales de despensa | C9: COMPLEVALES
B10: Campos complemento monedero electrónico combustibles | C10: COMPLECOM
B11: Formato complemento de pagos | C11: COMPLEMENTO
B12: Campos carta porte | C12: CARTAP
B13: Ejemplos de campo objeto | C13: OBJETO
B14: Apéndice 6 guía de llenado de nómina | C14: APEND6
B15: Clasificación de percepciones | C15: CLASIFICA
B16: Cálculo de la antigüedad para el CFDI de nómina | C16: ANTIGUEDAD
B17: Formato complemento de nómina | C17: CFDIN
B18: Ejemplo CFDI | C18: EJEMPLO
B19: Ejemplo CFDI de nómina | C19: EJEMPLON

Sheet FCFDI (hidden)
B4: Nodo comprobante | E4: Nodo emisor | H4: Nodo receptor
B6: Fecha de expedición * | E6: RFC * | H6: RFC *
B7: Serie ** | E7: Nombre * | H7: Nombre *
B8: Folio ** | E8: Régimen fiscal * | H8: Domicilio fiscal del receptor *
E9: FacAtrAdquirente *** | H9: Residencia fiscal ***
H10: No. de registro tributario ***
B11: Forma de pago *** | D11: =IFERROR(VLOOKUP(C11,CATALOGO!$B$4:$C$25,2,FALSE)&IF(VLOOKUP(C11,CATALOGO!$B$4:$D$25,3,FALSE)="Sí"," (Bancarizado)",""),"") ->  | H11: Régimen fiscal * | J11: =IFERROR(VLOOKUP(I11,CATALOGO!$F$29:$G$47,2,FALSE),"") -> 
B12: Método de pago *** | D12: =IFERROR(VLOOKUP(C12,CATALOGO!$B$28:$C$29,2,FALSE),"") ->  | H12: Uso del CFDI * | J12: =IF(AND(I11<>"",I12<>""),IF(ISERROR(FIND(I11,INDIRECT("CATALOGO!J"&MATCH(I12,CATALOGO!$H:$H,0))))=FALSE,VLOOKUP(I12,CATALOGO!$H$51:$I$74,2,FALSE),"Esta clave no puede utilizarse con el tipo de régimen seleccionado"),"") -> 
B13: Moneda *
B14: Tipo de cambio ***
B15: Tipo de comprobante * | D15: =IFERROR(VLOOKUP(C15,CATALOGO!$B$32:$C$37,2,FALSE),"") -> 
B16: Exportación * | D16: =IFERROR(IF(C16="02",HYPERLINK("#"&"COMPLEMENTOCE!$B$4","Definitiva con clave A1"),VLOOKUP(C16,CATALOGO!$B$40:$C$43,2,FALSE)),"") -> 
B17: Lugar de expedición *
B18: Confirmación ***
B20: CFDI relacionados **
B22: Tipo de relación | D22: =IFERROR(VLOOKUP(C22,CATALOGO!$H$77:$I$83,2,FALSE),"") ->  | H22: UUID
B24: Nodo factura global **
B26: Periodicidad * | E26: Meses * | H26: Año *
B28: Nodo conceptos
B30: Clave producto/ servicio * | E30: No. de identificación ** | H30: Cantidad *
B32: Clave de unidad * | E32: Unidad ** | H32: Descripción *
B34: Valor unitario * | E34: Importe * | H34: Descuento **
B36: Objeto de impuesto * | C36: 02 | E36: Pedimento *** | H36: Número ***
B38: Nodo de impuestos trasladados **
B39: Base * | E39: Impuesto * | H39: Tipo factor *
B41: Tasa o cuota ** | E41: Importe **
B44: Nodo de impuestos retenidos **
B45: Base * | E45: Impuesto * | H45: Tipo factor *
B47: Tasa o cuota ** | E47: Importe **
H50: Subtotal *
H51: (-) Descuento **
H52: (+) Impuestos trasladados **
H53: (-) Impuestos retenidos **
H54: (=) Total *
B56: * Campo obligatorio
B57: ** Campo opcional
B58: *** Campo condicional

Sheet FUNDAMENTO (hidden)
B4: Campo | C4: Fiscal | D4: Anexo 20 | E4: Guía del SAT | F4: Miscelánea fiscal
B5: Fecha de expedición | C5: El lugar y fecha de expedición Fundamento: Artículo 29-A fracción III CFF Artículo 39 RCFF.- Para los efectos del artículo 29, segundo párrafo, fracción IV del Código, los contribuyentes deberán remitir al Servicio de Administración Tributaria o al proveedor de certificación de comprobantes fiscales digitales por Internet autorizados por dicho órgano desconcentrado, según sea el caso, el comprobante fiscal digital por Internet, a más tardar dentro de las veinticuatro horas siguientes a que haya tenido lugar la operación, acto o actividad de la que derivó la obligación de expedirlo. | D5: Atributo requerido para la expresión de la fecha y hora de expedición del Comprobante Fiscal Digital por Internet. Se expresa en la forma AAAA MM-DDThh:mm:ss y debe corresponder con la hora local donde se expide el comprobante. | E5: Es la fecha y hora de expedición del comprobante fiscal. Se expresa en la forma AAAA-MM-DDThh:mm:ss y debe corresponder con la hora local donde se expide el comprobante. Este dato lo integra el sistema que utiliza el contribuyente para la emisión del comprobante fiscal. | F5: Obligaciones de los proveedores en el proceso de certificación de CFDI Que el periodo entre la fecha de generación del documento y la fecha en la que se pretende certificar no exceda de 72 horas, o que dicho periodo sea menor a cero horas, esto lo validarán haciendo uso del huso horario correspondiente al Código Postal registrado en el campo LugarExpedicion, conforme al catálogo “CodigoPostal” del Anexo 20. Fundamento: Regla 2.7.2.9 fracción I RMF 2024 Expedición de comprobantes en operaciones con el público en general Para los efectos del CFDI donde consten las operaciones realizadas con el público en general, los contribuyentes podrán remitir al SAT o al PCCDFI, según sea el caso, el CFDI a más tardar dentro de las 24 horas siguientes al cierre de las operaciones realizadas de manera diaria, semanal, mensual o bimestral. Fundamento: Regla 2.7.1.21 quinto párrafo RMF 2024
B6: Otros apectos importantes de la fecha de expedición
B7: Jurisprudencia número IX-J-SS-72 del Pleno Jurisdiccional de la Sala Superior del Tribunal Federal de Justicia Administrativa, en sesión del 14 de junio de 2023 DEVOLUCIÓN DEL IMPUESTO AL VALOR AGREGADO.- LOS COMPROBANTES FISCALES DE INGRESOS DEBEN CUMPLIR CON LOS REQUISITOS QUE REFIEREN LOS ARTÍCULOS 29 Y 29-A DEL CÓDIGO FISCAL DE LA FEDERACIÓN (LEGISLACIONES VIGENTES EN 2016, 2017 y 2018).- El artículo 5o. de la Ley del Impuesto al Valor Agregado no dispone expresamente que los comprobantes fiscales de ingresos en donde conste que el impuesto al valor agregado fue trasladado expresamente y por separado por el contribuyente deban ser emitidos en el periodo en el que se obtuvieron; sin embargo, para reconocer el derecho de un saldo a favor de acuerdo con la mecánica del acreditamiento del impuesto al valor agregado, la autoridad administrativa debe atender lo dispuesto en los artículos 1o., 2o.-A, 5o.-D, 32, fracción III de la Ley del Impuesto al Valor Agregado en relación con los numerales 29, 29-A, fracción IV del Código Fiscal de la Federación, y 39 de su Reglamento, esto es, verificar que los comprobantes fiscales cumplan, entre otros requisitos, el que hayan sido expedidos en el periodo en que se realizó la operación, además de que, se debe sujetar a la época o tiempo de pago del impuesto para que sean considerados como los medios de convicción mediante los cuales se pretenda acreditar el impuesto al valor agregado. En ese orden de ideas, si el comprobante fiscal de ingreso no cumple con lo antes referido resulta inconcuso que la autoridad válidamente podrá negar la devolución de saldo a favor por concepto del impuesto al valor agregado, pues no puede ser utilizado como medio para sustentar el acreditamiento y por consiguiente a la devolución, por esa razón no resulta factible dejar a discreción del contribuyente la fecha de expedición del referido comprobante. Fuente: https://www.tfja.gob.mx/servicios/ix-epoca/
B9: Campo | C9: Fiscal | D9: Anexo 20 | E9: Guía del SAT | F9: Miscelánea fiscal
B10: Forma de pago | C10: Señalar la forma en que se realizó el pago, ya sea en efectivo, transferencias electrónicas de fondos, cheques nominativos o tarjetas de débito, de crédito, de servicio o las denominadas monederos electrónicos que autorice el Servicio de Administración Tributaria. Fundamento: Artículo 29-A fracción VII inciso c) CFF | D10: Atributo condicional para expresar la clave de la forma de pago de los bienes o servicios amparados por el comprobante. | E10: Se debe registrar la clave de la forma de pago de los bienes, la prestación de los servicios, el otorgamiento del uso o goce, o la forma en que se recibe el donativo contenidos en el comprobante. | F10: Forma en que se realizó el pago, se señalará conforme al catálogo “c_FormaPago” que señala el Anexo 20, con la opción de indicar la clave 99 “Por definir” en el caso de no haberse recibido el pago de la contraprestación, siempre que una vez que se reciba el pago o pagos se emita por cada uno de ellos un CFDI al que se le incorpore el “Complemento para recepción de pagos” a que se refiere la regla 2.7.1.32. Lo señalado en esta fracción no será aplicable en los casos siguientes: a) En las operaciones a que se refiere la regla 3.3.1.34. b) Cuando la contraprestación se pague en una sola exhibición en el momento en el que se expida el CFDI o haya sido pagada antes de la expedición del mismo. Tratándose de los supuestos establecidos en los incisos antes señalados, los contribuyentes deberán consignar en el CFDI la clave correspondiente a la forma de pago, de conformidad con el catálogo “c_FormaPago” que señala el Anexo 20. Fundamento: Regla 2.7.1.29 fracción II RMF 2024
B12: Campo | C12: Fiscal | D12: Anexo 20 | E12: Guía del SAT | F12: Miscelánea fiscal
B13: Método de pago | C13: Los contenidos en las disposiciones fiscales, que sean requeridos y dé a conocer el Servicio de Administración Tributaria, mediante reglas de carácter general. Fundamento: Artículo 29-A fracción IX CFF | D13: Atributo condicional para precisar la clave del método de pago que aplica para este comprobante fiscal digital por Internet, conforme al Artículo 29 A fracción VII incisos a y b del CFF. | E13: Se debe registrar la clave que corresponda depende si se paga en una sola exhibición o en parcialidades, las distintas claves de método de pago se encuentran incluidas en el catálogo c_MetodoPago. Ejemplo: Si un contribuyente realiza el pago en una sola exhibición debe registrar en el campo de método de pago lo siguiente: MetodoPago = PUE | F13: Opción para que en el CFDI se establezca como método de pago “Pago en una sola exhibición” 2.7.1.39. Para los efectos de los artículos 29, párrafos primero, segundo, fracción VI y penúltimo, 29-A, primer párrafo, fracción VII, inciso b) del CFF, y las reglas 2.7.1.29., fracción II y 2.7.1.32., los contribuyentes que no reciban el pago del monto total del CFDI al momento de su expedición, podrán considerarlo como pagado en una sola exhibición para efectos de la facturación, siempre que: I. Se haya pactado o se estime que el monto total que ampare el comprobante se recibirá a más tardar el último día del mes de calendario en el cual se expidió el CFDI. II. Señalen en el CFDI como método de pago “PUE” (Pago en una sola exhibición) y cuál será la forma en que se recibirá dicho pago. III. Se realice efectivamente el pago de la totalidad de la contraprestación a más tardar en el plazo señalado en la fracción I de esta regla. En aquellos casos en que el pago se realice en una forma distinta a la que se señaló en el CFDI, el contribuyente cancelará el CFDI emitido por la operación y emitirá uno nuevo señalando como forma de pago la que efectivamente corresponda. En el caso de que la totalidad del pago de la operación que ampara el CFDI no se realice a más tardar el último día del mes en que se expidió este comprobante, el contribuyente cancelará el CFDI emitido por la operación y emitirá uno nuevo señalando como forma de pago “99” por definir y como método de pago “PPD” pago en parcialidades o diferido, relacionando el nuevo CFDI con el emitido originalmente como “Sustitución de los CFDI previos”, debiendo adicionalmente emitir por el pago o los pagos que efectivamente le realicen, el CFDI con complemento para recepción de pagos que corresponda de conformidad con las reglas 2.7.1.29. y 2.7.1.32. Tratándose de los integrantes del sector financiero que apliquen la facilidad contenida en esta regla, estos podrán considerar para efectos de lo señalado en la fracción I de la misma, incluso los pagos que reciban a más tardar el día 17 del mes inmediato siguiente a aquel en que se emitió el CFDI por el total de la operación, debiendo, en todo caso el receptor del CFDI realizar el acreditamiento del IVA e IEPS en el mes en que el impuesto trasladado haya sido efectivamente pagado. CFF 29, 29-A, RMF 2024 2.7.1.29., 2.7.1.32.
B15: Campo | C15: Fiscal | D15: Anexo 20 | E15: Guía del SAT | F15: Miscelánea fiscal
B16: Moneda | C16: Artículo 20 primer párrafo CFF.- Las contribuciones y sus accesorios se causarán y pagarán en moneda nacional. Los pagos que deban efectuarse en el extranjero se podrán realizar en la moneda del país de que se trate. | D16: Atributo requerido para identificar la clave de la moneda utilizada para expresar los montos, cuando se usa moneda nacional se registra MXN. Conforme con la especificación ISO 4217. | E16: Se debe registrar la clave de la moneda utilizada para expresar los montos, cuando se usa moneda nacional se registra “MXN”, conforme con la especificación ISO 4217. Las distintas claves de moneda se encuentran incluidas en el catálogo c_Moneda. Ejemplo: Moneda= MXN
B18: Campo | C18: Fiscal | D18: Anexo 20 | E18: Guía del SAT | F18: Miscelánea fiscal
B19: Tipo de cambio | C19: Artículo 20 CFF. Tercer párrafo Para determinar las contribuciones y sus accesorios se considerará el tipo de cambio a que se haya adquirido la moneda extranjera de que se trate y no habiendo adquisición, se estará al tipo de cambio que el Banco de México publique en el Diario Oficial de la Federación el día anterior a aquél en que se causen las contribuciones. Los días en que el Banco de México no publique dicho tipo de cambio se aplicará el último tipo de cambio publicado con anterioridad al día en que se causen las contribuciones. Cuarto párrafo Cuando las disposiciones fiscales permitan el acreditamiento de impuestos o de cantidades equivalentes a éstos, pagados en moneda extranjera, se considerará el tipo de cambio que corresponda conforme a lo señalado en el párrafo anterior, referido a la fecha en que se causó el impuesto que se traslada o en su defecto cuando se pague. | D19: Atributo condicional para representar el tipo de cambio FIX conforme con la moneda usada. Es requerido cuando la clave de moneda es distinta de MXN y de XXX. El valor debe reflejar el número de pesos mexicanos que equivalen a una unidad de la divisa señalada en el atributo moneda. Si el valor está fuera del porcentaje aplicable a la moneda tomado del catálogo c_Moneda, el emisor debe obtener del PAC que vaya a timbrar el CFDI, de manera no automática, una clave de confirmación para ratificar que el valor es correcto e integrar dicha clave en el atributo Confirmacion. | E19: Se puede registrar el tipo de cambio FIX conforme a la moneda registrada en el comprobante. Este campo es requerido cuando la clave de moneda es distinta de “MXN” (Peso Mexicano) y a la clave “XXX” (Los códigos asignados para las transacciones en que intervenga ninguna moneda). Si el valor está fuera del porcentaje aplicable a la moneda tomado del catálogo c_Moneda, el emisor debe obtener del proveedor de certificación de CFDI que vaya a timbrar el CFDI de manera no automática, una clave de confirmación para ratificar que el valor es correcto e integrar dicha clave en el campo Confirmacion.El límite superior se obtiene al multiplicar el valor publicado del tipo de cambio FIX por la suma de uno más el porcentaje aplicable a la moneda tomado del catálogo c_Moneda. El límite inferior se obtiene al multiplicar el valor publicado del tipo de cambio FIX por la suma de uno menos el porcentaje aplicable a la moneda tomado del catálogo c_Moneda. Si este límite fuera negativo se toma cero. Nota importante: Esta validación estará vigente únicamente a partir de que el SAT publique en su Portal los procedimientos para generar la clave de confirmación y parametrizar los rangos máximos aplicables. | F19: 22. ¿Qué tipo de cambio pueden utilizar los integrantes del sistema financiero en la emisión del CFDI? Pueden utilizar en tipo de cambio FIX, del último día del mes, de la fecha de emisión o del día del corte del CFDI para operaciones en dólares de los EUA, y en el caso de monedas distintas, el que corresponda conforme a la última tabla de Equivalencias que haya sido publicada por BANXICO Fundamento: Preguntas frecuentes guía de llenado del CFDI SAT.
B21: Campo | C21: Fiscal | D21: Anexo 20 | E21: Guía del SAT | F21: Miscelánea fiscal
B22: Exportación | C22: Artículo 29 segundo párrafo fracción III CFF. Cumplir los requisitos establecidos en el artículo 29-A de este Código, y los que el Servicio de Administración Tributaria establezca al efecto mediante reglas de carácter general, inclusive los complementos del comprobante fiscal digital por Internet, que se publicarán en el Portal de Internet del Servicio de Administración Tributaria. | D22: Atributo requerido para expresar si el comprobante ampara una operación de exportación. | E22: Se debe registrar la clave con la que se identifica si el comprobante ampara una operación de exportación, las distintas claves vigentes se encuentran incluidas en el catálogo c_Exportacion.  Cuando se registre el valor “02”, se debe incluir el “Complemento para Comercio Exterior”. | F22: Complemento de CFDI en exportación definitiva de mercancías 2.7.1.19. Para los efectos del artículo 29, párrafos primero, y penúltimo del CFF en relación con lo dispuesto establecido en la regla 3.1.38., de las RGCE, al CFDI que se emita con motivo de operaciones de exportación definitiva de mercancías con clave de pedimento “A1” del Apéndice 2 del Anexo 22 de las RGCE, deberá incorporársele el complemento que al efecto se publique en el Portal del SAT. En el citado complemento se deberá incluir el identificador fiscal del país de residencia para efectos fiscales del receptor del CFDI y, en su caso, del destinatario de la mercancía, o el identificador específico para cada país, que al efecto determine el SAT en su Portal. CFF 29, RGCE 3.1.38.
B24: Campo | C24: Fiscal | D24: Anexo 20 | E24: Guía del SAT | F24: Miscelánea fiscal
B25: Lugar de expedición | C25: Artículo 29-A CFF. Los comprobantes fiscales digitales a que se refiere el artículo 29 de este Código, deberán contener los siguientes requisitos: I. La clave del Registro Federal de Contribuyentes, nombre o razón social de quien los expida y el régimen fiscal en que tributen conforme a la Ley del Impuesto sobre la Renta. Tratándose de contribuyentes que tengan más de un local o establecimiento, se deberá señalar el domicilio del local o establecimiento en el que se expidan los comprobantes fiscales. | D25: Atributo requerido para incorporar el código postal del lugar de expedición del comprobante (domicilio de la matriz o de la sucursal) | E25: Se debe registrar el código postal del lugar de expedición del comprobante (domicilio de la matriz o de la sucursal), debe corresponder a una clave de código postal vigente incluida en el catálogo c_CodigoPostal. Al ingresar el código postal en este campo se cumple con el requisito de señalar el domicilio y lugar de expedición del comprobante a que se refieren las fracciones I y III del primer párrafo del artículo 29-A del CFF, en los términos de la regla 2.7.1.29., fracción I de la Resolución Miscelánea Fiscal vigente. En el caso de que se emita un comprobante fiscal en una sucursal, en dicho comprobante se debe registrar el código postal de ésta, independientemente de que los sistemas de facturación de la empresa se encuentren en un domicilio distinto al de la sucursal. Los distintos códigos postales se encuentran incluidos en el catálogo c_CodigoPostal. Ejemplo: LugarExpedicion= 01000 | F25: El lugar de expedición, se cumplirá señalando el código postal del domicilio fiscal o domicilio del local o establecimiento conforme al catálogo de códigos postales que señala el Anexo 20. Fundamento: Regla 2.7.1.29 fracción I RMF 17. Si tengo varias sucursales, pero mis sistemas de facturación se encuentran en la matriz ¿qué código postal debo registrar en el campo lugar de expedición en el CFDI? En el caso de que se emita un comprobante fiscal en una sucursal, en dicho comprobante se debe registrar el código postal de esta, independientemente de que los sistemas de facturación de la empresa se encuentren en un domicilio distinto al de la sucursal. Fundamento legal: Artículo 29-A, primer párrafo, fracciones I y III del Código Fiscal de la Federación, “Anexo 20 Guía de llenado de los comprobantes fiscales digitales por Internet” versión 4.0, publicada en el Portal del SAT
B27: Campo | C27: Fiscal | D27: Anexo 20 | E27: Guía del SAT | F27: Miscelánea fiscal
B28: Confirmación | C28: Artículo 29-A CFF. IX. Los contenidos en las disposiciones fiscales, que sean requeridos y dé a conocer el Servicio de Administración Tributaria, mediante reglas de carácter general. | D28: Atributo condicional para registrar la clave de confirmación que entregue el PAC para expedir el comprobante con importes grandes, con un tipo de cambio fuera del rango establecido o con ambos casos. Es requerido cuando se registra un tipo de cambio o un total fuera del rango establecido. | E28: Se debe registrar la clave de confirmación única e irrepetible que entrega el proveedor de certificación de CFDI o el SAT a los emisores (usuarios) para expedir el comprobante con importes o tipo de cambio fuera del rango establecido o en ambos casos. Ejemplo: Confirmacion= ECVH1 Se deben registrar valores alfanuméricos de cinco posiciones. Nota importante: El uso de esta clave estará vigente únicamente a partir de que el SAT publique en su Portal los procedimientos para generar la clave de confirmación y parametrizar los montos y rangos máximos aplicables.
B30: Campo | C30: Fiscal | D30: Anexo 20 | E30: Guía del SAT | F30: Miscelánea fiscal
B31: RFC | C31: Artículo 29-A CFF. Los comprobantes fiscales digitales a que se refiere el artículo 29 de este Código, deberán contener los siguientes requisitos: I. La clave del Registro Federal de Contribuyentes, nombre o razón social de quien los expida y el régimen fiscal en que tributen conforme a la Ley del Impuesto sobre la Renta. Tratándose de contribuyentes que tengan más de un local o establecimiento, se deberá señalar el domicilio del local o establecimiento en el que se expidan los comprobantes fiscales. | D31: Atributo requerido para registrar la Clave del Registro Federal de Contribuyentes correspondiente al contribuyente emisor del comprobante. | E31: Se debe registrar la clave del Registro Federal de Contribuyentes del emisor del comproban En el caso de que el emisor sea una persona física, este campo debe contener una longitud de 13 posiciones, si se trata de personas morales debe contener una longitud de 12 posiciones. Ejemplo: En el caso de una persona física se debe registrar: Rfc= CABL840215RF4 En el caso de una persona moral se debe registrar: Rfc= PAL7202161U0
B33: Campo | C33: Fiscal | D33: Anexo 20 | E33: Guía del SAT | F33: Miscelánea fiscal
B34: Nombre | C34: Artículo 29-A CFF. Los comprobantes fiscales digitales a que se refiere el artículo 29 de este Código, deberán contener los siguientes requisitos: I. La clave del Registro Federal de Contribuyentes, nombre o razón social de quien los expida y el régimen fiscal en que tributen conforme a la Ley del Impuesto sobre la Renta. Tratándose de contribuyentes que tengan más de un local o establecimiento, se deberá señalar el domicilio del local o establecimiento en el que se expidan los comprobantes fiscales. | D34: Atributo requerido para registrar el nombre, denominación o razón social del contribuyente inscrito en el RFC, del emisor del comprobante. | E34: Se debe registrar el nombre, denominación o razón social inscrito en el RFC del emisor del comprobante. El nombre debe corresponder a la clave de RFC registrado en el campo Rfc de este Nodo. Ejemplo: En el caso de una persona física se debe registrar: Nombre = MARTON ALEEJANDRO SANZI FIERROR En el caso de una persona moral se debe registrar: Nombre = LA PALMA AEI0
B36: Campo | C36: Fiscal | D36: Anexo 20 | E36: Guía del SAT | F36: Miscelánea fiscal
B37: Régimen fiscal | C37: Artículo 29-A CFF. Los comprobantes fiscales digitales a que se refiere el artículo 29 de este Código, deberán contener los siguientes requisitos: I. La clave del Registro Federal de Contribuyentes, nombre o razón social de quien los expida y el régimen fiscal en que tributen conforme a la Ley del Impuesto sobre la Renta. Tratándose de contribuyentes que tengan más de un local o establecimiento, se deberá señalar el domicilio del local o establecimiento en el que se expidan los comprobantes fiscales. | D37: Atributo requerido para incorporar la clave del régimen del contribuyente emisor al que aplicará el efecto fiscal de este comprobante. | E37: Se debe especificar la clave vigente del régimen fiscal del contribuyente emisor bajo el cual se está emitiendo el comprobante. Las claves de los diversos regímenes se encuentran incluidas en el catálogo c_RegimenFiscal publicado en el Portal del SAT. Ejemplo: En el caso de que el emisor sea una persona moral inscrita en el Régimen General de Ley de Personas Morales, debe registrar lo siguiente: RegimenFiscal= 601
B39: Campo | C39: Fiscal | D39: Anexo 20 | E39: Guía del SAT | F39: Miscelánea fiscal
B40: Factura atributo adquirente | C40: Artículo 29-A CFF. IX. Los contenidos en las disposiciones fiscales, que sean requeridos y dé a conocer el Servicio de Administración Tributaria, mediante reglas de carácter general. | D40: Atributo condicional para expresar el número de operación proporcionado por el SAT cuando se trate de un comprobante a través de un PCECFDI o un PCGCFDISP. | E40: Se debe registrar el número de operación proporcionado por el SAT cuando se trate de un comprobante a través del adquirente de los productos o servicios siempre que la respuesta del servicio sea en sentido positivo, conforme a la Resolución Miscelánea Fiscal vigente. Cuando el número de operación sea menor a una longitud de 10 posiciones, se deberá completar con ceros a la izquierda hasta completar 10 dígitos. Ejemplo: FacAtrAdquirente=00000012345 | F40: 43. PCCFDI. Proveedor de certificación de Comprobante Fiscal Digital por Internet. 45. PCGCFDISP. Proveedor de certificación y generación de Comprobante Fiscal Digital por Internet para el Sector Primario. Sección 2.7.3. De la expedición de CFDI por las ventas realizadas por personas físicas del sector primario; arrendadores de bienes inmuebles, propietarios o titulares que afecten terrenos, bienes o derechos incluyendo derechos reales, ejidales o comunales; mineros; artesanos; enajenantes de vehículos usados, desperdicios industrializables, obras de artes plásticas y antigüedades, por los adquirentes de sus bienes
B42: Campo | C42: Fiscal | D42: Anexo 20 | E42: Guía del SAT | F42: Miscelánea fiscal
B43: RFC | C43: Artículo 29-A CFF. IV. La clave del Registro Federal de Contribuyentes, nombre o razón social; así como el código postal del domicilio fiscal de la persona a favor de quien se expida, asimismo, se debe indicar la clave del uso fiscal que el receptor le dará al comprobante fiscal. Cuando no se cuente con la clave del registro federal de contribuyentes a que se refiere esta fracción, se señalará la clave genérica que establezca el Servicio de Administración Tributaria mediante reglas de carácter general, considerándose la operación como celebrada con el público en general. Artículo 8o LIEPS.- No se pagará el impuesto establecido en esta Ley: I. Por las enajenaciones siguientes: d) Las de cerveza, bebidas refrescantes, puros y otros tabacos labrados, así como las de los bienes a que se refiere el inciso F) de la fracción I del artículo 2o. de esta Ley, que se efectúen al público en general, salvo que el enajenante sea fabricante, productor, envasador, distribuidor o importador de los bienes que enajene. No gozarán del beneficio establecido en este inciso, las enajenaciones de los citados bienes efectuadas por comerciantes que obtengan la mayor parte del importe de sus ingresos de enajenaciones a personas que no forman parte del público en general. No se consideran enajenaciones efectuadas con el público en general cuando por las mismas se expidan comprobantes que cumplan con los requisitos a que se refiere el artículo 29-A del Código Fiscal de la Federación. | D43: Atributo requerido para registrar la Clave del Registro Federal de Contribuyentes correspondiente al contribuyente receptor del comprobante. | E43: Se debe registrar la clave del Registro Federal de Contribuyentes del receptor del comprobante.  El RFC debe estar contenido en la lista de RFC (l_RFC) inscritos no cancelados en el SAT en caso de que sea diferente del RFC genérico. Ejemplo: En el caso de que el receptor sea una persona física el RFC debe tener una longitud de 13 posiciones, si se trata de personas morales debe tener una longitud de 12 posiciones. Persona física Rfc= FIMA420127R44 Persona moral Rfc= COR391215F4A | F43: Clave en el RFC genérica en CFDI y con residentes en el extranjero 2.7.1.23. Para los efectos del artículo 29-A, fracción IV, segundo párrafo del CFF y 99, fracción III de la Ley del ISR, cuando no se cuente con la clave en el RFC, se consignará la clave genérica en el RFC: XAXX010101000 y cuando se trate de operaciones efectuadas con residentes en el extranjero, que no se encuentren inscritos en el RFC, se señalará la clave genérica en el RFC: XEXX010101000. En el caso de contribuyentes residentes en México, que presten servicios de subcontratación de servicios especializados o de ejecución de obras especializadas a residentes en el extranjero que no están obligados a solicitar su inscripción en el RFC, en los CFDI de nómina que deben emitir por los pagos que realicen y que a su vez sean ingresos para sus trabajadores en términos del Título IV, Capítulo I de la Ley del ISR, podrán señalar en el campo “RfcLabora” del elemento o sección del complemento de nómina denominado “SubContratacion” la clave en el RFC genérica a que se refiere el párrafo anterior. CFF 29-A, LISR 99 Definición de público en general para efectos de expedición de CFDI 2.7.1.46. Para los efectos de los artículos 29 y 29-A fracción IV, segundo párrafo del CFF, se entiende por actividades realizadas con el público en general, cuando se registre la clave en el RFC genérica a que se refiere la regla 2.7.1.23., consistente en: XAXX010101000, en el campo Rfc del nodo Receptor del CFDI. CFF 29, 29-A, RMF 2024 2.7.1.21., 2.7.1.23.
B45: Campo | C45: Fiscal | D45: Anexo 20 | E45: Guía del SAT | F45: Miscelánea fiscal
B46: Nombre | C46: Artículo 29-A CFF. IV. La clave del Registro Federal de Contribuyentes, nombre o razón social; así como el código postal del domicilio fiscal de la persona a favor de quien se expida, asimismo, se debe indicar la clave del uso fiscal que el receptor le dará al comprobante fiscal. Cuando no se cuente con la clave del registro federal de contribuyentes a que se refiere esta fracción, se señalará la clave genérica que establezca el Servicio de Administración Tributaria mediante reglas de carácter general, considerándose la operación como celebrada con el público en general. | D46: Atributo requerido para registrar el nombre(s), primer apellido, segundo apellido, según corresponda, denominación o razón social del contribuyente, inscrito en el RFC, del receptor del comprobante. | E46: Se debe registrar el(los) nombre(s), primer apellido, segundo apellido, según corresponda denominación o razón social registrados en el RFC del contribuyente receptor del comprobante. El Nombre debe corresponder a la clave de RFC registrado en el campo Rfc de este Nodo. Ejemplo: En el caso de una persona física se debe registrar: Nombre = RAFAELI CAMPOSORIO RUÍZO En el caso de una persona moral se debe registrar: Nombre= LA VILLA ESP0
B48: Campo | C48: Fiscal | D48: Anexo 20 | E48: Guía del SAT | F48: Miscelánea fiscal
B49: Domicilio fiscal del receptor | C49: Artículo 29-A CFF. IV. La clave del Registro Federal de Contribuyentes, nombre o razón social; así como el código postal del domicilio fiscal de la persona a favor de quien se expida, asimismo, se debe indicar la clave del uso fiscal que el receptor le dará al comprobante fiscal. | D49: Atributo requerido para registrar el código postal del domicilio fiscal del receptor del comprobante. | E49: Se debe registrar el código postal del domicilio fiscal del receptor del comprobante.  El código postal, en caso de que sea diferente de los RFC genéricos, debe estar asociado a la clave de RFC registrado en el campo Rfc de este Nodo. Ejemplo: DomicilioFiscalReceptor= 01001
B51: Campo | C51: Fiscal | D51: Anexo 20 | E51: Guía del SAT | F51: Miscelánea fiscal
B52: Residencia fiscal | C52: Artículo 29-A CFF. IX. Los contenidos en las disposiciones fiscales, que sean requeridos y dé a conocer el Servicio de Administración Tributaria, mediante reglas de carácter general. | D52: Atributo condicional para registrar la clave del país de residencia para efectos fiscales del receptor del comprobante, cuando se trate de un extranjero, y que es conforme con la especificación ISO 3166-1 alpha-3. Es requerido cuando se incluya el complemento de comercio exterior o se registre el atributo NumRegIdTrib. | E52: Cuando el receptor del comprobante sea un residente en el extranjero, se debe registrar la clave del país de residencia para efectos fiscales del receptor del comprobante. Este campo es obligatorio cuando el RFC del receptor es un RFC genérico extranjero, y se incluya el complemento de comercio exterior o se registre el campo NumRegIdTrib. Ejemplo: Si la residencia fiscal de la empresa extranjera receptora del comprobante fiscal se encuentra en Estados Unidos de América, se debe registrar lo siguiente: ResidenciaFiscal= USA
B54: Campo | C54: Fiscal | D54: Anexo 20 | E54: Guía del SAT | F54: Miscelánea fiscal
B55: Número de registro tributario | C55: Artículo 29-A CFF. IX. Los contenidos en las disposiciones fiscales, que sean requeridos y dé a conocer el Servicio de Administración Tributaria, mediante reglas de carácter general. | D55: Atributo condicional para expresar el número de registro de identidad fiscal del receptor cuando sea residente en el extranjero. Es requerido cuando se incluya el complemento de comercio exterior. | E55: Se captura el número de registro de identidad fiscal del receptor del comprobante fiscal cuando este sea residente en el extranjero.  Este campo es obligatorio cuando se incluya el complemento de comercio exterior.  Puede conformarse desde uno hasta 40 caracteres.  Si no existe el campo ResidenciaFiscal, este campo puede no existir.  La residencia fiscal debe corresponder con el valor especificado en la columna Formato de Registro de Identidad Tributaria del catálogo c_Pais. Ejemplo: En el caso de que el receptor del comprobante fiscal sea residente en el extranjero se debe registrar conforme a lo siguiente: NumRegIdTrib= 121585958
B57: Campo | C57: Fiscal | D57: Anexo 20 | E57: Guía del SAT | F57: Miscelánea fiscal
B58: Régimen fiscal | C58: Artículo 29-A CFF. IX. Los contenidos en las disposiciones fiscales, que sean requeridos y dé a conocer el Servicio de Administración Tributaria, mediante reglas de carácter general. | D58: Atributo requerido para incorporar la clave del régimen fiscal del contribuyente receptor al que aplicará el efecto fiscal de este comprobante. | E58: Se debe registrar la clave vigente del régimen fiscal del contribuyente receptor.  Las claves de los diversos regímenes se encuentran incluidas en el catálogo c_RegimenFiscal publicado en el Portal del SAT.  Cuando se trate de operaciones con residentes en el extranjero y se registre el valor “XEXX010101000” en este campo se debe registrar la clave “616” Sin obligaciones fiscales.
B60: Campo | C60: Fiscal | D60: Anexo 20 | E60: Guía del SAT | F60: Miscelánea fiscal
B61: USO del CFDI | C61: Artículo 29-A CFF. IV. La clave del Registro Federal de Contribuyentes, nombre o razón social; así como el código postal del domicilio fiscal de la persona a favor de quien se expida, asimismo, se debe indicar la clave del uso fiscal que el receptor le dará al comprobante fiscal. | D61: Atributo requerido para expresar la clave del uso que dará a esta factura el receptor del CFDI. | E61: Se debe registrar la clave que corresponda al uso que le dará al comprobante fiscal el receptor. La clave que solicite el receptor (física o moral) se registre en este campo, debe corresponder con los valores indicados en el catálogo c_UsoCFDI y el valor registrado en el campo RegimenFiscalReceptor, debe corresponder a un valor de la columna Régimen Fiscal Receptor de dicho catálogo. Ejemplo: UsoCFDI= D01 En el caso de que se emita un CFDI a un residente en el extranjero con RFC genérico (XEXX010101000), en este campo se debe registrar la clave “S01” (Sin efectos fiscales)
B63: Campo | C63: Fiscal | D63: Anexo 20 | E63: Guía del SAT | F63: Miscelánea fiscal
B64: USO del CFDI | C64: Artículo 29-A CFF. IV. La clave del Registro Federal de Contribuyentes, nombre o razón social; así como el código postal del domicilio fiscal de la persona a favor de quien se expida, asimismo, se debe indicar la clave del uso fiscal que el receptor le dará al comprobante fiscal. | D64: Atributo requerido para expresar la clave del uso que dará a esta factura el receptor del CFDI. | E64: Se debe registrar la clave que corresponda al uso que le dará al comprobante fiscal el receptor. La clave que solicite el receptor (física o moral) se registre en este campo, debe corresponder con los valores indicados en el catálogo c_UsoCFDI y el valor registrado en el campo RegimenFiscalReceptor, debe corresponder a un valor de la columna Régimen Fiscal Receptor de dicho catálogo. Ejemplo: UsoCFDI= D01 En el caso de que se emita un CFDI a un residente en el extranjero con RFC genérico (XEXX010101000), en este campo se debe registrar la clave “S01” (Sin efectos fiscales)
B66: Campo | C66: Fiscal | D66: Anexo 20 | E66: Guía del SAT | F66: Miscelánea fiscal
B67: Tipo de relación | C67: Artículo 29-A CFF. IX. Los contenidos en las disposiciones fiscales, que sean requeridos y dé a conocer el Servicio de Administración Tributaria, mediante reglas de carácter general. | D67: Atributo requerido para indicar la clave de la relación que existe entre éste que se está generando y el o los CFDI previos. | E67: Se debe registrar la clave de la relación que existe entre este comprobante que se está generando y el o los CFDI previos. Las diferentes claves de Tipo de relación se encuentran incluidas en el catálogo c_TipoRelacion publicado en el Portal del SAT.  Cuando el tipo de relación tenga la clave “01” o “02”, no se deben registrar notas de crédito y débito con comprobante de tipo “T” (Traslado), “P” (Pago) o “N” (Nómina).  Cuando el tipo de relación tenga la clave “03”, no se deben registrar devoluciones de mercancías sobre comprobantes de tipo “E” (Egreso), “P” (Pago) o “N” (Nómina).  Cuando el tipo de relación tenga la clave “04”, si este documento que se está generando es de tipo “I” (Ingreso) o “E” (Egreso), puede sustituir a un comprobante de tipo “I” (Ingreso) o “E” (Egreso), en otro caso debe de sustituir a un comprobante del mismo tipo.  Cuando el tipo de relación sea “05”, este documento que se está generando debe ser de tipo “T” (Traslado), y los documentos relacionados deben ser un comprobante de tipo “I” (Ingreso) o “E” (Egreso).  Cuando el tipo de relación sea “06”, este documento que se está generando debe ser de tipo “I” (Ingreso) o “E” (Egreso) y los documentos relacionados deben ser de tipo “T” (Traslado).  Cuando el tipo de relación sea “07”, este documento que se está generando debe ser de tipo “I” (Ingreso) o “E” (Egreso) y los documentos relacionados deben ser de tipo “I” (Ingreso) o “E” (Egreso).
B69: Campo | C69: Fiscal | D69: Anexo 20 | E69: Guía del SAT | F69: Miscelánea fiscal
B70: UUID | C70: Artículo 29-A CFF. IX. Los contenidos en las disposiciones fiscales, que sean requeridos y dé a conocer el Servicio de Administración Tributaria, mediante reglas de carácter general. | D70: Atributo requerido para registrar el folio fiscal (UUID) de un CFDI relacionado con el presente comprobante, por ejemplo: Si el CFDI relacionado es un comprobante de traslado que sirve para registrar el movimiento de la mercancía. Si este comprobante se usa como nota de crédito o nota de débito del comprobante relacionado. Si este comprobante es una devolución sobre el comprobante relacionado. Si éste sustituye a una factura cancelada. | E70: Se debe registrar el folio fiscal (UUID) de un comprobante fiscal relacionado con el presente comprobante. Ejemplo: UUID= 5FB2822E-396D-4725-8521-CDC4BDD20CCF
B72: Campo | C72: Fiscal | D72: Anexo 20 | E72: Guía del SAT | F72: Miscelánea fiscal
B73: Periodicidad | C73: Artículo 29-A CFF. IX. Los contenidos en las disposiciones fiscales, que sean requeridos y dé a conocer el Servicio de Administración Tributaria, mediante reglas de carácter general. Artículo 6 CFF. Último párrafo Cuando las disposiciones fiscales establezcan opciones a los contribuyentes para el cumplimiento de sus obligaciones fiscales o para determinar las contribuciones a su cargo, la elegida por el contribuyente no podrá variarla respecto al mismo ejercicio. | E73: Campo requerido para registrar el período al que corresponde la información del comprobante global. Cuando el valor de este campo sea “05” el campo RegimenFiscal debe ser “621”. | F73: Expedición de comprobantes en operaciones con el público en general 2.7.1.21. Para los efectos de los artículos 29 y 29-A, fracción IV, segundo párrafo del CFF, 39 del Reglamento del CFF y 113-G, fracción V, segundo párrafo de la Ley del ISR, los contribuyentes podrán elaborar un CFDI diario, semanal o mensual donde consten los importes correspondientes a cada una de las operaciones realizadas con el público en general del periodo al que corresponda y el número de folio o de operación de los comprobantes de operaciones con el público en general que se hubieran emitido, utilizando para ello la clave genérica en el RFC a que se refiere la regla 2.7.1.23. Los contribuyentes personas físicas que tributen en el RIF de conformidad con lo establecido en el Título IV, Capítulo II, Sección II de la Ley del ISR vigente hasta el 31 de diciembre de 2021, en relación con lo señalado en el artículo Segundo, fracción IX de las Disposiciones Transitorias de la Ley del Impuesto sobre la Renta, publicada en el DOF el 12 de noviembre de 2021, podrán elaborar el CFDI de referencia de forma bimestral, incluyendo únicamente el monto total de las operaciones del periodo correspondiente. Tratándose de los contribuyentes personas físicas que tributen en el Régimen Simplificado de Confianza de conformidad con lo señalado en el Título IV, Capítulo II, Sección IV de la Ley del ISR, en los CFDI que emitan por las operaciones realizadas durante el mes de que se trate, deberán incluir únicamente el monto total de las operaciones del periodo correspondiente, y deberán cumplir con lo establecido en el quinto párrafo de esta regla. .....................................
B75: Campo | C75: Fiscal | D75: Anexo 20 | E75: Guía del SAT | F75: Miscelánea fiscal
B76: Meses | C76: Artículo 29-A CFF. IX. Los contenidos en las disposiciones fiscales, que sean requeridos y dé a conocer el Servicio de Administración Tributaria, mediante reglas de carácter general. | E76: Se debe registrar la clave del mes o los meses al que corresponde la información de las operaciones celebradas con el público en general, las distintas claves vigentes se encuentran incluidas en el catálogo c_Meses.  Cuando el valor del campo Periodicidad sea “05”(Bimestral), este campo debe contener alguno de los valores “13” (Enero-Febrero), “14” (Marzo-Abril), “15” (Mayo-Junio), “16” (Julio-Agosto), “17” (Septiembre-Octubre) o “18” (Noviembre-Diciembre).  Si el campo Periodicidad contiene un valor diferente de “05”, (Bimestral) este campo debe contener alguno de los valores “01” (Enero), “02”(Febrero), “03” (Marzo), “04”(Abril), “05”(Mayo), “06”(Junio), “07” (Julio), “08”(Agosto), “09”(Septiembre), “10” (Octubre), “11” (Noviembre) o “12” (Diciembre).
B78: Campo | C78: Fiscal | D78: Anexo 20 | E78: Guía del SAT | F78: Miscelánea fiscal
B79: Año | C79: Artículo 29-A CFF. IX. Los contenidos en las disposiciones fiscales, que sean requeridos y dé a conocer el Servicio de Administración Tributaria, mediante reglas de carácter general. | E79: Se debe registrar el año al que corresponde la información del comprobante global. El valor registrado debe ser igual al año en curso o al año inmediato anterior considerando el registrado en la Fecha de emisión del comprobante. Ejemplo: Año=2022
B81: Campo | C81: Fiscal | D81: Anexo 20 | E81: Guía del SAT | F81: Miscelánea fiscal
B82: Clave producto o servicio | C82: Artículo 29-A CFF. V. La cantidad, unidad de medida y clase de los bienes o mercancías o descripción del servicio o del uso o goce que amparen, estos datos se asentarán en los comprobantes fiscales digitales por Internet usando los catálogos incluidos en las especificaciones tecnológicas a que se refiere la fracción VI del artículo 29 de este Código. | D82: Atributo requerido para expresar la clave del producto o del servicio amparado por el presente concepto. Es requerido y deben utilizar las claves del catálogo de productos y servicios, cuando los conceptos que registren por sus actividades correspondan con dichos conceptos. | E82: En este campo se debe registrar una clave que permita clasificar los conceptos del comprobante como productos o servicios; se deben utilizar las claves de los diversos productos o servicios de conformidad con el catálogo c_ClaveProdServ publicado en el Portal del SAT, cuando los conceptos que se registren por sus actividades correspondan a estos. Para una mejor ubicación de los productos y servicios que se facturan, puede consultarse el Apéndice 3 de esta Guía. En el caso de que la clave de un producto o servicio no se encuentre en el catálogo se debe registrar la clave “01010101”. Basta con que se clasifique la descripción del bien o servicio hasta el tercer nivel, es decir hasta la clase, los primeros seis dígitos de la clave del catálogo (Apéndice 3). Es importante señalar que la identificación de la clave de producto o servicio que corresponda conforme al catálogo c_ClaveProdServ, será responsabilidad del emisor de la factura, en razón de ser él quien conoce las características y la naturaleza del producto o servicio que comercializa y amparará el comprobante. En el caso de que el emisor del comprobante comercialice productos que no hayan sido objeto de transformación o industrialización de su parte –es decir lo compra y tal cual lo vende-, el emisor podrá utilizar la clave del producto registrada por su proveedor en el comprobante que ampara la adquisición de los mismos.
B84: Campo | C84: Fiscal | D84: Anexo 20 | E84: Guía del SAT | F84: Miscelánea fiscal
B85: Número de identificación | C85: Artículo 29-A CFF. IX. Los contenidos en las disposiciones fiscales, que sean requeridos y dé a conocer el Servicio de Administración Tributaria, mediante reglas de carácter general. | D85: Atributo opcional para expresar el número de parte, identificador del producto o del servicio, la clave de producto o servicio, SKU o equivalente, propia de la operación del emisor, amparado por el presente concepto. Opcionalmente se puede utilizar claves del estándar GTIN. | E85: En este campo se puede registrar el número de parte, identificador del producto o del servicio, la clave de producto o servicio, SKU (número de referencia) o equivalente, propia de la operación del contribuyente emisor del comprobante fiscal descrito en el presente concepto.  Opcionalmente se pueden utilizar claves del estándar GTIN (número global de artículo comercial).  Puede conformarse desde uno hasta 100 caracteres alfanuméricos. Ejemplo: NoIdentificacion= UT421510
B87: Campo | C87: Fiscal | D87: Anexo 20 | E87: Guía del SAT | F87: Miscelánea fiscal
B88: Cantidad | C88: Artículo 29-A CFF. V. La cantidad, unidad de medida y clase de los bienes o mercancías o descripción del servicio o del uso o goce que amparen, estos datos se asentarán en los comprobantes fiscales digitales por Internet usando los catálogos incluidos en las especificaciones tecnológicas a que se refiere la fracción VI del artículo 29 de este Código. | D88: Atributo requerido para precisar la cantidad de bienes o servicios del tipo particular definido por el presente concepto. | E88: En este campo se debe registrar la cantidad de bienes o servicios que correspondan a cada concepto, puede contener de cero hasta seis decimales. Ejemplo: Cantidad= 5.55555
B90: Campo | C90: Fiscal | D90: Anexo 20 | E90: Guía del SAT | F90: Miscelánea fiscal
B91: Clave de unidad | C91: Artículo 29-A CFF. V. La cantidad, unidad de medida y clase de los bienes o mercancías o descripción del servicio o del uso o goce que amparen, estos datos se asentarán en los comprobantes fiscales digitales por Internet usando los catálogos incluidos en las especificaciones tecnológicas a que se refiere la fracción VI del artículo 29 de este Código. | D91: Atributo requerido para precisar la clave de unidad de medida estandarizada aplicable para la cantidad expresada en el concepto. La unidad debe corresponder con la descripción del concepto. | E91: En este campo se debe registrar la clave de unidad de medida estandarizada de conformidad con el catálogo c_ClaveUnidad publicado en el Portal del SAT, aplicable para la cantidad expresada en cada concepto. La unidad debe corresponder con la descripción del concepto. Ejemplo: ClaveUnidad= KGM
B93: Campo | C93: Fiscal | D93: Anexo 20 | E93: Guía del SAT | F93: Miscelánea fiscal
B94: Unidad | D94: Atributo opcional para precisar la unidad de medida propia de la operación del emisor, aplicable para la cantidad expresada en el concepto. La unidad debe corresponder con la descripción del concepto. | E94: En este campo se puede registrar la unidad de medida del bien o servicio propio de la operación del emisor, aplicable para la cantidad expresada en cada concepto. La unidad debe corresponder con la descripción del concepto. La unidad debe corresponder con la ClaveUnidad del catálogo c_ClaveUnidad. Ejemplo: Unidad= Kilo | F94: Concepto de unidad de medida a utilizar en los CFDI 2.7.1.25. Para los efectos del artículo 29-A, fracción V, primer párrafo del CFF, los contribuyentes podrán señalar en los CFDI que emitan, la unidad de medida que utilicen conforme a los usos mercantiles. Asimismo, se deberá registrar la unidad de medida que corresponda con la Clave Unidad del Catálogo “c_ClaveUnidad” señalada en el Anexo 20, en caso de que no se encuentre la clave específica de la unidad de medida que se utilizó conforme a los usos mercantiles los contribuyentes podrán señalar la clave que más se acerque o se asemeje. CFF 29-A
B96: Campo | C96: Fiscal | D96: Anexo 20 | E96: Guía del SAT | F96: Miscelánea fiscal
B97: Valor unitario | C97: Artículo 29-A CFF. V. La cantidad, unidad de medida y clase de los bienes o mercancías o descripción del servicio o del uso o goce que amparen, estos datos se asentarán en los comprobantes fiscales digitales por Internet usando los catálogos incluidos en las especificaciones tecnológicas a que se refiere la fracción VI del artículo 29 de este Código. | D97: Atributo requerido para precisar el valor o precio unitario del bien o servicio cubierto por el presente concepto. | E97: En este campo se debe registrar el valor o precio unitario del bien o servicio por cada concepto, el cual puede contener de cero hasta seis decimales. Si el tipo de comprobante es de “I” (Ingreso), “E” (Egreso) o “N” (Nómina) este valor debe ser mayor a cero, si es de “T” (Traslado) puede ser mayor o igual a cero y si es de “P” (Pago) debe ser igual a cero. Ejemplo: ValorUnitario= 1230.00
B99: Campo | C99: Fiscal | D99: Anexo 20 | E99: Guía del SAT | F99: Miscelánea fiscal
B100: Importe | C100: Artículo 29-A CFF. IX. Los contenidos en las disposiciones fiscales, que sean requeridos y dé a conocer el Servicio de Administración Tributaria, mediante reglas de carácter general. | D100: Atributo requerido para precisar el importe total de los bienes o servicios del presente concepto. Debe ser equivalente al resultado de multiplicar la cantidad por el valor unitario expresado en el concepto. No se permiten valores negativos. | E100: Se debe registrar el importe total de los bienes o servicios de cada concepto. Debe ser equivalente al resultado de multiplicar la cantidad por el valor unitario expresado en el concepto, el cual debe ser calculado por el sistema que genera el comprobante y considerará los redondeos que tenga registrado este campo en el estándar técnico del Anexo 20. No se permiten valores negativos. Este campo puede contener de cero hasta seis decimales. Ejemplo 1: En este caso se consideró la clave “MXN” (Peso Mexicano). Importe= 6150.00
B102: Campo | C102: Fiscal | D102: Anexo 20 | E102: Guía del SAT | F102: Miscelánea fiscal
B103: Descuento | C103: Artículo 29-A CFF. IX. Los contenidos en las disposiciones fiscales, que sean requeridos y dé a conocer el Servicio de Administración Tributaria, mediante reglas de carácter general. | D103: Atributo opcional para representar el importe de los descuentos aplicables al concepto. No se permiten valores negativos. | E103: Se puede registrar el importe de los descuentos aplicables a cada concepto, debe tener hasta la cantidad de decimales que tenga registrado en el campo importe del concepto y debe ser menor o igual al campo Importe. No se permiten valores negativos. Este campo puede contener de cero hasta seis decimales. Ejemplo: En este caso se consideró la clave “MXN” (Peso Mexicano). Descuento= 864.10 Los descuentos no se deben registrar de manera global, se registran por cada uno de los conceptos contenidos dentro del comprobante.
B105: Campo | C105: Fiscal | D105: Anexo 20 | E105: Guía del SAT | F105: Miscelánea fiscal
B106: Objeto de impuesto | C106: Artículo 29-A CFF. IX. Los contenidos en las disposiciones fiscales, que sean requeridos y dé a conocer el Servicio de Administración Tributaria, mediante reglas de carácter general. | D106: Atributo requerido para expresar si la operación comercial es objeto o no de impuesto. | E106: Se debe registrar la clave correspondiente para indicar si la operación comercial es objeto o no de impuesto.  Las claves vigentes se encuentran incluidas en el catálogo c_ObjetoImp.  Si el valor registrado en este campo es “02” (Sí objeto de impuesto), se deben desglosar los Impuestos a nivel de Concepto.  Si el valor registrado en este campo es “01” (No objeto de impuesto) o “03” (Sí objeto del impuesto y no obligado al desglose) no se desglosan impuestos a nivel Concepto.
B108: Campo | C108: Fiscal | D108: Anexo 20 | E108: Guía del SAT | F108: Miscelánea fiscal
B109: Pedimento | C109: Artículo 29-A CFF. VIII. Tratándose de mercancías de importación: a) El número y fecha del documento aduanero, tratándose de ventas de primera mano. b) En importaciones efectuadas a favor de un tercero, el número y fecha del documentoaduanero, los conceptos y montos pagados por el contribuyente directamente al proveedor extranjero y los importes de las contribuciones pagadas con motivo de la importación. | D109: Atributo requerido para expresar el número del pedimento que ampara la importación del bien que se expresa en el siguiente formato: últimos 2 dígitos del año de validación seguidos por dos espacios, 2 dígitos de la aduana de despacho seguidos por dos espacios, 4 dígitos del número de la patente seguidos por dos espacios, 1 dígito que corresponde al último dígito del año en curso, salvo que se trate de un pedimento consolidado iniciado en el año inmediato anterior o del pedimento original de una rectificación, seguido de 6 dígitos de la numeración progresiva por aduana. | E109: Se debe registrar el número del pedimento correspondiente a la importación del bien, el cual se integra de izquierda a derecha de la siguiente manera: Últimos dos dígitos del año de validación seguidos por dos espacios, dos dígitos de la aduana de despacho seguidos por dos espacios, cuatro dígitos del número de la patente seguidos por dos espacios, un dígito que corresponde al último dígito del año en curso, salvo que se trate de un pedimento consolidado, iniciado en el año inmediato anterior o del pedimento original de una rectificación, seguido de seis dígitos de la numeración progresiva por aduana.  Se debe registrar la información en este campo cuando el CFDI no contenga el complemento de comercio exterior (es una venta de primera mano nacional).  Para validar la estructura de este campo puede consultar la documentación técnica publicada en el Portal del SAT
B111: Campo | C111: Fiscal | D111: Anexo 20 | E111: Guía del SAT | F111: Miscelánea fiscal
B112: Número | C112: Artículo 29-A CFF. V... c) Los que se expidan por la obtención de ingresos por arrendamiento y en general por otorgar el uso o goce temporal de bienes inmuebles, deberán contener el número de cuenta predial del inmueble de que se trate o, en su caso, los datos de identificación del certificado de participación inmobiliaria no amortizable. | D112: Atributo requerido para precisar el número de la cuenta predial del inmueble cubierto por el presente concepto, o bien para incorporar los datos de identificación del certificado de participación inmobiliaria no amortizable, tratándose de arrendamiento. | E112: Se debe registrar el número de la cuenta predial del inmueble cubierto por cada concepto o bien, para incorporar los datos de identificación del certificado de participación inmobiliaria no amortizable, si se trata de arrendamiento. Puede conformarse desde uno hasta 150 dígitos. Ejemplo: Numero= 15956011002

Sheet REQUISITOS (hidden)
B2: Requisitos de las deducciones
B4: Persona moral régimen general de Ley | C4: Persona física actividad empresarial y profesional | D4: Persona física arrendamiento de inmuebles
B5: Que al realizar las operaciones correspondientes o a más tardar el último día del ejercicio se reúnan los requisitos que para cada deducción en particular establece esta Ley. Tratándose del comprobante fiscal a que se refiere el primer párrafo de la fracción III de este artículo, éste se obtenga a más tardar el día en que el contribuyente deba presentar su declaración. Respecto de la documentación comprobatoria de las retenciones y de los pagos a que se refieren las fracciones V y VI de este artículo, respectivamente, los mismos se realicen en los plazos que al efecto establecen las disposiciones fiscales, y la documentación comprobatoria se obtenga en dicha fecha. Tratándose de las declaraciones informativas a que se refieren los artículos 76 de esta Ley, y 32, fracciones V y VIII de la Ley del Impuesto al Valor Agregado, éstas se deberán presentar en los plazos que al efecto establece el citado artículo 76 y contar a partir de esa fecha con los comprobantes fiscales correspondientes. Además, la fecha de expedición de los comprobantes fiscales de un gasto deducible deberá corresponder al ejercicio por el que se efectúa la deducción. Fundamento: Artículo 27 fracción XIII primer párrafo LISR | C5: Que al realizar las operaciones correspondientes o a más tardar el último día del ejercicio, se reúnan los requisitos que para cada deducción en particular establece esta Ley. Tratándose únicamente de los comprobantes fiscales a que se refiere el primer párrafo de la fracción III del artículo 27 de esta Ley, estos se obtengan a más tardar el día en que el contribuyente deba presentar su declaración del ejercicio y la fecha de expedición de dicho comprobante fiscal deberá corresponder al ejercicio en el que se efectúa la deducción. Fundamento: Artículo 105 fracción VIII LISR | D5: Que al realizar las operaciones correspondientes o a más tardar el último día del ejercicio, se reúnan los requisitos que para cada deducción en lo particular establece esta Ley. Tratándose únicamente del comprobante fiscal a que se refiere el primer párrafo de la fracción IV de este artículo, éste se obtenga a más tardar el día en que el contribuyente deba presentar su declaración del ejercicio y la fecha de expedición del comprobante fiscal deberá corresponder al ejercicio en el que se efectúa la deducción. Tratándose de las declaraciones informativas a que se refieren los artículos 76 de esta Ley y 32, fracciones V y VIII de la Ley del Impuesto al Valor Agregado, éstas se deberán presentar en los plazos que al efecto establece el citado artículo 76 y contar a partir de esa fecha con los comprobantes fiscales correspondientes. Fundamento: Artículo 147 fracción VIII LISR
B7: Persona moral RESICO
B8: Que al realizar las operaciones correspondientes o a más tardar el último día del ejercicio, se reúnan los requisitos que para cada deducción en particular establece esta Ley. Tratándose únicamente de los comprobantes fiscales a que se refiere el primer párrafo de la fracción III del artículo 27 de esta Ley, éstos se obtengan a más tardar el día en que el contribuyente deba presentar su declaración de pago provisional y la fecha de expedición de dicho comprobante fiscal deberá corresponder a dicho periodo de pago. Fundamento: Artículo 210 fracción VIII LISR
B10: Apéndice 2 Clasificación de los tipos de CFDI
B11: 1. Comprobante de Ingreso. - Se emiten por los ingresos que obtienen los contribuyentes, ejemplo: prestación de servicios, arrendamiento, honorarios, donativos recibidos, enajenación de bienes y mercancías, incluyendo la enajenación que se realiza en operaciones de comercio exterior, etc.
B13: Persona moral régimen general de Ley
B14: Obligación de expedir CFDI Expedir los comprobantes fiscales por las actividades que realicen. Fundamento: Artículo 76 fracción II LISR
B16: Persona moral RESICO
B17: Artículo 213 LISR. Las personas morales a que se refiere este Capítulo, además de las obligaciones establecidas en otros artículos de esta Ley y en las demás disposiciones fiscales, cumplirán con las obligaciones señaladas en el Capítulo IX del Título II de la Ley del Impuesto sobre la Renta.
B19: Persona moral título III LISR
B20: Expedir y recabar los comprobantes fiscales que acrediten las enajenaciones y erogaciones que efectúen, los servicios que presten o el otorgamiento del uso o goce temporal de bienes. Fundamento: Artículo 86 fracción II LISR
B22: Persona física actividad empresarial y profesional
B23: Expedir comprobantes fiscales que acrediten los ingresos que perciban. Fundamento: Artículo 110 fracción III LISR
B25: Persona física arrendamiento de inmuebles
B26: Expedir comprobantes fiscales por las contraprestaciones recibidas. Fundamento: Artículo 118 fracción III LISR
B28: Todos los contribuyentes obligados al pago del IVA
B29: Expedir y entregar comprobantes fiscales. Fundamento: Artículo 32 fracción III LIVA
B31: Contribuyentes del IEPS
B32: Expedir comprobantes fiscales, sin el traslado en forma expresa y por separado del impuesto establecido en esta Ley, salvo tratándose de la enajenación de los bienes a que se refieren los incisos A), D), F), G), I) y J) de la fracción I del artículo 2o. de esta Ley, siempre que el adquirente sea a su vez contribuyente de este impuesto por dichos bienes y así lo solicite. Fundamento: Artículo 19 fracción II primer párrafo LIEPS
B34: Apéndice 2 Clasificación de los tipos de CFDI
B35: 2. Comprobante de Egreso. - Amparan devoluciones, descuentos y bonificaciones para efectos de deducibilidad y también puede utilizarse para corregir o restar un comprobante de ingresos en cuanto a los montos que documenta, como la aplicación de anticipos. Este comprobante es conocido como nota de crédito.
B37: Justificación y soporte documental En el caso de las devoluciones, descuentos o bonificaciones a que se refiere el artículo 25 de la Ley del Impuesto sobre la Renta, se deberán expedir comprobantes fiscales digitales por Internet. En el supuesto de que se emitan comprobantes que amparen egresos sin contar con la justificación y soporte documental que acredite las devoluciones, descuentos o bonificaciones ante las autoridades fiscales, éstos no podrán disminuirse de los comprobantes fiscales de ingresos del contribuyente, lo cual podrá ser verificado por éstas en el ejercicio de las facultades establecidas en este Código. Fundamento: Artículo 29 fracción VI tercer párrafo CFF
B39: Apéndice 2 Clasificación de los tipos de CFDI
B40: 3. Comprobante de Traslado. - Sirve para amparar el transporte, la legal tenencia y estancia de las mercancías objeto del transporte durante su trayecto en territorio nacional. También puede usarse para documentar operaciones de transporte de mercancías al extranjero.
B41: 4. Comprobante de Recepción de pagos. – Es un CFDI que incorpora un Complemento para recepción de Pagos, el cual debe emitirse en los casos de operaciones con pago en parcialidades o cuando al momento de expedir el CFDI no se reciba el pago de la contraprestación y facilita la conciliación de las facturas contra pagos.
B42: 5. Comprobante de Nómina. - Es un CFDI al que se incorpora el complemento recibo de pago de nómina, el cual debe emitirse por los pagos realizados por concepto de remuneraciones de sueldos, salarios y asimilados a estos, es una especie de una factura de egresos.
B43: 6. Comprobante de Retenciones e información de pagos. - Se expiden en las operaciones en las cuales se informa de la realización de retenciones de impuestos, incluyendo el caso de pagos realizados a residentes en el extranjero para efectos fiscales y las retenciones que se les realicen; este tipo de comprobante no forma parte del Catálogo tipo de comprobante porque éste se genera con el estándar contenido en el rubro II. del Anexo 20
B46: Complemento de CFDI en exportación definitiva de mercancías 2.7.1.19. Para los efectos del artículo 29, párrafos primero, y penúltimo del CFF en relación con lo dispuesto establecido en la regla 3.1.38., de las RGCE, al CFDI que se emita con motivo de operaciones de exportación definitiva de mercancías con clave de pedimento “A1” del Apéndice 2 del Anexo 22 de las RGCE, deberá incorporársele el complemento que al efecto se publique en el Portal del SAT. En el citado complemento se deberá incluir el identificador fiscal del país de residencia para efectos fiscales del receptor del CFDI y, en su caso, del destinatario de la mercancía, o el identificador específico para cada país, que al efecto determine el SAT en su Portal. CFF 29, RGCE 3.1.38.
B48: Transmisión de información contenida en el CFDI 3.1.38. RGCE Para los efectos de los artículos 36 y 36-A, fracción II, inciso a) de la Ley, quienes exporten mercancías de manera definitiva con la clave de pedimento “A1”, del apéndice 2, contenido en el Anexo 22 y las mismas sean objeto de enajenación en términos del artículo 14 del CFF, deberán transmitir el archivo electrónico del CFDI y asentar en el campo correspondiente del pedimento, los números de folios fiscales de los CFDI. En el CFDI emitido conforme a los artículos 29 y 29-A del CFF, a que se refiere la presente regla, se deberán incorporar los datos contenidos en el complemento que al efecto publique el SAT en su Portal, en términos de la regla 2.7.1.19. de la RMF. En los casos en los que, en términos de la presente regla, se transmita el CFDI con los datos referidos en el párrafo anterior, excepto tratándose de pedimentos consolidados a que se refiere la regla 1.9.17., no será necesario efectuar la transmisión del acuse de valor señalado en la regla 1.9.16. Ley 36, 36-A, 59-A, 89, 102, CFF 14, 17-D, 17-E, 17-F, 17-G, 29, 29-A, RGCE 1.9.16., 1.9.17. Anexo 22, RMF 2.7.1.19.
B50: APÉNDICE 2 RGCE (CLAVES DE PEDIMENTO)
B51: A1 - IMPORTACIÓN O EXPORTACIÓN DEFINITIVA
B52: ● Entrada de mercancías de procedencia extranjera para permanecer en territorio nacional por tiempo ilimitado. ● Salida de mercancías del territorio nacional para permanecer en el extranjero por tiempo ilimitado. ● Importación definitiva de vehículos por misiones diplomáticas, consulares y oficinas de organismos internacionales, y su personal extranjero, conforme al “Acuerdo por el que se establecen las disposiciones de carácter general para la importación de vehículos en franquicia”, publicado en el DOF el 29 de agosto de 2007. ● Importación definitiva de vehículos nuevos y usados. ● Retorno de envases y empaques, etiquetas y folletos importados temporalmente al amparo de un Programa IMMEX, que se utilicen en la exportación de mercancía nacional. ● Importación definitiva de mercancías que se retiren de recinto fiscalizado estratégico, colindante con la aduana. ● Exportación definitiva de mercancías que se retiren de recinto fiscalizado estratégico colindante o no colindante con la aduana.

Sheet DESCRIPCIÓN (hidden)
B99: Sector primario RESICO persona física
B114: Factura global público en general

Sheet COMPLEMENTOCE (hidden)
B3: Nombre del campo | C3: Clave | D3: Descripción del catálogo | E3: Estandar complemento comercio exterior | F3: Guía de llenado del SAT
B4: Motivo Traslado | C4: 02 | D4: =IFERROR(VLOOKUP(C4,CATALOGO!$B$46:$C$51,2,FALSE),"") -> Reubicación de mercancías propias | E4: Atributo condicional que indica la clave del motivo por el cual en la exportación definitiva de mercancías con clave de pedimento A1, éstas no son objeto de enajenación o siéndolo sean a título gratuito, desde el domicilio del emisor hacia el domicilio del receptor o del destinatario. La clave del motivo es conforme con el catálogo c_MotivoTraslado publicado en el Portal del SAT en internet. | F4: Este campo únicamente deberá ser registrado cuando el CFDI sea de tipo “T” (Traslado). Para llenar este dato se deberá seleccionar alguno de los valores incluidos en el catálogo c_MotivoTraslado publicado en el Portal del SAT. Si el valor de este campo es “01” (Envío de mercancías facturadas con anterioridad) debe existir en el comprobante el nodo CfdiRelacionados en el cual en el campo TipoRelacion se debe ingresar la clave “05” (Traslados de mercancías facturados previamente) del catálogo c_TipoRelacion y en el nodo CfdiRelacionado se deberá ingresar en el campo UUID el folio fiscal del comprobante, mediante el cual se facturaron las mercancías. Si el valor de este campo es “05” (Envío de mercancías propiedad de terceros), debe existir por lo menos un nodo Propietario, en caso contrario el nodo Propietario no se debe registrar.
B6: Clave de pedimento | C6: A1 | D6: =IFERROR(VLOOKUP(C6,CATALOGO!$B$54:$C$54,2,FALSE),"") -> IMPORTACION O EXPORTACION DEFINITIVA | E6: Atributo requerido que indica la clave de pedimento que se haya declarado conforme al catálogo c_ClavePedimento publicado en el Portal del SAT en internet. | F6: Se debe registrar la clave de pedimento que se va a declarar. Para llenar este dato se debe registrar la clave “A1” del catálogo c_ClavePedimento publicado en el Portal del SAT
B7: Certificado de origen | E7: Atributo requerido para indicar la excepción de certificados de Origen de los Tratados de Libre Comercio que ha celebrado México con diversos países. 0 = No Funge como certificado de origen 1 = Funge como certificado de origen. | F7: Se debe registrar la excepción de certificados de Origen de los Tratados de Libre Comercio que ha celebrado México con diversos países. 0 = No Funge como certificado de origen. 1 = Funge como certificado de origen. * En caso de que se realicen exportaciones de mercancías en definitiva con clave de pedimento “A1”, y la factura no funja como el certificado de origen, se deberá registrar “0” y no registrarse el campo NumCertificadoOrigen. Ejemplo: CertificadoOrigen= 0 En caso de que se realicen exportaciones de mercancías en definitiva con clave de pedimento “A1” y se cuente con un certificado de origen, se deberá registrar “1” y registrar el campo NumCertificadoOrigen. Ejemplo: CertificadoOrigen= 1 Otros casos: Si se tiene más de un CertificadoOrigen se debe registrar “1” y en el campo NumCertificadoOrigen se deberá registrar aquel que corresponda al mayor número de mercancías a exportar. Si en el momento de emisión de la factura, no se conoce el campo NumCertificadoOrigen, se deberá registrar “0”. * Debe entenderse por “Funge como certificado” que el CFDI incluye el dato del certificado.
B9: Número de certificado de origen | E9: Atributo condicional para expresar el folio del certificado de origen o el folio fiscal del CFDI con el que se pagó la expedición del certificado de origen | F9: Se debe registrar el folio del certificado de origen o el folio fiscal del CFDI con el que se pagó la expedición del certificado de origen y puede conformarse desde 6 hasta 40 caracteres alfanuméricos, cuando el valor registrado en el campo CertificadoOrigen sea 1. Si se tiene más de un CertificadoOrigen se debe registrar aquel que corresponda al mayor número de mercancías a exportar. Ejemplo: NumCertificadoOrigen=A569874-35-a54ede92-418c45df-b8ce-462a0195de51 En caso de que el valor expresado en el campo CertificadoOrigen sea “0”, este dato no debe existi
B11: Número exportador confiable | E11: Atributo condicional que indica el número de exportador confiable, conforme al artículo 22 del Anexo 1 del Tratado de Libre Comercio con la Asociación Europea y a la Decisión de la Comunidad Europea | F11: Se debe registrar el número de exportador confiable, conforme al artículo 22 del Anexo 1 del Tratado de Libre Comercio con la Asociación Europea y a la Decisión de la Comunidad Europea y puede conformarse desde 1 hasta 50 caracteres alfanuméricos. Si la clave de país del receptor o del destinatario no corresponde a un país del catálogo c_Pais del comprobante fiscal, donde la columna Agrupación tenga el valor “Unión Europea”, este campo no debe registrarse. Ejemplo: NumeroExportadorConfiable= Az3Ññ&-wdctghnujk9\, ó A569874-35
B13: Incoterm | C13: DDP | D13: =IFERROR(VLOOKUP(C13,CATALOGO!B57:C67,2,FALSE),"") -> ENTREGADA DERECHOS PAGADOS (LUGAR DE DESTINO CONVENIDO). | E13: Atributo condicional que indica la clave del INCOTERM aplicable a la factura, conforme al catálogo c_INCOTERM publicado en el Portal del SAT en internet. | F13: Se debe registrar la clave del INCOTERM (Términos Internacionales de Comercio) aplicable a la factura, conforme al Apéndice 14 del Anexo 22 de las Reglas Generales de Comercio Exterior vigentes, cuando el campo Exportacion contenga la clave “02” (Definitiva con clave A1). Cuando el campo Exportacion contenga la clave “04” (Definitiva con clave distinta a A1 o cuando no existe enajenación en términos del CFF), este campo se debe omitir. Para llenar este dato se debe seleccionar alguno de los valores incluidos en el catálogo c_INCOTERM publicado en el Portal del SAT. Ejemplo: Incoterm= FC
B15: Observaciones | E15: Atributo opcional para ingresar información adicional | F15: En este campo se puede registrar información adicional, como alguna leyenda que deba incluir en el CFDI y puede conformarse desde 1 hasta 300 caracteres alfanuméricos.
B16: Tipo de cambio USD | E16: Atributo requerido que indica el número de pesos mexicanos que equivalen a un dólar de Estados Unidos de América, de acuerdo con el artículo 20 del Código Fiscal de la Federación. | F16: Se debe registrar el número en pesos mexicanos que equivalen a un dólar de Estados Unidos de América, de acuerdo al artículo 20 del Código Fiscal de la Federación. Ejemplo: TipoCambioUSD=18.3937
B17: Total USD | E17: Atributo requerido que indica el importe total del comprobante en dólares de Estados Unidos de América. | F17: Se debe registrar el importe total del comprobante en dólares de Estados Unidos de América. Es la suma de los campos ValorDolares de las mercancías, mismo que deberá registrarse con dos decimales. Ejemplo: TotalUSD= 122.50
B18: NODO: EMISOR | E18: Nodo opcional para capturar los datos complementarios del emisor del comprobante. | F18: En este nodo se deben registrar los datos complementarios del emisor del comprobante.
B19: CURP | E19: Atributo condicional para expresar la CURP del emisor del | F19: Se debe registrar la Clave Única del Registro de Población (CURP) del emisor del CFDI, cuando se trate de una persona física y debe contener 18 caracteres. En el caso de personas morales estas no cuentan con CURP, por tanto, no deben registrar este dato.
B20: NODO: DOMICILIO | E20: Nodo requerido para expresar el domicilio del emisor del comprobante. | F20: Nodo requerido para expresar el domicilio del emisor del comprobante.
B21: Calle | E21: Atributo requerido que sirve para precisar la calle en que está ubicado el domicilio del emisor del comprobante. | F21: Se debe registrar la calle, en la que se encuentra ubicado el domicilio del emisor del comprobante.
B22: No. exterior | E22: Atributo opcional que sirve para expresar el número exterior en donde se ubica el domicilio del emisor del comprobante. | F22: Se puede registrar el número exterior en donde se ubica el domicilio del emisor del comprobante.
B23: No.interior | E23: Atributo opcional que sirve para expresar el número interior, en caso de existir, en donde se ubica el domicilio del emisor del comprobante. | F23: Se puede registrar el número interior en donde se ubica el domicilio del emisor del comprobante.
B24: Colonia | E24: Atributo opcional que sirve para expresar la clave de la colonia en donde se ubica el domicilio del emisor del comprobante, conforme con el catálogo c_Colonia publicado en el Portal del SAT en internet. | F24: Se puede registrar la clave de la colonia en donde se ubica el domicilio del emisor del comprobante conforme al catálogo c_Colonia publicado en el Portal del SAT, esta clave numérica se compone de 4 posiciones, donde la columna c_CodigoPostal debe ser igual a la clave registrada en el campo CodigoPostal.
B25: Localidad | E25: Atributo opcional que sirve para precisar la clave de la ciudad, población, distrito u otro análogo en donde se ubica el domicilio del emisor del comprobante, conforme al catálogo c_Localidad publicado en el Portal del SAT en internet. | F25: Se puede registrar la clave de la ciudad, población, distrito u otra análoga en donde se ubica el domicilio del emisor del comprobante conforme al catálogo c_Localidad,publicado en el Portal del SAT, donde la columna clave de c_Estado debe ser igual a la clave registrada en el campo Estado.
B26: Referencia | E26: Atributo opcional para expresar una referencia geográfica adicional que permita una más fácil o precisa ubicación del domicilio del emisor del comprobante, por ejemplo las coordenadas GPS. | F26: Se puede registrar una referencia geográfica adicional que permita una más fácil o precisa ubicación del domicilio del emisor del comprobante, por ejemplo, coordenadas GPS.
B27: Municipio | E27: Atributo opcional que sirve para registrar el municipio, delegación o alcaldía, condado o dato análogo del domicilio del emisor del comprobante, conforme al catálogo c_Municipio publicado en el Portal del SAT en internet. | F27: Se puede registrar para precisar el municipio, delegación o alcaldía, condado o dato análogo en donde se encuentra ubicado el domicilio el emisor del comprobante, conforme al catálogo c_Municipio, donde la columna clave de c_Estado debe ser igual a la clave registrada en el campo Estado.
B28: Estado | E28: Atributo requerido para señalar la clave del estado en donde se encuentra ubicado el domicilio del emisor del comprobante, conforme al catálogo c_Estado publicado en el Portal del SAT en internet que está basado en la especificación ISO 3166-2. | F28: Se debe registrar la clave del estado en donde se encuentra ubicado el domicilio del emisor del comprobante, conforme al catálogo c_Estado, donde la columna c_Pais tiene el valor "MEX".
B29: País | E29: Atributo requerido que sirve para precisar la clave del país donde se encuentra ubicado el domicilio del emisor del comprobante, conforme al catálogo c_Pais publicado en el Portal del SAT en internet que está basado en la especificación ISO 3166-1. Debe tener el valor MEX. | F29: Se debe registrar la clave “MEX”.
B30: Código postal | E30: Atributo requerido que sirve para registrar la clave del código postal en donde se encuentra ubicado el domicilio del emisor del comprobante, conforme al catálogo c_CodigoPostal publicado en el Portal del SAT en internet. | F30: Se debe registrar la clave del código postal en donde se encuentra ubicado el domicilio del emisor del comprobante conforme al catálogo c_CodigoPostal publicado en Portal del SAT, donde la columna clave de c_Estado debe ser igual a la clave registrada en el campo Estado, la columna clave de c_Municipio debe ser igual a la clave registrada en el campo Municipio, y si existe el campo de Localidad, la columna clave de c_Localidad debe ser igual a la clave registrada en el campo Localidad. En caso que dentro del catálogo c_CodigoPostal, no se encuentre contenida información del código postal donde se ubica el domicilio del emisor del comprobante, se deberá ingresar la clave del código postal más cercana a dicho domicilio.
B31: NODO: PROPIETARIO | E31: Nodo condicional para capturar los datos del o los propietarios de la mercancía que se traslada y ésta no sea objeto de enajenación o siéndolo sea a título gratuito, cuando el emisor del CFDI es un tercero. | F31: En este nodo se deben expresar los datos del o de los propietarios de la mercancía que se traslada y que no es bjeto de enajenación, cuando el emisor del CFDI es un tercero, que opte por utilizar este complemento. No aplica en el caso de mercancías de exportación con clave de pedimento “A1” cuando éstas sean objeto de enajenación en términos del artículo 14 del Código Fiscal de la Federación. Si el valor del campo MotivoTraslado tiene un valor “05” (Envío de mercancías propiedad de terceros), debe existir por lo menos un nodo Propietario.
B33: Número de registro tributario | E33: Atributo requerido para incorporar el número de identificación o registro fiscal del país de residencia para efectos fiscales del propietario de la mercancía trasladada. | F33: Se debe registrar el número de identificación o registro fiscal del país de residencia para efectos fiscales del o de los propietarios de la mercancía trasladada y puede conformarse desde 6 a 40 caracteres. Dentro del catálogo de País se debe: • Identificar el país de residencia para efectos fiscales del o de los propietarios de la mercancía, registrado en el campo ResidenciaFiscal (propietario). • En caso de que en la columna Validación del Registro de Identidad Tributaria cuente con un mecanismo de verificación en línea, éste debe validarse contra el archivo de NumRegidTrib que publique el SAT. En caso de no contar con el mecanismo de verificación, debe cumplir con el patrón que se encuentra en la columna Formato de Registro de Identidad Tributaria del catálogo de país. Ejemplo: NumRegIdTrib= 756985236
B35: Residencial fiscal | E35: Atributo requerido para registrar la clave del país de residencia para efectos fiscales del propietario de la mercancía, conforme con el catálogo c_Pais publicado en el Portal del SAT en internet que está basado en la especificación ISO 3166-1. | F35: Se debe registrar la clave del país de residencia para efectos fiscales del o de los propietarios de la mercancía, conforme a alguno de los valores incluidos en el catálogo c_Pais. Ejemplo: Si la residencia fiscal del o de los propietarios de la mercancía fuera Afganistán, se deberá registrar lo siguiente: ResidenciaFiscal= AFG
B36: NODO: RECEPTOR | E36: Nodo condicional para capturar los datos complementarios del receptor del CFDI. | F36: En este nodo se deben capturar los datos del receptor del comprobante, excepto en el caso de que sea el mismo que el emisor.
B37: Número de registro tributario | E37: Atributo condicional para incorporar el número de identificación o registro fiscal del país de residencia para efectos fiscales del receptor del CFDI. | F37: Si el campo Rfc del nodo Receptor del nodo Comprobante contiene el valor “XEXX010101000” entonces, este campo debe contener un valor, en caso contrario, este campo no debe registrarse. Si existe información en este campo se debe validar: Se debe identificar el país de residencia para efectos fiscales del receptor, identificando la clave del país que se registró en el nodo Domicilio del nodo Receptor. Dentro del catálogo de País se debe: • En caso de que en la columna Validación del Registro de Identidad Tributaria cuente con un mecanismo de verificación en línea, éste debe validarse contra el archivo de NumRegidTrib que publique el SAT, en caso de no contar con el mecanismo de verificación, debe cumplir con el patrón que se encuentra en la columna Formato de Registro de Identidad Tributaria del catálogo de país.
B39: NODO: DOMICILIO | E39: Nodo requerido para expresar el domicilio del receptor del comprobante. | F39: Nodo requerido para expresar el domicilio del receptor del comprobante.
B40: Calle | E40: Atributo requerido que sirve para precisar la calle en la que está ubicado el domicilio del receptor del comprobante. | F40: Se debe registrar para indicar la calle, en la que se encuentra ubicado el domicilio del receptor del comprobante.
B41: No. exterior | E41: Atributo opcional que sirve para expresar el número exterior en donde se ubica el domicilio del receptor del comprobante. | F41: Se puede registrar el número exterior en donde se ubica el domicilio del receptor del comprobante.
B42: No.interior | E42: Atributo opcional que sirve para expresar el número interior, en caso de existir, en donde se ubica el domicilio del receptor del comprobante. | F42: Se puede registrar el número interior en donde se ubica el domicilio del receptor del comprobante.
B43: Colonia | E43: Atributo opcional que sirve para expresar la colonia o dato análogo en donde se ubica el domicilio del receptor del comprobante. | F43: Se puede registrar la clave de la colonia en donde se ubica el domicilio del receptor del comprobante, si la clave de país es diferente de “MEX” se debe registrar texto libremente. Si la clave del país es “MEX”, se debe registrar una clave numérica de 4 posiciones de acuerdo con el catálogo c_Colonia, donde la columna c_CodigoPostal debe ser igual a la clave registrada en el campo CodigoPostal, si el campo no tiene una clave numérica de 4 posiciones no se valida el contenido
B44: Localidad | E44: Atributo opcional que sirve para precisar la ciudad, población, otro dato análogo en donde se ubica el domicilio del receptor del comprobante. | F44: Se puede registrar para precisar la clave de la ciudad, población, distrito u otro análoga en donde se ubica el domicilio del receptor del comprobante. Si la clave del país es diferente de “MEX”, se debe registrar texto libremente. Si la clave del país es “MEX” se debe registrar una clave del catálogo de localidades (c_Localidad), publicado en el Portal del SAT, donde la columna clave de c_Estado debe ser igual a la clave registrada en el campo Estado
B45: Referencia | E45: Atributo opcional para registrar una referencia geográfica adicional que permita una más fácil o precisa ubicación del domicilio del receptor del comprobante, por ejemplo las coordenadas GPS. | F45: Se puede registrar una referencia geográfica adicional que permita una más fácil o precisa ubicación del domicilio del receptor del comprobante, por ejemplo,coordenadas GPS.
B46: Municipio | E46: Atributo opcional que sirve para registrar el municipio, delegación o alcaldía, condado o dato análogo en donde se encuentra ubicado el domicilio del receptor del comprobante. | F46: Se puede registrar para precisar el municipio, delegación, o alcaldía, condado otro dato análogo en donde se encuentra ubicado el domicilio del receptor del comprobante. Si la clave del país es diferente de “MEX”, se debe registrar texto libremente. Si la clave del país es “MEX” se debe registrar una clave del catálogo c_Municipio, donde la columna clave de c_Estado debe ser igual a la clave registrada en el campo Estado.
B47: Estado | E47: Atributo requerido para señalar el estado, entidad, región, comunidad u otra figura análoga en donde se encuentra ubicado el domicilio del receptor del comprobante. El catálogo se publica en el Portal del SAT en internet y será conforme con la especificación ISO 3166-2. | F47: Se debe registrar el estado, entidad, región, comunidad u otra figura análoga en donde se encuentra ubicado el domicilio del receptor del comprobante. Si la clave registrada en el campo Pais es "ZZZ" o la clave del país no existe, se debe registrar texto libremente. En cualquier otro caso debe contener una clave del catálogo c_Estado, donde la columna c_Pais sea igual a la clave del país registrada en el campo Pais.
B48: País | E48: Atributo requerido que sirve para precisar la clave del país donde se encuentra ubicado el domicilio del receptor del comprobante, conforme al catálogo c_Pais publicado en el Portal del SAT en internet que está basado en la especificación ISO 3166-1 | F48: Se debe registrar la clave del país donde se encuentra ubicado el domicilio del receptor del comprobante, conforme al catálogo c_Pais publicado en el Portal del SAT.
B49: Código postal | E49: Atributo requerido que sirve para registrar la clave del código postal en donde se encuentra ubicado el domicilio del receptor del comprobante, conforme al catálogo c_CodigoPostal publicado en el Portal del SAT en internet. | F49: Se debe registrar para asentar el código postal en donde se encuentra ubicado el domicilio del receptor del comprobante, es un campo de texto libre que puede conformarse desde 1 hasta 12 caracteres. Si la clave del país es distinta a “MEX”, y en el catálogo de países publicado en el Portal del SAT, se especifica un patrón para el formato del código postal en ese país el contenido de este campo debe cumplir con dicho patrón. Si la clave del país es “MEX”, se debe verificar el valor en el catálogo de códigos postales catCFDI:c_CodigoPostal, donde la columna c_Estado debe ser igual a la clave registrada en el campo Estado, la columna clave de c_Municipio debe ser igual a la clave registrada en el campo Municipio, y si existe el campo de Localidad, la columna clave de c_Localidad debe ser igual a la clave registrada en el campo Localidad, en caso de no existir clave registrada en localidad solo se debe verificar el valorde las columnas c_Estado y c_Municipio.
B50: NODO: DESTINATARIO | E50: Nodo opcional para capturar los datos del destinatario de la mercancía cuando éste sea distinto del receptor del CFDI. | F50: En este nodo se pueden expresar los datos del destinatario de la mercancía cuando este sea distinto del receptor del comprobante, o bien cuando el domicilio se trate de alguna sucursal. Si el tipo de comprobante es “T” (Traslado), solo se puede registrar un destinatario.
B51: Número de registro tributario | E51: Atributo opcional para incorporar el número de identificación o registro fiscal del país de residencia para efectos fiscales del destinatario de la mercancía exportada. | F51: Se puede registrar el número de identificación o registro fiscal, del país de residencia para efectos fiscales del destinatario de la mercancía exportada y puede conformarse desde 6 hasta 40 caracteres numéricos. Para ello dentro del catálogo c_Pais se debe: • Identificar el país para efectos fiscales del destinatario de la mercancía, registrado en el campo Pais del domicilio del destinatario. • Si existe valor en la columna de Formato de Registro de Identidad Tributaria y tiene mecanismo de verificación en línea, es decir, hay valor en la columna Validación del Registro de Identidad Tributaria, debe existir en el registro del país. • Si existe valor en la columna de Formato de Registro de Identidad Tributaria y no tiene mecanismo de verificación en línea, es decir, no hay valor en la columna Validación del Registro de Identidad Tributaria, debe cumplir con el patrón establecido en la columna Formato de Registro de Identidad Tributaria. • Si no existe valor en la columna de Formato de Registro de Identidad Tributaria, no se valida el contenido. Ejemplo: NumRegIdTrib= 756985236
B53: Nombre | E53: Atributo opcional para expresar el nombre completo, denominación o razón social del destinatario de la mercancía exportada. | F53: Se puede registrar el nombre completo, denominación o razón social del destinatario de la mercancía exportada, es un campo abierto y puede conformarse desde 1 hasta 300 caracteres alfanuméricos con espacio. Ejemplo: Nombre= EL COMERCIO USA INC
B54: NODO: DOMICILIO | E54: Nodo requerido para expresar el domicilio del receptor del comprobante. | F54: Nodo requerido para expresar el domicilio del receptor del comprobante.
B55: Calle | E55: Atributo requerido que sirve para precisar la calle en que está ubicado el domicilio del destinatario de la mercancía. | F55: Se debe registrar la calle en que está ubicado el domicilio del destinatario de la mercancía.
B56: No. exterior | E56: Atributo opcional que sirve para expresar el número exterior en donde se ubica el domicilio del destinatario de la mercancía. | F56: Se puede registrar el número exterior en donde se ubica el domicilio del destinatario de la mercancía.
B57: No.interior | E57: Atributo opcional que sirve para expresar el número interior, en caso de existir, en donde se ubica el domicilio del destinatario de la mercancía. | F57: Se puede registrar el número interior en donde se ubica el domicilio del destinatario de la mercancía.
B58: Colonia | E58: Atributo opcional que sirve para expresar la colonia o dato análogo en donde se ubica el domicilio del destinatario de la mercancía. | F58: Se puede registrar con caracteres alfanuméricos el nombre de la colonia o dato análogo en donde se ubica el domicilio del destinatario de la mercancía. En caso de que el país sea diferente de “MEX” se puede registrar texto libre y no se valida el campo. En caso de que la clave País sea “MEX”, se puede registrar una clave numérica de 4 posiciones de acuerdo con el catálogo c_Colonia, donde la columna c_CodigoPostal debe ser igual a la clave registrada en el campo CodigoPostal.
B59: Localidad | E59: Atributo opcional que sirve para precisar la ciudad, población, distrito u otro análogo en donde se ubica el domicilio del destinatario de la mercancía. | F59: Se puede registrar con caracteres alfanuméricos el nombre de la ciudad, población, distrito u otro análogo en donde se ubica el domicilio del destinatario de la mercancía. En caso de que el país sea diferente de “MEX” se puede registrar texto libre y no se valida el campo. En caso de que la clave País sea “MEX”, se debe registrar una clave del catálogo de c_Localidad, donde la columna clave de c_Estado debe ser igual a la clave registrada en el campo Estado.
B60: Referencia | E60: Atributo opcional para registrar una referencia geográfica adicional que permita una fácil o precisa ubicación del domicilio del destinatario de la mercancía, por ejemplo las coordenadas GPS. | F60: Se puede registrar la referencia geográfica adicional que permita una fácil o precisa ubicación del domicilio del destinatario de la mercancía, por ejemplo, las coordenadas GPS.
B61: Municipio | E61: Atributo opcional que sirve para precisar el municipio, delegación o alcaldía, condado o dato análogo en donde se encuentra ubicado el destinatario de la mercancía. | F61: Se puede registrar con caracteres alfanuméricos el nombre del municipio, delegación, alcaldía, condado o dato análogo en donde se encuentra ubicado el destinatario de la mercancía. En caso de que el país sea diferente de “MEX”, se debe registrar texto libre. En caso de que la clave Pais sea “MEX”, se debe registrar una clave del catálogo de municipios c_Municipio, donde la columna clave de c_Estado debe ser igual a la clave registrada en el campo Estado.
B62: Estado | E62: Atributo requerido para señalar el estado, entidad, región, comunidad u otra figura análoga en donde se encuentra ubicado el domicilio del destinatario de la mercancía. El catálogo se publica en el Portal del SAT en internet y es conforme con la especificación ISO 3166-2. | F62: Se debe registrar con caracteres alfanuméricos el nombre del estado, entidad, región, comunidad u otra figura análoga en donde se encuentra ubicado el destinatario de la mercancía. Si la clave del país es “ZZZ” o la clave del país no existe en la columna c_Pais del catálogo c_Estado, se debe registrar texto libre. En otro caso debe contener una clave del catálogo c_Estado, donde la columna c_Pais sea igual a la clave de país registrada en el campo Pais.
B63: País | E63: Atributo requerido que sirve para precisar la clave del país donde se encuentra ubicado el destinatario de la mercancía, conforme con el catálogo c_Pais publicado en el Portal del SAT en internet que está basado en la especificación ISO 3166-1. | F63: Se debe registrar la clave del Pais donde se encuentra ubicado el destinatario de la mercancía, conforme al catálogo c_Pais, publicado en el Portal del SAT, en caso de no existir el nombre del país dentro del catálogo, entonces se debe registrar la clave “ZZZ”.
B64: Código postal | E64: Atributo requerido que sirve para registrar el código postal en donde se encuentra ubicado el domicilio del destinatario de la mercancía | F64: Se debe registrar el código postal en donde se encuentra ubicado el domicilio del destinatario de la mercancía, es un campo abierto que puede conformarse desde 1 hasta 12 caracteres. En el caso de que la clave del país sea distinta de “MEX” y en el catálogo c_pais contenga un patrón para el código postal de ese país, el contenido de este campo debe cumplir con dicho patrón, si no se especifica un patrón para el formato del código postal en ese país, el campo debe existir y podrá ingresarse con texto libre no validándose su contenido. Si la clave del país es “MEX” se debe verificar el valor en el catálogo de c_CodigoPostal donde la columna c_Estado sea igual a la clave registrada en el campo Estado, la columna c_Municipio sea igual a la clave registrada en el campo Municipio y la columna c_Localidad sea igual a la clave registrada en el campo Localidad, en el caso de no existir la clave registrada en el campo Localidad solo se debe verificar el valor de las columnas c_Estado y c_Municipio.
B66: Mercancía | E66: Nodo requerido para capturar la información de la declaración de cada mercancía exportada. | F66: En este nodo se debe expresar la información de la declaración de cada mercancía exportada, tomando en consideración que: • La información registrada en el campo NoIdentificacion de la sección Concepto del comprobante fiscal se puede repetir. • Por cada Mercancia registrado en este nodo, debe existir al menos un concepto registrado en el comprobante fiscal y el NoIdentificacion debe ser igual a la información del concepto del comprobante fiscal. • No se deben repetir nodos Mercancias, donde el NoIdentificacion y la FraccionArancelaria sean iguales. • Para un comprobante de tipo “T” (Traslado) si no existe información en el campo CantidadAduana, entonces el campo de Cantidad del comprobante fiscal debe tener como valor mínimo incluyente "0.001", y debe cumplir con el patrón [0-9]{1,14}(.([0-9]{1,3}))? • El campo de Unidad del comprobante fiscal debe tener un valor del catálogo c_UnidadAduana. • El campo ValorUnitario del comprobante fiscal debe tener como valor mínimo incluyente "0.0001", debe cumplir con el patrón [0-9]{1,16}(.([0-9]{1,4}))? y debe estar registrado con la cantidad de decimales que soporte la moneda en la que se expresan las cantidades del comprobante.
B68: Número de identificación | E68: Atributo requerido que sirve para expresar el número de parte, la clave de identificación que asigna la empresa o el número de serie de la mercancía exportada. | F68: Se debe registrar el número de parte, la clave de identificación que asigna la empresa o el número de serie de la mercancía exportada, se puede utilizar el número de parte, número de serie, número de lote, etc Puede conformarse desde 1 hasta 100 caracteres alfanuméricos con espacio. • Se debe obtener la sumatoria del campo Importe del comprobante fiscal, donde los conceptos tengan el mismo NoIdentificacion de la mercancía, cuando el tipo de comprobante sea “I” (Ingreso) o “E” (Egreso) esta suma se debe convertir al tipo de moneda que se señale en el comprobante fiscal y contener valores mínimos y máximos. Para validar el cálculo del redondeo de este campo podrás consultar la documentación técnica publicada en el Portal del SAT. • Cuando el tipo de comprobante sea “I” (Ingreso) o “E” (Egreso) se debe obtener la suma de los campos ValorDolares de todas las mercancías que tengan el mismo NoIdentificacion del complemento y este sea igual al NoIdentificacion del concepto del comprobante fiscal, este importe debe ser mayor o igual al importe mínimo y menor o igual al importe máximo obtenido en el párrafo anterior. • Si existen más de un registro concepto con el mismo NoIdentificacion, entonces deben de existir los campos de CantidadAduana, UnidadAduana y ValorUnitarioAduana.
B70: Fracción arancelaria | C70: 0106410100 | D70: =IFERROR(VLOOKUP(C70,CATALOGO!$B$70:$F$11588,2,FALSE),"") -> Abejas | E70: Atributo condicional que sirve para expresar la clave de la fracción arancelaria correspondiente a la descripción de la mercancía exportada. Debe ser conforme al catálogo c_FraccionArancelaria publicado en el Portal del SAT en internet. | F70: Se puede registrar la fracción arancelaria correspondiente a la descripción de la mercancía exportada. Debe tener un valor vigente del catálogo c_FraccionArancelaria correspondiente a la descripción de la mercancía exportada. Cuando el valor registrado en el campo UnidadAduana del presente complemento tiene el valor “99” (SERVICIO) o el valor registrado en el campo ClaveUnidad sea “E48” (Unidad de servicio), entonces no se debe capturar este campo. Si existe el campo UnidadAduana, éste debe tener el valor especificado en el catálogo c_FraccionArancelaria columna UMT. Si no existe el campo UnidadAduana, el campo Unidad del concepto relacionado del comprobante fiscal donde el valor registrado en el campo NoIdentificacion es igual al del nodo Mercancia del complemento debe tener el valor especificado en el catálogo CFDI:c_FraccionArancelaria columna UMT. Si existe el valor "9801000100" (Importaciones o exportaciones de muestras y muestrarios) en alguno de los nodos Mercancia, entonces: • Se debe obtener la suma de los valores del campo Descuento del comprobante donde el valor capturado en el campo NoIdentificacion es el mismo, esta suma se debe convertir a la moneda en la que se expresa el comprobante, ésta debe ser mayor o igual a la suma de los valores del campo ValorDolares. Se debe obtener la suma de los valores del campo: ValorDolares donde el NoIdentificacion es igual y la FraccionArancelaria es "9801000100" y el NoIdentificacion sea igual al NoIdentificacion del concepto.
B72: Cantidad aduana | E72: Atributo opcional para precisar la cantidad de bienes en la aduana conforme a la UnidadAduana cuando en el nodo Comprobante:Conceptos:Concepto se hubiera registrado información comercial. | F72: Se puede registrar la cantidad de bienes en la aduana conforme a la Unidad de Medida de la Tarifa (UnidadAduana), cuando en el nodo Concepto del comprobante fiscal se hubiera registrado información comercial. Este campo se requiere cuando en el nodo Mercancia se incorporen valores en los campos ValorUnitarioAduana y UnidadAduana. Si se registra un valor en este campo debe existir información en el campo UnidadAduana y en el campo ValorUnitarioAduana. El valor mínimo es 0.001 Ejemplo: CantidadAduana= 5465.051 Nota: Se refiere a la cantidad correspondiente conforme a la Unidad de Medida Tarifa de la TIGIE, por lo que la información registrada en este campo, puede ser diferente a la información registrada en el campo Cantidad del nodo Conceptos del comprobante
B74: Unidad aduana | C74: 01 | D74: =IFERROR(VLOOKUP(C74,CATALOGO!$F$4:$G$26,2,FALSE),"") -> KILO | E74: Atributo condicional para precisar la clave de la unidad de medida aplicable para la cantidad expresada en la mercancía en la aduana, conforme al catálogo c_UnidadAduana publicado en el Portal del SAT en internet. | F74: Se puede registrar una clave especificada en el catálogo de unidades de medida (c_UnidadAduana) publicado en el Portal del SAT. Este dato deberá corresponder a la columna unidad de medida misma que corresponde a la Unidad de Medida de la Tarifa (UMT), dentro del catálogo c_FraccionArancelaria. Si el valor de este campo es distinto de “99” (SERVICIO), entonces el campo ValorUnitarioAduana debe ser mayor que cero. Si el valor de este campo es igual a “99” (SERVICIO) entonces el campo FraccionArancelaria no debe existir. Nota: Se refiere a la clave correspondiente a la unidad de medida de aplicación de la TIGIE, apéndice 7 del Anexo 22 de las Reglas Generales de Comercio Exterior vigentes, por lo que la información registrada en este campo puede ser diferente a la información registrada en el campo ClaveUnidad del nodo Conceptos del comprobante.
B76: Valor unitario aduana | E76: Atributo condicional para precisar el valor o precio unitario del bien en la aduana. Se expresa en dólares de Estados Unidos de América (USD), el cual puede estar registrado hasta con 6 decimales. | F76: Se puede registrar el valor o precio unitario de la mercancía en la aduana. Se expresa en dólares de Estados Unidos América (USD), el cual acepta caracteres numéricos con decimales indicados hasta seis posiciones decimales. Este campo debe ser mayor que cero cuando el valor registrado en el campo UnidadAduana sea distinto al valor “99” (SERVICIO). Ejemplo: ValorUnitarioAduana= 7896.265045 ó 698.009385
B78: Valor dolares | E78: Atributo requerido que indica el valor total en dólares de Estados Unidos de América (USD). | F78: Se debe registrar el valor total en dólares de Estados Unidos de América (USD). Para obtener el valor de este campo se deberá considerar alguno de los siguientes procedimientos: 1. Cuando los comprobantes fiscales con complemento para Comercio Exterior se emitan en moneda nacional, el valor del campo ValorDolares de cada mercancía, se debe calcular considerando los datos del comprobante, en este caso debe ser igual al importe de cada concepto del comprobante dividido por el tipo de cambio del complemento. 2. Cuando los comprobantes fiscales con complemento para Comercio Exterior se emitan en dólares americanos y en éstos se tengan diferencia entre los tipos de cambio, derivado de un acuerdo comercial, el valor del campo ValorDolares por cada mercancía, debe ser igual al importe de cada concepto del comprobante. Asimismo, para los comprobantes fiscales con complemento para Comercio Exterior que se emitan en dólares americanos, donde no existan diferencias entre el tipo de cambio pactado comercialmente y el publicado por el Banco de México, el valor del campo ValorDolares por cada mercancía, debe ser igual al importe de cada concepto del comprobante. Para los dos puntos previos, este valor deberá encontrarse entre los límites inferior y superior; los cuales se calculan con la información de campos CantidadAduana y ValorUnitarioAduana, respecto del número de decimales que tengan los campos Cantidad y ValorUnitario del comprobante. 3. Cuando los comprobantes fiscales con complemento para Comercio Exterior, se emitan en dos monedas distintas ya sea, Euro, Dólar canadiense, etc., el campo ValorDolares debe ser calculado usando la información comercial de la siguiente manera: 𝑉𝑎𝑙𝑜𝑟 𝐷ó𝑙𝑎𝑟es = Importe x TipoCambio TipoCambioUSD Asimismo, el valor obtenido de esta operación debe estar entre los límites inferior y superior, los cuales se calculan con la información de los tipos de cambio, tanto del comprobante como del complemento. La información aduanal registrada en el nodo Mercancias del complemento para Comercio Exterior es informativa para la revisión en la aduana. Cabe mencionar que el valor registrado en el campo Total USD del complemento debe corresponder con el campo Total del comprobante, en su caso considerando el Tipo de cambio USD. Para mayor información sobre las reglas de uso de este campo, referirse a la documentación técnica del complemento para Comercio Exterior. Cuando el campo ValorDolares sea “0” o “1” no se deben de aplicar las validaciones de los límites inferiores o superiores del campo NumIdentificacion.
B80: Descripción especifica | E80: Nodo opcional que indica la lista de descripciones específicas de la mercancía. Una mercancía puede tener más de una descripción específica. | F80: En este nodo se puede expresar la lista de descripciones específicas de la mercancía. Una mercancía puede tener más de una descripción específica.
B81: Marca | E81: Atributo requerido que indica la marca de la mercancía. | F81: Se debe registrar la marca de la mercancía, es un campo abierto y puede conformarse desde 1 hasta 35 caracteres alfanuméricos con espacio
B82: Modelo | E82: Atributo opcional que indica el modelo de la mercancía. | F82: Se puede registrar el modelo de la mercancía, es un campo abierto y puede conformarse desde 1 hasta 80 caracteres alfanuméricos con espacio.
B83: Sub modelo | E83: Atributo opcional que indica el submodelo de la mercancía | F83: Se puede registrar el submodelo de la mercancía, es un campo abierto y puede conformarse desde 1 hasta 50 caracteres alfanuméricos con espacios.
B84: No. de serie | E84: Atributo opcional que indica el número de serie de la mercancía | F84: Se puede registrar el número de serie de la mercancía, es un campo abierto y puede conformarse desde 1 hasta 40 caracteres alfanuméricos con espacio.

Sheet COMPLEVALES (hidden)
B4: Tipo de operación | C4: Atributo requerido para expresar el tipo de operación de acuerdo con el medio de pago.
B5: Número de cuenta | C5: Atributo requerido para expresar el numero de cuenta del adquiriente del monedero electrónico.
B6: Registro patronal | C6: Atributo opcional para expresar el registro patronal del adquirente del monedero electrónico.
B7: Total | C7: Atributo requerido para expresar el monto total de vales de despensa otorgados.
B8: Identificador | C8: Atributo requerido para expresar el identificador o numero del monedero electrónico.
B9: Fecha | C9: Atributo requerido para la expresión de la Fecha y hora de expedición de la operación reportada. Se expresa en la forma aaaa-mm-ddThh:mm:ss, de acuerdo con la especificación ISO8601.
B10: RFC beneficiario | C10: Atributo requerido para la expresión del Registro Federal de Contribuyentes del trabajador al que se le otorgó el monedero electrónico sin guiones o espacios
B11: CURP | C11: Atributo requerido para la expresión de la CURP del trabajador al que se le otorgó el monedero electrónico.
B12: Nombre | C12: Atributo requerido para la expresión del Nombre del trabajador al que se le otorgó el monedero electrónico sin guiones o espacios
B13: Número de seguridad social | C13: Atributo opcional para la expresión del número de seguridad social aplicable al trabajador.
B14: Importe | C14: Atributo requerido para expresar el importe del depósito efectuado al trabajador en el monedero electrónico.

Sheet COMPLECOM (hidden)
B4: Nombre del campo | C4: Clave | D4: Descripción del catálogo | E4: Estandar complemento
B5: Tipo de operación | E5: Atributo requerido para expresar el tipo de operación de acuerdo con el medio de pago.
B6: Número de cuenta | E6: Atributo requerido para expresar el número de cuenta del adquirente del monedero electrónico
B7: Subtotal | E7: Atributo requerido para representar la suma de todos los mportes tipo ConceptoEstadoDeCuentaCombustible.
B8: Total | E8: Atributo requerido para expresar el monto total de consumo de combustible.
B9: Fecha de la operación | E9: Atributo requerido para la expresión de la Fecha y hora de expedición de la operación reportada. Se expresa en la forma aaaa-mm-ddThh:mm:ss, de acuerdo con la especificación ISO8601.
B10: Folio de operación | E10: Atributo requerido para referir el número de folio de cada operación realizada por cada monedero electrónico.
B11: Clave de la estación | E11: Atributo requerido para expresar la clave de cliente de la estación de servicio, a 10 caracteres.
B12: RFC de la estación | E12: Atributo requerido del RFC del enajenante del combustible.
B13: Identificador | E13: Atributo requerido para la expresión del identificador o número del monedero electrónico.
B14: Tipo de combustible | C14: 5 | D14: =IFERROR(VLOOKUP(C14,CATALOGO!$H$86:$I$90,2,FALSE),"") -> Otros | E14: Atributo requerido para indicar la clave del tipo de combustible.
B15: Cantidad | E15: Atributo requerido para definir el volumen de combustible adquirido.
B16: Valor unitario | E16: Atributo requerido para definir el precio unitario del combustible adquirido.
B17: Importe | E17: Atributo requerido para definir el monto total de consumo de combustible. Debe ser equivalente al resultado de multiplicar la cantidad por el valor unitario, redondeado a centésimas.
B18: Elemento Traslado
B19: Impuesto | C19: IVA | E19: Atributo requerido para definir el tipo de impuesto trasladado.
B20: Tasa o cuota | E20: Atributo requerido para señalar la tasa o la cuota del impuesto que se traslada por cada concepto amparado en el comprobante. Cuando se registre un porcentaje, por ejemplo 16%, debe expresarse como 0.16 y no como 16.00
B21: Importe | E21: Atributo requerido para definir el importe o monto del impuesto trasladado

Sheet COMPLEMENTO (hidden)
B3: Comprobante
B5: Fecha de emisión | E5: Serie | H5: Folio
B8: Método de pago | C8: No debe de existir | E8: Forma de pago | F8: No debe de existir | H8: Moneda | I8: XXX | K8: Tipo de cambio | L8: No debe de existir
B10: Condiciones de pago | C10: No debe de existir | E10: Lugar de expedición | F10: 11410 | H10: Tipo de comprobante | I10: P = Pago | K10: Exportación | L10: 01 = No aplica
B12: Confirmación
B14: EMISOR
B16: RFC | E16: Nombre | H16: Régimen fiscal | K16: FacAtrAdquirente | L16: No debe de existir
B18: RECEPTOR
B20: RFC | E20: Nombre | H20: Régimen fiscal | K20: DomicilioFiscalReceptor | L20: 07000
B22: ResidenciaFiscal | E22: NumRegIdTrib | H22: Uso CFDI | I22: CP01
B24: NODO CONCEPTOS
B26: ClaveProdServ | C26: 84111506 | E26: NoIdentificacion | F26: No debe de existir | H26: Cantidad | I26: 1 | K26: ClaveUnidad | L26: ACT
B28: Unidad | C28: No debe de existir | E28: Descripcion | F28: Pago | H28: ValorUnitario | I28: 0 | K28: Importe | L28: =I26*I28 -> 0
B30: Descuento | C30: No debe de existir | E30: ObjetoImp | F30: 01
B32: Complemento de recepción de pagos
B34: Fecha de pago | E34: Forma de pago | H34: Moneda | K34: Tipo de cambio | N34: Monto
B36: No. de operación | E36: RFC beneficiario cuenta ordenante | H36: Nombre ordenante banco extranjero | K36: Cuenta ordenante
B38: RFC cuenta beneficiario | E38: Cuenta beneficiario
B40: Tipo de cadena de pago | E40: Certificado de pago | H40: Cadena de pago | K40: Sello de pago
B42: En este nodo se debe expresar el listado de los documentos relacionados con los pagos de la operación inicial. Por cada documento que se relacione se debe generar un nodo DoctoRelacionado.
B44: Id Documento | C44: Folio fiscal del CFDI que se cobra | E44: Serie Dr | H44: Folio Dr | K44: Moneda Dr | N44: Equivalencia Dr
E46: No. de parcialidad | H46: Nota: En el caso de capturar 1 en el campo importe saldo anterior debe de ir el importe total del comprobante.
B48: No. de parcialidad | C48: 2 | E48: Importe saldo anterior | H48: Importe pagado | K48: Importe saldo insoluto | N48: Objeto impuesto Dr | O48: 02=Sí objeto de impuesto.
B51: Nodo de impuestos trasladados
B53: Base | E53: Impuesto | H53: Tipo factor | K53: Tasa o cuota | N53: Importe

Sheet CARTAP (hidden)
B3: Elemento: CARTA PORTE
B4: Descripción
B5: Complemento para incorporar al Comprobante Fiscal Digital por Internet (CFDI), la información relacionada a los bienes y/o mercancías, ubicaciones de origen, puntos intermedios y destinos, así como lo referente al medio por el que se transportan; que circulen por vía terrestre, férrea, aérea o naveguen por vía marítima; además de incluir el traslado de hidrocarburos y petrolíferos.
B7: Nombre del campo | C7: Descripción | D7: Uso | E7: Tipo o tipo especial | F7: Valor prefijado
B8: Version | C8: Atributo requerido con valor prefijado en el cual se indica la versión del complemento Carta Porte. | D8: requerido | E8: String | F8: 3.1
B9: idCCP | C9: Atributo requerido para expresar los 36 caracteres del folio del complemento Carta Porte (IdCCP) de la transacción de timbrado conforme al estándar RFC 4122, para la identificación del CFDI con complemento Carta Porte. | D9: requerido | E9: xs:string
B10: TranspInternac | C10: Atributo requerido para expresar si los bienes y/o mercancías que son transportadas ingresan o salen del territorio nacional. | D10: requerido | E10: xs:string | F10: Sí No
B11: RegimenAduanero | C11: Atributo condicional para expresar el tipo de régimen que se encuentra asociado con el traslado de los bienes y/o mercancías de procedencia extranjera. | D11: opcional | E11: catCartaPorte:c_RegimenAduanero | G11: Se elimina y pasa a ser un elemento
B12: EntradaSalidaMerc | C12: Atributo condicional para precisar si los bienes y/o mercancías ingresan o salen del territorio nacional. | D12: opcional | E12: xs:string | F12: Entrada Salida
B13: PaisOrigenDestino | C13: Atributo condicional para registrar la clave del país de origen o destino de los bienes y/o mercancías que se trasladan a través de los distintos medios de transporte. | D13: opcional | E13: catCFDI:c_Pais
B14: ViaEntradaSalida | C14: Atributo condicional para registrar la vía de ingreso o salida de los bienes y/o mercancías en territorio nacional. | D14: opcional | E14: catCartaPorte:c_CveTransporte
B15: TotalDistRec | C15: Atributo condicional para indicar en kilómetros, la suma de las distancias recorridas, registradas en el atributo “DistanciaRecorrida”, para el traslado de los bienes y/o mercancías. | D15: opcional | E15: xs:decimal
B16: RegistroISTMO | C16: Atributo opcional para registrar las regiones, sí el traslado de los bienes y/o mercancías se realiza al interior de los Polos de Desarrollo para el Bienestar del istmo de Tehuantepec. | D16: opcional | E16: xs:string | F16: Sí
B17: UbicacionPoloOrigen | C17: Atributo condicional para registrar la región en donde inicia el traslado de los bienes y/o mercancias al interior de los Polos de Desarrollo para el Bienestar del istmo de Tehuantepec. | D17: opcional | E17: catCartaPorte:c_RegistroISTMO
B18: UbicacionPoloDestino | C18: Atributo condicional para registrar la región en donde termina el traslado de los bienes y/o mercancias al interior de los Polos de Desarrollo para el Bienestar del istmo de Tehuantepec. | D18: opcional | E18: catCartaPorte:c_RegistroISTMO
B20: Elemento: Regimenes aduaneros CCP
B21: Descripción | G21: Nuevo
B22: Nodo condicional para registrar los distintos tipos de regímenes aduaneros a los cuales se destinan los bienes y/o mercancías que se trasladan a través de los distintos medios de transporte.
B24: Nombre del campo | C24: Descripción | D24: Uso | E24: Tipo o tipo especial | F24: Valor prefijado o permitidos
B25: Regimen aduanero | C25: Atributo requerido para expresar el tipo de régimen aplicado por la aduana a los bienes y/o mercancías de procedencia extranjera. | D25: requerido | E25: catCartaPorte:c_RegimenAduanero | G25: Nuevo
B29: Elemento UBICACIÓN
B30: Descripción
B31: Nodo requerido para registrar la ubicación que sirve para indicar el domicilio del origen y/o destino parcial o final, que tienen los bienes y/o mercancías que se trasladan a través de los distintos medios de transporte.
B33: Nombre del campo | C33: Descripción | D33: Uso | E33: Tipo o tipo especial | F33: Valor prefijado o permitidos
B34: TipoUbicacion | C34: Atributo requerido para precisar si el tipo de ubicación corresponde al origen o destino de las ubicaciones para el traslado de los bienes y/o mercancías en los distintos medios de transporte. | D34: requerido | E34: xs:string | F34: Origen Destino
B35: IDUbicacion | C35: Atributo condicional para registrar una clave que sirva para identificar el punto de salida o entrada de los bienes y/o mercancías que se trasladan a través de los distintos medios de transporte, la cual estará integrada de la siguiente forma: para origen el acrónimo “OR” o para destino el acrónimo “DE” seguido de 6 dígitos numéricos asignados por el contribuyente que emite el comprobante para su identificación. | D35: opcional | E35: xs:string
B36: RFCRemitenteDestinatario | C36: Atributo requerido para registrar el RFC del remitente o destinatario de los bienes y/o mercancías que se trasladan a través de los distintos medios de transporte. | D36: requerido | E36: tdCFDI:t_RFC
B37: NombreRemitenteDestinatario | C37: Atributo opcional para registrar el nombre del remitente o destinatario de los bienes y/o mercancías que se trasladan a través de los distintos medios de transporte. | D37: opcional | E37: xs:string
B38: NumRegIdTrib | C38: Atributo condicional para registrar el número de identificación o registro fiscal del país de residencia, para los efectos fiscales del remitente o destinatario de los bienes y/o mercancías que se trasladan cuando se trate de residentes en el extranjero. | D38: opcional | E38: xs:string
B39: ResidenciaFiscal | C39: Atributo condicional para registrar la clave del país de residencia para efectos fiscales del remitente o destinatario de los bienes y/o mercancías, conforme el catálogo de CFDI c_Pais publicado en el portal del SAT en Internet de acuerdo a la especificación ISO 3166-1. | D39: opcional | E39: catCFDI:c_Pais
B40: NumEstacion | C40: Atributo condicional para registrar la clave de la estación de origen o destino para el traslado de los bienes y/o mercancías que se realiza a través de los distintos medios de transporte, esto de acuerdo al valor de la columna “Clave identificación” del catálogo c_Estaciones del complemento Carta Porte que permita asociarla al tipo de transporte. | D40: opcional | E40: catCartaPorte:c_Estaciones
B41: NombreEstacion | C41: Atributo condicional para registrar el nombre de la estación de origen o destino por la que se pasa para efectuar el traslado de los bienes y/o mercancías a través de los distintos medios de transporte, conforme al catálogo c_Estaciones del complemento Carta Porte. | D41: opcional | E41: xs:string
B42: NavegacionTrafico | C42: Atributo condicional para registrar el tipo de puerto de origen o destino en el cual se documentan los bienes y/o mercancías que se trasladan vía marítima. | D42: opcional | E42: xs:string | F42: Altura Cabotaje
B43: FechaHoraSalidaLlegada | C43: Atributo requerido para registrar la fecha y hora estimada en la que salen o llegan los bienes y/o mercancías de origen o al destino, respectivamente. Se expresa en la forma AAAA-MM-DDThh:mm:ss. | D43: requerido | E43: tdCFDI:t_FechaH
B44: TipoEstacion | C44: Atributo condicional para registrar el tipo de estación por el que pasan los bienes y/o mercancías durante su traslado a través de los distintos medios de transporte. | D44: opcional | E44: catCartaPorte:c_Estaciones
B45: DistanciaRecorrida | C45: Atributo condicional para registrar en kilómetros la distancia recorrida entre la ubicación de origen y la de destino parcial o final, por los distintos medios de transporte que trasladan los bienes y/o mercancías. | D45: opcional | E45: xs:decimal
B48: Elemento: DOMICILIO
B49: Descripción
B50: Nodo condicional para registrar información del domicilio de origen y/o destino de los bienes y/o mercancías que se trasladan a través de los distintos medios de transporte.
B52: Nombre del campo | C52: Descripción | D52: Uso | E52: Tipo o tipo especial | F52: Valor prefijado o permitidos
B53: Calle | C53: Atributo opcional para registrar la calle en la que está ubicado el domicilio de origen y/o destino de los bienes y/o mercancías que se trasladan en los distintos medios de transporte. | D53: opcional | E53: tdCFDI:t_Descrip100
B54: NumeroExterior | C54: Atributo opcional que sirve para registrar el número exterior del domicilio de origen y/o destino de los bienes y/o mercancías que se trasladan en los distintos medios del transporte. | D54: opcional | E54: tdCFDI:t_NumeroDomicilio
B55: NumeroInterior | C55: Atributo opcional que sirve para registrar el número interior, en caso de existir, del domicilio de origen y/o destino de los bienes y/o mercancías que se trasladan en los distintos medios de transporte. | D55: opcional | E55: tdCFDI:t_NumeroDomicilio
B56: Colonia | C56: Atributo opcional que sirve para registrar la clave de la colonia o dato análogo, del domicilio de origen y/o destino de los bienes y/o mercancías que se trasladan en los distintos medios de transporte. | D56: opcional | E56: tdCFDI:t_Descrip120
B57: Localidad | C57: Atributo opcional que sirve para registrar la ciudad, población, o dato análogo del domicilio de origen y/o destino de los bienes y/o mercancías que se trasladan en los distintos medios de transporte. | D57: opcional | E57: tdCFDI:t_Descrip120
B58: Referencia | C58: Atributo opcional para registrar una referencia geográfica adicional que permita una fácil o precisa ubicación del domicilio de origen y/o destino de los bienes y/o mercancías que se trasladan en los distintos medios de transporte; por ejemplo, las coordenadas del GPS. | D58: opcional | E58: tdCFDI:t_Referencia
B59: Municipio | C59: Atributo opcional que sirve para registrar el municipio, delegación o alcaldía, condado o dato análogo del domicilio de origen y/o destino de los bienes y/o mercancías que se trasladan en los distintos medios de transporte. | D59: opcional | E59: tdCFDI:t_Descrip120
B60: Estado | C60: Atributo requerido para registrar el estado, entidad, región, comunidad, o dato análogo en donde se encuentra ubicado el domicilio del origen y/o destino de los bienes y/o mercancías que se trasladan en los distintos medios de transporte. | D60: requerido | E60: xs:string
B61: Pais | C61: Atributo requerido que sirve para registrar la clave del país en donde se encuentra ubicado el domicilio del origen y/o destino de los bienes y/o mercancías que se trasladan en los distintos medios de transporte, conforme con el catálogo de c_Pais del CFDI, publicado en el portal del SAT en Internet de acuerdo a la especificación ISO 3166-1. | D61: requerido | E61: catCFDI:c_Pais
B62: CodigoPostal | C62: Atributo requerido para registrar el código postal en donde se encuentra el domicilio del origen y/o destino de los bienes y/o mercancías que se trasladan en los distintos medios de transporte. | D62: requerido | E62: xs:string
B65: Elemento: MERCANCÍA
B66: Descripción
B67: Nodo requerido para registrar la información de los bienes y/o mercancías que se trasladan en los distintos medios de transporte.
B69: Nombre del campo | C69: Descripción | D69: Uso | E69: Tipo o tipo especial | F69: Valor prefijado o permitidos
B70: PesoBrutoTotal | C70: Atributo requerido para registrar la suma del peso bruto total estimado de los bienes y/o mercancías que se trasladan en los distintos medios de transporte. | D70: requerido | E70: xs:decimal
B71: UnidadPeso | C71: Atributo requerido para registrar la clave de la unidad de medida estandarizada del peso de los bienes y/o mercancías que se trasladan a través de los distintos medios de transporte. | D71: requerido | E71: catCartaPorte:c_ClaveUnidadPeso
B72: PesoNetoTotal | C72: Atributo condicional para registrar la suma de los valores indicados en el atributo “PesoNeto” del nodo “DetalleMercancia”. | D72: opcional | E72: xs:decimal
B73: NumTotalMercancias | C73: Atributo requerido para registrar el número total de los bienes y/o mercancías que se trasladan en los distintos medios de transporte, identificándose por cada nodo "Mercancia" registrado en el complemento. | D73: requerido | E73: xs:int
B74: CargoPorTasacion | C74: Atributo opcional para expresar el monto del importe pagado por la tasación de los bienes y/o mercancías que se trasladan vía aérea. | D74: opcional | E74: tdCFDI:t_Importe
B75: LogisticaInversaRecoleccionDevolucion | C75: Atributo condicional para expresar si se hace uso de alguno de los servicios de logística inversa, recolección o devolución para el traslado de los bienes y/o mercancías. | D75: opcional | E75: xs:string | F75: Sí
B78: Elemento: MERCANCÍA
B79: Descripción
B80: Nodo requerido para registrar detalladamente la información de los bienes y/o mercancías que se trasladan en los distintos medios de transporte.
B82: Nombre del campo | C82: Descripción | D82: Uso | E82: Tipo o tipo especial | F82: Valor prefijado o permitidos
B83: BienesTransp | C83: Atributo requerido para registrar la clave de producto de los bienes y/o mercancías que se trasladan en los distintos medios de transporte. | D83: requerido | E83: catCartaPorte:c_ClaveProdServCP
B84: ClaveSTCC | C84: Atributo opcional para expresar la clave de producto de la STCC (por sus siglas en inglés, Standard Transportation Commodity Code), cuando el medio de transporte utilizado para el traslado de los bienes y/o mercancías sea ferroviario. | D84: opcional | E84: xs:string
B85: Descripcion | C85: Atributo requerido para detallar las características de los bienes y/o mercancías que se trasladan en los distintos medios de transporte. | D85: requerido | E85: xs:string
B86: Cantidad | C86: Atributo requerido para expresar la cantidad total de los bienes y/o mercancías que se trasladan a través de los distintos medios de transporte. | D86: requerido | E86: xs:decimal
B87: ClaveUnidad | C87: Atributo requerido para registrar la clave de la unidad de medida estandarizada aplicable para la cantidad de los bienes y/o mercancías que se trasladan en los distintos medios de transporte. La unidad debe corresponder con la descripción de los bienes y/o mercancías registrados. | D87: requerido | E87: catCFDI:c_ClaveUnidad
B88: Unidad | C88: Atributo opcional para registrar la unidad de medida propia para la cantidad de los bienes y/o mercancías que se trasladan a través de los distintos medios de transporte. La unidad debe corresponder con la descripción de los bienes y/o mercancías. | D88: opcional | E88: xs:string
B89: Dimensiones | C89: Atributo opcional para expresar las medidas del empaque de los bienes y/o mercancías que se trasladan en los distintos medios de transporte. Se debe registrar la longitud, la altura y la anchura en centímetros o en pulgadas, separados dichos valores con una diagonal, i.e. 30/40/30cm. | D89: opcional | E89: xs:string
B90: MaterialPeligroso | C90: Atributo condicional para precisar que los bienes y/o mercancías que se trasladan son considerados o clasificados como material peligroso. | D90: opcional | E90: xs:string
B91: CveMaterialPeligroso | C91: Atributo condicional para indicar la clave del tipo de material peligroso que se transporta de acuerdo a la NOM-002-SCTSEMAR-ARTF/2023, o la que la sustituya. | D91: opcional | E91: catCartaPorte:c_MaterialPeligroso | G91: Se actualiza el cambio descripción
B92: Embalaje | C92: Atributo condicional para precisar la clave del tipo de embalaje que se requiere para transportar el material o residuo peligroso. | D92: opcional | E92: catCartaPorte:c_TipoEmbalaje
B93: DescripEmbalaje | C93: Atributo opcional para expresar la descripción del embalaje de los bienes y/o mercancías que se trasladan y que se consideran material o residuo peligroso. | D93: opcional | E93: xs:string
B94: SectorCOFEPRIS | C94: Atributo opcional para expresar la clasificación del producto que se traslada a través de los distintos medios de transporte y que debe contar con autorización por la autoridad correspondiente. | D94: opcional | E94: catCartaPorte:c_SectorCOFEPRIS
B95: NombreIngredienteActivo | C95: Atributo condicional para expresar el nombre común del ingrediente activo de los precursores, químicos de uso dual, plaguicidas o fertilizantes que se trasladan a través de los distintos medios de transporte. | D95: opcional | E95: xs:string
B96: NomQuimico | C96: Atributo condicional para expresar el nombre de la sustancia activa de los precursores, químicos de uso dual o sustancias tóxicas que se traslada a través de los distintos medios de transporte. | D96: opcional | E96: xs:string
B97: DenominacionGenericaProd | C97: Atributo condicional para expresar el fármaco o la sustancia activa del medicamento, psicotrópico o estupefaciente que se traslada a través de los distintos medios de transporte. | D97: opcional | E97: xs:string
B98: DenominacionDistintivaProd | C98: Atributo condicional para expresar la marca con la que se comercializa el producto o nombre que le asigna el laboratorio o fabricante a sus especialidades farmacéuticas con el fin de distinguirlas de otras similares del medicamento, psicotrópico o estupefaciente que se traslada a través de los distintos medios de transporte. | D98: opcional | E98: xs:string
B99: Fabricante | C99: Atributo condicional para expresar el nombre o razón social del establecimiento que realiza la fabricación o manufactura del medicamento, precursor, químico de uso dual, psicotrópico o estupefaciente que se traslada a través de los distintos medios de transporte. | D99: opcional | E99: xs:string
B100: FechaCaducidad | C100: Atributo condicional para registrar la fecha de caducidad del medicamento, psicotrópico o estupefaciente; o para expresar la fecha de reanálisis del precursor o químico de uso dual que se traslada a través de los distintos medios de transporte. Se expresa en la forma AAAA-MM-DD. | D100: opcional | E100: tdCFDI:t_Fecha
B101: LoteMedicamento | C101: Atributo condicional para expresar la denominación que identifica y confiere trazabilidad del medicamento, precursor, químico de uso dual, psicotrópico o estupefaciente elaborado en un ciclo de producción, bajo condiciones equivalentes de operación y durante un periodo. | D101: opcional | E101: xs:string
B102: FormaFarmaceutica | C102: Atributo condicional para expresar la forma farmacéutica o mezcla del medicamento, precursor, químico de uso dual, psicotrópico o estupefaciente que presenta ciertas características físicas para su adecuada dosificación, conservación y administración. | D102: opcional | E102: catCartaPorte:c_FormaFarmaceutica
B103: CondicionesEspTransp | C103: Atributo condicional para expresar la condición en la cual es necesario mantener el medicamento, precursor, químico de uso dual, psicotrópicos o estupefacientes durante el traslado y almacenamiento. | D103: opcional | E103: catCartaPorte:c_CondicionesEspeciales
B104: RegistroSanitarioFolioAutorizacion | C104: Atributo condicional para expresar el registro sanitario o folio de autorización con el que cuenta la empresa para el traslado del medicamento, psicotrópico o estupefaciente. | D104: opcional | E104: xs:string
B105: PermisoImportacion | C105: Atributo condicional para registrar el folio del permiso de importación con el que cuenta el medicamento, precursor, químico de uso dual, psicotrópico o estupefaciente. | D105: opcional | E105: xs:string
B106: FolioImpoVUCEM | C106: Atributo condicional para registrar el número de folio de importación VUCEM para la identificación del documento, para el traslado de medicamentos, precursores o químicos de uso dual, sustancias tóxicas, plaguicidas o fertizantes. | D106: opcional | E106: xs:string
B107: NumCAS | C107: Atributo condicional para expresar el número Chemical Abstracts Service (CAS) con el que se identifica el compuesto químico de la sustancia tóxica. | D107: opcional | E107: xs:string
B108: RazonSocialEmpImp | C108: Atributo condicional para expresar el nombre o razón social de la empresa importadora de las sustancias tóxicas. | D108: opcional | E108: xs:string
B109: NumRegSanPlagCOFEPRIS | C109: Atributo condicional para expresar el número de registro sanitario para plaguicidas o fertilizantes cuya importación, comercialización y uso están permitidos en México, mismo que emite la Comisión Intersecretarial para el Control del Proceso y Uso de Plaguicidas, Fertilizantes y Sustancias Tóxicas (CICLOPLAFEST). | D109: opcional | E109: xs:string
B110: DatosFabricante | C110: Atributo condicional para registrar el país y nombre o razón social de quien produce o fabrica el ingrediente activo del plaguicida o fertilizante. | D110: opcional | E110: xs:string
B111: DatosFormulador | C111: Atributo condicional para registrar el país y nombre o razón social de quien formula el ingrediente activo del plaguicida o fertilizante. | D111: opcional | E111: xs:string
B112: DatosMaquilador | C112: Atributo condicional para registrar el país y nombre o razón social de quien maquila el ingrediente activo del plaguicida o fertilizante. | D112: opcional | E112: xs:string
B113: UsoAutorizado | C113: Atributo condicional para registrar el uso autorizado del plaguicida o fertilizante de acuerdo a la regulación del país. | D113: opcional | E113: xs:string
B114: PesoEnKg | C114: Atributo requerido para indicar en kilogramos el peso estimado de los bienes y/o mercancías que se trasladan en los distintos medios de transporte. | D114: requerido | E114: xs:decimal
B115: ValorMercancia | C115: Atributo condicional para expresar el monto del valor de los bienes y/o mercancías que se trasladan en los distintos medios de transporte, de acuerdo al valor mercado, al valor pactado en la contraprestación o bien al valor estimado que determine el contribuyente. | D115: opcional | E115: tdCFDI:t_Importe
B116: Moneda | C116: Atributo condicional para identificar la clave de la moneda utilizada para expresar el valor de los bienes y/o mercancías que se trasladan en los distintos medios de transporte. Cuando se usa moneda nacional se registra MXN, de acuerdo a la especificación ISO 4217. | D116: opcional | E116: catCFDI:c_Moneda
B117: FraccionArancelaria | C117: Atributo opcional que sirve para expresar la clave de la fracción arancelaria que corresponde con la descripción de los bienes y/o mercancías que se trasladan en los distintos medios de transporte. | D117: opcional | E117: catComExt:c_FraccionArancelaria | G117: Pasa de condicional a opcional
B118: UUIDComercioExt | C118: Atributo opcional para expresar el folio fiscal (UUID) del comprobante de comercio exterior que se relaciona. | D118: opcional | E118: xs:string
B119: TipoMateria | C119: Atributo condicional para expresar el estado de la materia o producto al realizar una operación de comercio exterior a través de los distintos medios de transporte. | D119: opcional | E119: catCartaPorte:c_TipoMateria
B120: DescripcionMateria | C120: Atributo condicional para expresar la descripción del estado de la materia o producto al realizar una operación de comercio exterior a través de los distintos medios de transporte. | D120: opcional | E120: xs:string
B123: Elemento: DOCUMENTACION ADUANERA
B124: Descripción
B125: Nodo condicional para registrar la información del(los) documento(s) aduanero(s) que se encuentra(n) asociado(s) al traslado de los bienes y/o mercancías por los distintos medios de transporte de procedencia extranjera para acreditar la legal estancia o tenencia durante su traslado en territorio nacional.
B127: Nombre del campo | C127: Descripción | D127: Uso | E127: Tipo o tipo especial | F127: Valor prefijado o permitidos
B128: TipoDocumento | C128: Atributo requerido para expresar el tipo de documento aduanero que se encuentra asociado al traslado de los bienes y/o mercancías de procedencia extranjera durante su traslado en territorio nacional. | D128: requerido | E128: catCartaPorte:c_DocumentoAduanero
B129: NumPedimento | C129: Atributo condicional para expresar el número de pedimento de importación que se encuentra asociado con el traslado de los bienes y/o mercancías de procedencia extranjera para acreditar la legal estancia y tenencia durante su traslado en territorio nacional, el cual se expresa en el siguiente formato: últimos 2 dígitos del año de validación seguidos por dos espacios, 2 dígitos de la aduana de despacho seguidos por dos espacios, 4 dígitos del número de la patente seguidos por dos espacios, 1 dígito que corresponde al último dígito del año en curso, salvo que se trate de un pedimento consolidado iniciado en el año inmediato anterior o del pedimento original de una rectificación, seguido de 6 dígitos de la numeración progresiva por aduana. | D129: opcional | E129: xs:string
B130: IdentDocAduanero | C130: Atributo condicional para expresar el identificador o folio del documento aduanero que se encuentra asociado al traslado de los bienes y/o mercancías de procedencia extranjera para acreditar la legal estancia o tenencia durante su traslado en territorio nacional. | D130: opcional | E130: xs:string
B131: RFCImpo | C131: Atributo condicional para expresar el RFC del importador de los bienes y/o mercancías que fue registrado en la documentación aduanera correspondiente y este se encuentre en la lista de RFC inscritos no cancelados del SAT (l_RFC). | D131: opcional | E131: tdCFDI:t_RFC
B134: Elemento: GUIAS DE IDENTIFICACION
B135: Descripción
B136: Nodo condicional para registrar la información del(los) número(s) de guía(s) que se encuentre(n) asociado(s) al(los) paquete(s) que se traslada(n) dentro del territorio nacional.
B138: Nombre del campo | C138: Descripción | D138: Uso | E138: Tipo o tipo especial | F138: Valor prefijado o permitidos
B139: NumeroGuiaIdentificacion | C139: Atributo requerido para expresar el número de guía de cada paquete que se encuentra asociado con el traslado de los bienes y/o mercancías en territorio nacional. | D139: requerido | E139: xs:string
B140: DescripGuiaIdentificacion | C140: Atributo requerido para expresar la descripción del contenido del paquete o carga registrada en la guía, o en el número de identificación, que se encuentra asociado con el traslado de los bienes y/o mercancías dentro del territorio nacional. | D140: requerido | E140: xs:string
B141: PesoGuiaIdentificacion | C141: Atributo requerido para indicar en kilogramos, el peso del paquete o carga que se está trasladando en territorio nacional y que se encuentra registrado en la guía o el número de identificación correspondiente. | D141: requerido | E141: xs:decimal
B144: Elemento: CANTIDAD TRANSPORTADA
B145: Descripción
B146: Nodo opcional para registrar la cantidad de los bienes y/o mercancías que se trasladan a través de los distintos medios de transporte, que será captada o distribuida en distintos puntos, a fin de identificar el punto de origen y destino correspondiente.
B148: Nombre del campo | C148: Descripción | D148: Uso | E148: Tipo o tipo especial | F148: Valor prefijado o permitidos
B149: Cantidad | C149: Atributo requerido para expresar el número de bienes y/o mercancías que se trasladan en los distintos medios de transporte. | D149: requerido | E149: xs:decimal
B150: IDOrigen | C150: Atributo requerido para expresar la clave del identificador del origen de los bienes y/o mercancías que se trasladan por los distintos medios de transporte, de acuerdo al valor registrado en el atributo “IDUbicacion”, del nodo “Ubicacion”. | D150: requerido | E150: xs:string
B151: IDDestino | C151: Atributo requerido para registrar la clave del identificador del destino de los bienes y/o mercancías que se trasladan a través de los distintos medios de transporte, de acuerdo al valor registrado en el atributo “IDUbicacion”, del nodo “Ubicacion”. | D151: requerido | E151: xs:string
B152: CvesTransporte | C152: Atributo condicional para indicar la clave a través de la cual se identifica el medio por el que se transportan los bienes y/o mercancías. | D152: opcional | E152: catCartaPorte:c_CveTransporte
B155: Elemento: DETALLE MERCANCIA
B156: Descripción
B157: Nodo condicional para registrar especificaciones de los bienes y/o mercancías que se trasladan a través de los distintos medios de transporte.
B159: Nombre del campo | C159: Descripción | D159: Uso | E159: Tipo o tipo especial | F159: Valor prefijado o permitidos
B160: UnidadPesoMerc | C160: Atributo requerido para registrar la clave de la unidad de medida estandarizada del peso de los bienes y/o mercancías que se trasladan en los distintos medios de transporte. | D160: requerido | E160: catCartaPorte:c_ClaveUnidadPeso
B161: PesoBruto | C161: Atributo requerido para registrar el peso neto total de los bienes y/o mercancías que se trasladan en los distintos medios de transporte. | D161: requerido | E161: xs:decimal
B162: PesoTara | C162: Atributo requerido para registrar el peso bruto, menos el peso neto de los bienes y/o mercancías que se trasladan a través de los distintos medios de transporte. | D162: requerido | E162: xs:decimal
B163: NumPiezas | C163: Atributo opcional para registrar el número de piezas de los bienes y/o mercancías que se trasladan en los distintos medios de transporte. | D163: opcional | E163: xs:int
B166: Elemento: AUTOTRANSPORTE
B167: Descripción
B168: Nodo condicional para registrar la información que permita la identificación del autotransporte de carga, por medio del cual se trasladan los bienes y/o mercancías, que transitan a través de las carreteras del territorio nacional.
B170: Nombre del campo | C170: Descripción | D170: Uso | E170: Tipo o tipo especial | F170: Valor prefijado o permitidos
B171: PermSCT | C171: Atributo requerido para registrar la clave del tipo de permiso proporcionado por la Secretaría de Infraestructura, Comunicaciones y Transportes (SICT) o la autoridad análoga, el cual debe corresponder con el tipo de autotransporte utilizado para el traslado de los bienes y/o mercancías de acuerdo al catálogo correspondiente. | D171: requerido | E171: catCartaPorte:c_TipoPermiso
B172: NumPermisoSCT | C172: Atributo requerido para registrar el número del permiso otorgado por la Secretaría de Infraestructura, Comunicaciones y Transportes (SICT) o la autoridad correspondiente, al autotransporte utilizado para el traslado de los bienes y/o mercancías. | D172: requerido | E172: xs:string
B175: Elemento: IdentificacionVehicular
B176: Descripción
B177: Nodo requerido para registrar los datos de identificación del autotransporte en el que se trasladan los bienes y/o mercancías.
B179: Nombre del campo | C179: Descripción | D179: Uso | E179: Tipo o tipo especial | F179: Valor prefijado o permitidos
B180: ConfigVehicular | C180: Atributo requerido para expresar la clave de nomenclatura del autotransporte que es utilizado para transportar los bienes y/o mercancías. | D180: requerido | E180: catCartaPorte:c_ConfigAutotransporte
B181: PesoBrutoVehicular | C181: Atributo requerido para registrar el peso bruto total de los bienes y/o mercancías que se trasladan a través de los diferentes medios de transporte. | D181: requerido | E181: xs:decimal | G181: Cambio la descripción
B182: PlacaVM | C182: Atributo requerido para registrar solo los caracteres alfanuméricos, sin guiones ni espacios de la placa vehicular del autotransporte que es utilizado para transportar los bienes y/o mercancías. | D182: requerido | E182: xs:string
B183: AnioModeloVM | C183: Atributo requerido para registrar el año del autotransporte que es utilizado para transportar los bienes y/o mercancías. | D183: requerido | E183: xs:int
B186: Elemento: SEGUROS
B187: Descripción
B188: Nodo requerido para registrar los datos de las pólizas de seguro que cubren los riesgos en el traslado de los bienes y/o mercancías.
B190: Nombre del campo | C190: Descripción | D190: Uso | E190: Tipo o tipo especial | F190: Valor prefijado o permitidos
B191: AseguraRespCivil | C191: Atributo requerido para registrar el nombre de la aseguradora que cubre los riesgos por responsabilidad civil del autotransporte utilizado para el traslado de los bienes y/o mercancías. | D191: requerido | E191: xs:string
B192: PolizaRespCivil | C192: Atributo requerido para registrar el número de póliza asignado por la aseguradora, que cubre los riesgos por responsabilidad civil del autotransporte utilizado para el traslado de los bienes y/o mercancías. | D192: requerido | E192: xs:string
B193: AseguraMedAmbiente | C193: Atributo condicional para registrar el nombre de la aseguradora, que cubre los posibles daños al medio ambiente cuando exista al menos una mercancía tipificada como material peligroso se debe registrar la información del atributo “AseguraMedAmbiente” (aplicable para los transportistas de materiales, residuos o remanentes y desechos peligrosos. | D193: opcional | E193: xs:string
B194: PolizaMedAmbiente | C194: Atributo condicional para registrar el número de póliza asignado por la aseguradora, que cubre los posibles daños al medio ambiente cuando exista al menos una mercancía tipificada como material peligroso se debe registrar la información del atributo “AseguraMedAmbiente” (aplicable para los transportistas de materiales, residuos o remanentes y desechos peligrosos). | D194: opcional | E194: xs:string
B195: AseguraCarga | C195: Atributo opcional para registrar el nombre de la aseguradora que cubre los riesgos de la carga (bienes y/o mercancías) del autotransporte utilizado para el traslado. | D195: opcional | E195: xs:string
B196: PolizaCarga | C196: Atributo opcional para expresar el número de póliza asignado por la aseguradora que cubre los riesgos de la carga (bienes y/o mercancías) del autotransporte utilizado para el traslado. | D196: opcional | E196: xs:string
B197: PrimaSeguro | C197: Atributo opcional para registrar el valor del importe por el cargo adicional convenido entre el transportista y el cliente, el cual será igual al valor de la prima del seguro contratado, conforme a lo establecido en la cláusula novena del Acuerdo por el que se homologa la Carta de Porte regulada por la Ley de Caminos, Puentes y Autotransporte Federal, con el complemento Carta Porte que debe acompañar al Comprobante Fiscal Digital por Internet (CFDI). | D197: opcional | E197: tdCFDI:t_Importe
B200: Elemento: REMOLQUES
B201: Descripción
B202: Nodo condicional para registrar los datos del(los) remolque(s) o semirremolque(s) que se adaptan al autotransporte para realizar el traslado de los bienes y/o mercancías.
B204: Nombre del campo | C204: Descripción | D204: Uso | E204: Tipo o tipo especial | F204: Valor prefijado o permitidos
B205: SubTipoRem | C205: Atributo requerido para expresar la clave del subtipo de remolque o semirremolques que se emplean con el autotransporte para el traslado de los bienes y/o mercancías. | D205: requerido | E205: catCartaPorte:c_SubTipoRem
B206: Placa | C206: Atributo requerido para registrar los caracteres alfanuméricos, sin guiones ni espacios de la placa vehicular del remolque o semirremolque que es utilizado para transportar los bienes y/o mercancías. | D206: requerido | E206: xs:string
B209: Elemento: TRANSPORTEMARITIMO
B210: Descripción
B211: Nodo condicional para registrar la información que permita la identificación de la embarcación a través de la cual se trasladan los bienes y/o mercancías por vía marítima.
B213: Nombre del campo | C213: Descripción | D213: Uso | E213: Tipo o tipo especial | F213: Valor prefijado o permitidos
B214: PermSCT | C214: Atributo opcional para registrar la clave del permiso proporcionado por la Secretaría de Infraestructura, Comunicaciones y Transportes (SICT), la cual debe corresponder con la embarcación que se está utilizando para el traslado de los bienes y/o mercancías, de acuerdo al catálogo correspondiente. | D214: opcional | E214: catCartaPorte:c_TipoPermiso
B215: NumPermisoSCT | C215: Atributo opcional para registrar el número del permiso otorgado por la Secretaría de Infraestructura, Comunicaciones y Transportes (SICT), a la embarcación utilizada para el traslado de los bienes y/o mercancías. | D215: opcional | E215: xs:string
B216: NombreAseg | C216: Atributo opcional para registrar el nombre de la aseguradora que cubre la protección e indemnización por responsabilidad civil de la embarcación en el traslado de los bienes y/o mercancías. | D216: opcional | E216: xs:string
B217: NumPolizaSeguro | C217: Atributo opcional para registrar el número de póliza asignada por la aseguradora que cubre la protección e indemnización por responsabilidad civil de la embarcación en el traslado de los bienes y/o mercancías. | D217: opcional | E217: xs:string
B218: TipoEmbarcacion | C218: Atributo requerido para registrar la clave de identificación del tipo de embarcación que es utilizado para trasladar los bienes y/o mercancías. | D218: requerido | E218: catCartaPorte:c_ConfigMaritima
B219: Matricula | C219: Atributo requerido para registrar el número de la matrícula o registro de la embarcación que es utilizada para transportar los bienes y/o mercancías. | D219: requerido | E219: xs:string
B220: NumeroOMI | C220: Atributo requerido para registrar el número de identificación asignado por la Organización Marítima Internacional, a la embarcación encargada de transportar los bienes y/o mercancías. | D220: requerido | E220: xs:string
B221: AnioEmbarcacion | C221: Atributo opcional para registrar el año de la embarcación en la que se transportan los bienes y/o mercancías. | D221: opcional | E221: xs:int
B222: NombreEmbarc | C222: Atributo opcional para registrar el nombre de la embarcación en la que se realiza el traslado de los bienes y/o mercancías. | D222: opcional | E222: xs:string
B223: NacionalidadEmbarc | C223: Atributo requerido para registrar la clave del país correspondiente a la nacionalidad de la embarcación que transporta los bienes y/o mercancías. | D223: requerido | E223: catCFDI:c_Pais
B224: UnidadesDeArqBruto | C224: Atributo requerido para registrar el valor de las unidades de arqueo bruto conforme a las medidas internacionales definidas por el ITC para cada tipo de buque o embarcación en la que se transportan los bienes y/o mercancías. | D224: requerido | E224: xs:decimal
B225: TipoCarga | C225: Atributo requerido para especificar el tipo de carga en el cual se clasifican los bienes y/o mercancías que se transportan en la embarcación. | D225: requerido | E225: catCartaPorte:c_ClaveTipoCarga
B226: Eslora | C226: Atributo opcional para registrar la longitud de eslora, definida en pies, con la que cuenta la embarcación o el buque en el que se transportan los bienes y/o mercancías. | D226: opcional | E226: xs:decimal
B227: Manga | C227: Atributo opcional para registrar la longitud de manga, definida en pies, con la que cuenta la embarcación o el buque en el que se transportan los bienes y/o mercancías. | D227: opcional | E227: xs:decimal
B228: Calado | C228: Atributo opcional para registrar la longitud del calado, definida en pies, con la que cuenta la embarcación o el buque en el que se transportan los bienes y/o mercancías. | D228: opcional | E228: xs:decimal
B229: Puntal | C229: Atributo opcional para registrar la longitud del puntal, definida en pies, con la que cuenta la embarcación o el buque en el que se transportan los bienes y/o mercancías. | D229: opcional | E229: xs:decimal
B230: LineaNaviera | C230: Atributo opcional para registrar el nombre de la línea naviera autorizada de gestionar el traslado de los bienes y/o mercancías por vía marítima. | D230: opcional | E230: xs:string
B231: NombreAgenteNaviero | C231: Atributo requerido para registrar el nombre del agente naviero consignatario autorizado para gestionar el traslado de los bienes y/o mercancías por vía marítima. | D231: requerido | E231: xs:string
B232: NumAutorizacionNaviero | C232: Atributo requerido para expresar el número de la autorización como agente naviero consignatario emitida por la autoridad correspondiente. | D232: requerido | E232: catCartaPorte:c_NumAutorizacionNaviero
B233: NumViaje | C233: Atributo opcional para registrar el número del viaje con el que se identifica el traslado de los bienes y/o mercancías en el buque o la embarcación. | D233: opcional | E233: xs:string
B234: NumConocEmbarc | C234: Atributo opcional para registrar el número de conocimiento de embarque con el que se identifica el traslado de los bienes y/o mercancías. | D234: opcional | E234: xs:string
B235: PermisoTempNavegacion | C235: Atributo condicional para registrar el permiso temporal de navegación de la embarcación o buque que transporta los bienes y/o mercancías. | D235: opcional | E235: xs:string
B238: Elemento: CONTENEDOR
B239: Descripción
B240: Nodo opcional para registrar los datos del contenedor en el que se transportan los bienes y/o mercancías.
B242: Nombre del campo | C242: Descripción | D242: Uso | E242: Tipo o tipo especial | F242: Valor prefijado o permitidos
B243: TipoContenedor | C243: Atributo requerido para registrar la clave de identificación correspondiente con el tipo de contenedor marítimo en el que se transportan los bienes y/o mercancías. | D243: requerido | E243: catCartaPorte:c_ContenedorMaritimo
B244: MatriculaContenedor | C244: Atributo condicional para registrar la matrícula o el número de identificación del contenedor marítimo en el que se transportan los bienes y/o mercancías, el cual está integrado por el código del propietario, el número de serie y el dígito de control correspondiente. | D244: opcional | E244: xs:string
B245: NumPrecinto | C245: Atributo condicional para registrar el número del sello o precinto de los contenedores marítimos que son utilizados para trasladar los bienes y/o mercancías. | D245: opcional | E245: xs:string
B246: IdCCPRelacionado | C246: Atributo condicional para registrar el identificador del complemento Carta Porte (IdCCP) de un CFDI previamente certificado para el traslado de bienes o mercancías mediante autotransporte, únicamente aplica para traslados mediante ferri. | D246: opcional | E246: xs:string
B247: PlacaVMCCP | C247: Atributo condicional para registrar los caracteres alfanuméricos, sin guiones ni espacios de la placa vehicular del autotransporte registrado en el CFDI con complemento Carta Porte del autotransporte, únicamente aplica para traslado mediante ferri. | D247: opcional | E247: xs:string
B248: FechaCertificacionCCP | C248: Atributo condicional para registrar la fecha y hora de certificación del CDFI con complemento Carta Porte del autotransporte, únicamente aplica para traslado mediante ferri. | D248: opcional | E248: tdCFDI:t_FechaH
... 32 more rows

Sheet OBJETO (hidden)
B3: c_ObjetoImp | C3: Descripción | D3: Fecha inicio de vigencia | E3: Fecha fin de vigencia
A4: ① | B4: 01 | C4: No objeto de impuesto. | D4: 2022-01-01
A5: ② | B5: 02 | C5: Sí objeto de impuesto. | D5: 2022-01-01
A6: ③ | B6: 03 | C6: Sí objeto del impuesto y no obligado al desglose. | D6: 2022-01-01
A7: ④ | B7: 04 | C7: Sí objeto del impuesto y no causa impuesto. | D7: 2022-10-07
A8: ⑤ | B8: 05 | C8: Sí objeto del impuesto, IVA crédito PODEBI. | D8: 2023-12-06
A11: ①
A45: ②
C79: Obligados al pago del impuesto al valor agregado | D79: Tasa general | E79: Tasa del 0% | F79: Exentos
C80: Personas física y morales que en territorio nacional
C81: Enajenación de bienes | D81: Artículo 1° LIVA | E81: Artículo 2-A LIVA | F81: Artículo 9 LIVA
C82: Prestación de servicios | F82: Artículo 15 LIVA
C83: Uso o goce temporal de bienes | F83: Artículo 20 LIVA
C84: Importación de bienes | F84: Artículo 25 LIVA
C85: Exportación de bienes | E85: Artículo 2-A y 29 LIVA
A89: ③
A117: ④
A132: ⑤

Sheet APEND6 (hidden)
B4: Para el TipoRegimen “002-Sueldos”
B5: Para el TipoRegimen “003- Jubilados”, “004-Pensionados” y “012- Jubilados o Pensionados”, específicamente para los casos de Jubilación en una sola exhibición
B6: Para el TipoRegimen “003- Jubilados”, “004-Pensionados” y “012- Jubilados o Pensionados”, específicamente para los casos de Jubilación en parcialidades
B7: Para el TipoRegimen “05-Asimilados Miembros Sociedades Cooperativas Produccion”, “06-Asimilados Integrantes Sociedades Asociaciones Civiles”, “07-Asimilados Miembros consejos”, “08-Asimilados comisionistas”, “09- Asimilados Honorarios”, “10-Asimilados acciones” y “11-Asimilados otros”
B8: Para el TipoRegimen “13- Indemnización o Separación”
B13: Para el TipoRegimen “002-Sueldos”
B15: PERCEPCIONES | G15: DEDUCCIONES
B16: Tipo de percepción | C16: Descripción | D16: Gravado/ Exento | E16: Límite de exentos | G16: Tipo Deducción | H16: Descripción
B17: 1 | C17: Sueldos, Salarios Rayas y Jornales | D17: Gravado | G17: 2 | H17: ISR
B18: 2 | C18: Gratificación Anual (Aguinaldo) | D18: Gravado y Exento | E18: 30 UMA's Art. 93 fr. XIV de la LISR | G18: 6 | H18: Descuento por incapacidad
B19: 3 | C19: Participación de los Trabajadores en las Utilidades PTU | D19: Gravado y Exento | E19: 15 UMA's Art. 93 fr. XIV de la LISR | G19: 12 | H19: Anticipo de salarios
B20: 4 | C20: Reembolso de Gastos Médicos Dentales y Hospitalarios | D20: Gravado y Exento | G20: 20 | H20: Ausencia (Ausentismo)
B21: 5 | C21: Fondo de Ahorro | D21: Gravado y Exento | G21: 13 | H21: Pagos hechos con exceso al trabajador
B22: 6 | C22: Caja de ahorro | D22: Gravado y Exento | G22: 20 | H22: Ausencia (Ausentismo)
B23: 9 | C23: Contribuciones a Cargo del Trabajador Pagadas por el Patrón | D23: Gravado | G23: 24 | H23: Ajuste en Gratificación Anual (Aguinaldo) Exento
B24: 10 | C24: Premios por puntualidad | D24: Gravado | G24: 25 | H24: Ajuste en Gratificación Anual (Aguinaldo) Gravado
B25: 11 | C25: Prima de Seguro de vida | D25: Gravado y Exento | G25: 26 | H25: Ajuste en Participación de los Trabajadores en las Utilidades PTU Exento
B26: 12 | C26: Seguro de Gastos Médicos Mayores | D26: Gravado y Exento | G26: 27 | H26: Ajuste en Participación de los Trabajadores en las Utilidades PTU Gravado
B27: 13 | C27: Cuotas Sindicales Pagadas por el Patrón | D27: Gravado | G27: 28 | H27: Ajuste en Reembolso de Gastos Médicos Dentales y Hospitalarios Exento
B28: 14 | C28: Subsidios por incapacidad | D28: Gravado y Exento | G28: 29 | H28: Ajuste en Fondo de ahorro Exento
B29: 15 | C29: Becas para trabajadores y/o hijos | D29: Gravado y Exento | G29: 30 | H29: Ajuste en Caja de ahorro Exento
B30: 19 | C30: Horas extra | D30: Gravado y Exento | E30: 5 UMA's por cada semana de servicios Art. 93 fr. I de la LISR | G30: 31 | H30: Ajuste en Contribuciones a Cargo del Trabajador Pagadas por el Patrón Exento
B31: 20 | C31: Prima dominical | D31: Gravado y Exento | E31: 1 UMA por cada domingo laborado hasta 52 UMA'S Art. 93 fr. I de la LISR | G31: 32 | H31: Ajuste en Premios por puntualidad Gravado
B32: 21 | C32: Prima vacacional | D32: Gravado y Exento | E32: 15 UMA's Art. 93 fr. XIV de la LISR | G32: 33 | H32: Ajuste en Prima de Seguro de vida Exento
B33: 24 | C33: Seguro de retiro | D33: Gravado y Exento | G33: 34 | H33: Ajuste en Seguro de Gastos Médicos Mayores Exento
B34: 26 | C34: Reembolso por funeral | D34: Gravado y Exento | G34: 35 | H34: Ajuste en Cuotas Sindicales Pagadas por el Patrón Exento
B35: 27 | C35: Cuotas de seguridad social pagadas por el patrón | D35: Exento | G35: 36 | H35: Ajuste en Subsidios por incapacidad Exento
B36: 28 | C36: Comisiones | D36: Gravado | G36: 37 | H36: Ajuste en Becas para trabajadores y/o hijos Exento
B37: 29 | C37: Vales de despensa | D37: Gravado y Exento | G37: 38 | H37: Ajuste en Horas extra Exento
B38: 30 | C38: Vales de restaurante | D38: Gravado y Exento | G38: 39 | H38: Ajuste en Horas extra Gravado
B39: 31 | C39: Vales de gasolina | D39: Gravado y Exento | G39: 40 | H39: Ajuste en Prima dominical Exento
B40: 32 | C40: Vales de ropa | D40: Gravado y Exento | G40: 41 | H40: Ajuste en Prima dominical Gravado
B41: 33 | C41: Ayuda para renta | D41: Gravado y Exento | G41: 42 | H41: Ajuste en Prima vacacional Exento
B42: 34 | C42: Ayuda para artículos escolares | D42: Gravado y Exento | G42: 43 | H42: Ajuste en Prima vacacional Gravado
B43: 35 | C43: Ayuda para anteojos | D43: Gravado y Exento | G43: 48 | H43: Ajuste en Seguro de retiro Exento
B44: 36 | C44: Ayuda para transporte | D44: Gravado y Exento | G44: 51 | H44: Ajuste en Reembolso por funeral Exento
B45: 37 | C45: Ayuda para gastos de funeral | D45: Gravado y Exento | G45: 52 | H45: Ajuste en Cuotas de seguridad social pagadas por el patrón Exento
B46: 38 | C46: Otros ingresos por salarios | D46: Gravado y Exento | G46: 53 | H46: Ajuste en Comisiones Gravado
B47: 047 | C47: Alimentación diferentes a los establecidos en el Art 94 último párrafo LISR | D47: Gravado y Exento | G47: 54 | H47: Ajuste en Vales de despensa Exento
B48: 48 | C48: Habitación | D48: Gravado y Exento | G48: 55 | H48: Ajuste en Vales de restaurante Exento
B49: 49 | C49: Premios por asistencia | D49: Gravado | G49: 56 | H49: Ajuste en Vales de gasolina Exento
B50: 50 | C50: Viáticos | D50: Gravado y Exento | G50: 57 | H50: Ajuste en Vales de ropa Exento
G51: 58 | H51: Ajuste en Ayuda para renta Exento
B52: OTROS PAGOS | G52: 59 | H52: Ajuste en Ayuda para artículos escolares Exento
B53: Tipo | C53: Descripción | G53: 60 | H53: Ajuste en Ayuda para anteojos Exento
B54: 1 | C54: Reintegro de ISR pagado en exceso (siempre que no haya sido enterado al SAT). | G54: 61 | H54: Ajuste en Ayuda para transporte Exento
B55: 2 | C55: Subsidio para el empleo (efectivamente entregado al trabajador). | G55: 62 | H55: Ajuste en Ayuda para gastos de funeral Exento
B56: 4 | C56: Aplicación de saldo a favor por compensación anual. | G56: 63 | H56: Ajuste en Otros ingresos por salarios Exento
B57: 5 | C57: Reintegro de ISR retenido en exceso de ejercicio anterior (siempre que no haya sido enterado al SAT). | G57: 64 | H57: Ajuste en Otros ingresos por salarios Gravado
B58: 6 | C58: Alimentos en bienes (Servicios de comedor y comida) Art 94 último párrafo LISR. | G58: 71 | H58: Ajuste en Subsidio para el empleo (efectivamente entregado al trabajador)
B59: 7 | C59: ISR ajustado por subsidio. | G59: 74 | H59: Ajuste en Alimentación Exento
B60: 8 | C60: Subsidio efectivamente entregado que no correspondía (Aplica sólo cuando haya ajuste al cierre de mes en relación con el Apéndice 7 de la guía de llenado de nómina). | G60: 75 | H60: Ajuste en Alimentación Gravado
G61: 76 | H61: Ajuste en Habitación Exento
G62: 77 | H62: Ajuste en Habitación Gravado
G63: 78 | H63: Ajuste en Premios por asistencia
G64: 80 | H64: Ajuste en Viáticos gravados
G65: 82 | H65: Ajuste en Fondo de ahorro Gravado
G66: 83 | H66: Ajuste en Caja de ahorro Gravado
G67: 84 | H67: Ajuste en Prima de Seguro de vida Gravado
G68: 85 | H68: Ajuste en Seguro de Gastos Médicos Mayores Gravado
G69: 86 | H69: Ajuste en Subsidios por incapacidad Gravado
G70: 87 | H70: Ajuste en Becas para trabajadores y/o hijos Gravado
G71: 88 | H71: Ajuste en Seguro de retiro Gravado
G72: 89 | H72: Ajuste en Vales de despensa Gravado
G73: 90 | H73: Ajuste en Vales de restaurante Gravado
G74: 91 | H74: Ajuste en Vales de gasolina Gravado
G75: 92 | H75: Ajuste en Vales de ropa Gravado
G76: 93 | H76: Ajuste en Ayuda para renta Gravado
G77: 94 | H77: Ajuste en Ayuda para artículos escolares Gravado
G78: 95 | H78: Ajuste en Ayuda para anteojos Gravado
G79: 96 | H79: Ajuste en Ayuda para transporte Gravado
G80: 97 | H80: Ajuste en Ayuda para gastos de funeral Gravado
G81: 99 | H81: Ajuste a ingresos por sueldos y salarios gravados
G82: 100 | H82: Ajuste en Viáticos exentos
G83: 101 | H83: ISR Retenido de ejercicio anterior
G84: 107 | H84: Ajuste al Subsidio Causado
B88: Para el TipoRegimen “003- Jubilados”, “004-Pensionados” y “012- Jubilados o Pensionados”, específicamente para los casos de Jubilación en una sola exhibición
B90: PERCEPCIONES | G90: DEDUCCIONES
B91: Tipo de percepción | C91: Descripción | D91: Gravado/ Exento | E91: Límite de exentos | G91: Tipo Deducción | H91: Descripción
B92: 39 | C92: Jubilaciones, pensiones o haberes de retiro | D92: Gravado y Exento | E92: 90 UMA's elavadas al año Art. 171 RLISR | G92: 2 | H92: ISR
B93: 53 | C93: Pagos que se realicen a extrabajadores que obtengan una jubilación en una sola exhibición derivados de la ejecución de resoluciones judicial o de un laudo | D93: Gravado y Exento | G93: 65 | H93: Ajuste en Jubilaciones, pensiones o haberes de retiro en una sola exhibición Exento
G94: 66 | H94: Ajuste en Jubilaciones, pensiones o haberes de retiro en una sola exhibición Gravado
G95: 101 | H95: ISR Retenido de ejercicio anterior
G96: 105 | H96: Ajuste a pagos que se realicen a extrabajadores que obtengan una jubilación en una sola exhibición derivados de la ejecución de una resolución judicial o de un laudo gravados
G97: 106 | H97: Ajuste a pagos que se realicen a extrabajadores que obtengan una jubilación en una sola exhibición derivados de la ejecución de una resolución judicial o de un laudo exentos
B99: Para el TipoRegimen “003- Jubilados”, “004-Pensionados” y “012- Jubilados o Pensionados”, específicamente para los casos de Jubilación en parcialidades
B101: PERCEPCIONES | G101: DEDUCCIONES
B102: Tipo de percepción | C102: Descripción | D102: Gravado/ Exento | E102: Límite de exentos | G102: Tipo Deducción | H102: Descripción
B103: 44 | C103: Jubilaciones, pensiones o haberes de retiro en parcialidades | D103: Gravado y Exento | E103: 90 UMA's por año de servicio Art. 93 fracción XIII LISR | G103: 2 | H103: ISR
B104: 51 | C104: Pagos por gratificaciones, primas, compensaciones, recompensas u otros a extrabajadores derivados de jubilación en parcialidades | D104: Gravado | E104: N/A | G104: 69 | H104: Ajuste en Jubilaciones, pensiones o haberes de retiro en parcialidades Exento
B105: 52 | C105: Pagos que se realicen a extrabajadores que obtengan una jubilación en parcialidades derivados de la ejecución de resoluciones judicial o de un laudo | D105: Gravado y Exento | G105: 70 | H105: Ajuste en Jubilaciones, pensiones o haberes de retiro en parcialidades Gravado
G106: 101 | H106: ISR Retenido de ejercicio anterior
G107: 102 | H107: Ajuste a pagos por gratificaciones, primas, compensaciones, recompensas u otros a extrabajadores derivados de jubilación en parcialidades, gravados
G108: 103 | H108: Ajuste a pagos que se realicen a extrabajadores que obtengan una jubilación en parcialidades derivados de la ejecución de una resolución judicial o de un laudo gravados
G109: 104 | H109: Ajuste a pagos que se realicen a extrabajadores que obtengan una jubilación en parcialidades derivados de la ejecución de una resolución judicial o de un laudo exentos
B112: OTROS PAGOS
B113: Tipo | C113: Descripción
B114: 1 | C114: Reintegro de ISR pagado en exceso (siempre que no haya sido enterado al SAT).
B115: 4 | C115: Aplicación de saldo a favor por compensación anual.
B116: 5 | C116: Reintegro de ISR retenido en exceso de ejercicio anterior (siempre que no haya sido enterado al SAT).
B121: Para el TipoRegimen “05-Asimilados Miembros Sociedades Cooperativas Produccion”, “06-Asimilados Integrantes Sociedades Asociaciones Civiles”, “07-Asimilados Miembros consejos”, “08-Asimilados comisionistas”, “09- Asimilados Honorarios”, “10-Asimilados acciones” y “11-Asimilados otros”
B123: PERCEPCIONES | G123: DEDUCCIONES
B124: Tipo de percepción | C124: Descripción | D124: Gravado/ Exento | E124: Límite de exentos | G124: Tipo Deducción | H124: Descripción
B125: 45 | C125: Ingresos en acciones o títulos valor que representan bienes | D125: Gravado | E125: N/A | G125: 2 | H125: ISR
B126: 046 | C126: Ingresos asimilados a salarios | D126: Gravado | E126: N/A | G126: 73 | H126: Ajuste en Ingresos en acciones o títulos valor que representan bienes Gravado
G127: 98 | H127: Ajuste a ingresos asimilados a salarios gravados
B128: OTROS PAGOS | G128: 101 | H128: ISR Retenido de ejercicio anterior
B129: Tipo | C129: Descripción
B130: 1 | C130: Reintegro de ISR pagado en exceso (siempre que no haya sido enterado al SAT).
B131: 4 | C131: Aplicación de saldo a favor por compensación anual.
B132: 5 | C132: Reintegro de ISR retenido en exceso de ejercicio anterior (siempre que no haya sido enterado al SAT).
B137: Para el TipoRegimen “13- Indemnización o Separación”
B139: PERCEPCIONES | G139: DEDUCCIONES
B140: Tipo de percepción | C140: Descripción | D140: Gravado/ Exento | E140: Límite de exentos | G140: Tipo Deducción | H140: Descripción
B141: 22 | C141: Prima por antigüedad | D141: Gravado y Exento | E141: 90 UMA's por año de servicio Art. 93, fracción Xlll | G141: 2 | H141: ISR
B142: 23 | C142: Pagos por separación | D142: Gravado y Exento | E142: 90 UMA's por año de servicio Art. 93, fracción Xlll | G142: 44 | H142: Ajuste en Prima por antigüedad Exento
B143: 25 | C143: Indemnizaciones | D143: Gravado y Exento | E143: 90 UMA's por año de servicio Art. 93, fracción Xlll | G143: 45 | H143: Ajuste en Prima por antigüedad Gravado
G144: 46 | H144: Ajuste en Pagos por separación Exento
G145: 47 | H145: Ajuste en Pagos por separación Gravado
B146: OTROS PAGOS | G146: 49 | H146: Ajuste en Indemnizaciones Exento
B147: Tipo | C147: Descripción | G147: 50 | H147: Ajuste en Indemnizaciones Gravado
B148: 1 | C148: Reintegro de ISR pagado en exceso (siempre que no haya sido enterado al SAT). | G148: 67 | H148: Ajuste en Pagos por separación Acumulable
B149: 4 | C149: Aplicación de saldo a favor por compensación anual. | G149: 101 | H149: ISR Retenido de ejercicio anterior
B150: 5 | C150: Reintegro de ISR retenido en exceso de ejercicio anterior (siempre que no haya sido enterado al SAT).

Sheet CLASIFICA (hidden)
B3: Tipo de régimen de contratación | C3: Catálogo de percepciones CFDI de nómina | E3: Clasificación apéndice seis guía de llenado del SAT
B4: 02 Sueldos (Incluye ingresos señalados en la fracción I del artículo 94 de LISR) | C4: c_TipoPercepcion | D4: Descripción | E4: Gravado | F4: Exento | G4: Límite exención | H4: Claves de deducción que disminuyen la base
C5: 1 | D5: Sueldos, Salarios Rayas y Jornales | E5: a | F5: r | G5: No aplica | H5: 013 Pagos hechos con exceso al trabajador 020 Ausencia (Ausentismo) 099 Ajuste a ingresos por sueldos y salarios gravados
C6: Artículo 82 LFT.- Salario es la retribución que debe pagar el patrón al trabajador por su trabajo. Artículo 69 LFT.- Por cada seis días de trabajo disfrutará el trabajador de un día de descanso, por lo menos, con goce de salario íntegro. Artículo 76 LFT.- Las personas trabajadoras que tengan más de un año de servicios disfrutarán de un periodo anual de vacaciones pagadas, que en ningún caso podrá ser inferior a doce días laborables, y que aumentará en dos días laborables, hasta llegar a veinte, por cada año subsecuente de servicios. A partir del sexto año, el periodo de vacaciones aumentará en dos días por cada cinco de servicios.
C7: Artículo 96 LISR. Quienes hagan pagos por los conceptos a que se refiere este Capítulo están obligados a efectuar retenciones y enteros mensuales que tendrán el carácter de pagos provisionales a cuenta del impuesto anual. No se efectuará retención a las personas que en el mes únicamente perciban un salario mínimo general correspondiente al área geográfica del contribuyente. Mes Zona Libre de la Frontera Norte Resto del país. Enero 11,621.59 7,716.83 Febrero 10,871.81 7,218.97 Marzo 11,621.59 7,716.83 Abril 11,246.70 7,467.90 Mayo 11,621.59 7,716.83 Junio 11,246.70 7,467.90 Julio 11,621.59 7,716.83 Agosto 11,621.59 7,716.83 Septiembre 11,246.70 7,467.90 Octubre 11,621.59 7,716.83 Noviembre 11,246.70 7,467.90 Diciembre 11,621.59 7,716.83
C8: Artículo 36 LSS. Corresponde al patrón pagar íntegramente la cuota señalada para los trabajadores, en los casos en que éstos perciban como cuota diaria el salario mínimo.
E10: Clasificación apéndice seis guía de llenado del SAT
B11: Tipo de régimen de contratación | C11: c_TipoPercepcion | D11: Descripción | E11: Gravado | F11: Exento | G11: Límite exención | H11: Claves de deducción que disminuyen la base
B12: 02 Sueldos (Incluye ingresos señalados en la fracción I del artículo 94 de LISR) | C12: 2 | D12: Gratificación Anual (Aguinaldo) | E12: a | F12: a | G12: 30 UMA's Artículo 93 fracción XIV de la LISR | H12: 024 Ajuste en Gratificación Anual (Aguinaldo) Exento. 025 Ajuste en Gratificación Anual (Aguinaldo) Gravado
C13: Artículo 87 LFT.- Los trabajadores tendrán derecho a un aguinaldo anual que deberá pagarse antes del día veinte de diciembre, equivalente a quince días de salario, por lo menos. Los que no hayan cumplido el año de servicios, independientemente de que se encuentren laborando o no en la fecha de liquidación del aguinaldo, tendrán derecho a que se les pague la parte proporcional del mismo, conforme al tiempo que hubieren trabajado, cualquiera que fuere éste.
C14: Artículo 93 LISR. No se pagará el impuesto sobre la renta por la obtención de los siguientes ingresos: I. Las prestaciones distintas del salario que reciban los trabajadores del salario mínimo general para una o varias áreas geográficas, calculadas sobre la base de dicho salario, cuando no excedan de los mínimos señalados por la legislación laboral, así como las remuneraciones por concepto de tiempo extraordinario o de prestación de servicios que se realice en los días de descanso sin disfrutar de otros en sustitución, hasta el límite establecido en la legislación laboral, que perciban dichos trabajadores. Tratándose de los demás trabajadores, el 50% de las remuneraciones por concepto de tiempo extraordinario o de la prestación de servicios que se realice en los días de descanso sin disfrutar de otros en sustitución, que no exceda el límite previsto en la legislación laboral y sin que esta exención exceda del equivalente de cinco veces el salario mínimo general del área geográfica del trabajador por cada semana de servicios. XIV. Las gratificaciones que reciban los trabajadores de sus patrones, durante un año de calendario, hasta el equivalente del salario mínimo general del área geográfica del trabajador elevado a 30 días, cuando dichas gratificaciones se otorguen en forma general; así como las primas vacacionales que otorguen los patrones durante el año de calendario a sus trabajadores en forma general y la participación de los trabajadores en las utilidades de las empresas, hasta por el equivalente a 15 días de salario mínimo general del área geográfica del trabajador, por cada uno de los conceptos señalados. Tratándose de primas dominicales hasta por el equivalente de un salario mínimo general del área geográfica del trabajador por cada domingo que se labore.
E16: Clasificación apéndice seis guía de llenado del SAT | H16: Claves de deducción que disminuyen la base
B17: Tipo de régimen de contratación | C17: c_TipoPercepcion | D17: Descripción | E17: Gravado | F17: Exento | G17: Límite exención | H17: 026 Ajuste en Participación de los Trabajadores en las Utilidades PTU Exento 027 Ajuste en Participación de los Trabajadores en las Utilidades PTU Gravado
B18: 02 Sueldos (Incluye ingresos señalados en la fracción I del artículo 94 de LISR) | C18: 3 | D18: Participación de los Trabajadores en las Utilidades PTU | E18: a | F18: a | G18: 15 UMA's Artículo 93 fracción XIV de la LISR
C19: Artículo 117 LFT.- Los trabajadores participarán en las utilidades de las empresas, de conformidad con el porcentaje que determine la Comisión Nacional para la Participación de los Trabajadores en las Utilidades de las Empresas.
C20: Artículo 93 LISR. No se pagará el impuesto sobre la renta por la obtención de los siguientes ingresos: XIV. Las gratificaciones que reciban los trabajadores de sus patrones, durante un año de calendario, hasta el equivalente del salario mínimo general del área geográfica del trabajador elevado a 30 días, cuando dichas gratificaciones se otorguen en forma general; así como las primas vacacionales que otorguen los patrones durante el año de calendario a sus trabajadores en forma general y la participación de los trabajadores en las utilidades de las empresas, hasta por el equivalente a 15 días de salario mínimo general del área geográfica del trabajador, por cada uno de los conceptos señalados. Tratándose de primas dominicales hasta por el equivalente de un salario mínimo general del área geográfica del trabajador por cada domingo que se labore.
E22: Clasificación apéndice seis guía de llenado del SAT | H22: Claves de deducción que disminuyen la base
B23: Tipo de régimen de contratación | C23: c_TipoPercepcion | D23: Descripción | E23: Gravado | F23: Exento | G23: Límite exención | H23: 028 Ajuste en Reembolso de Gastos Médicos Dentales y Hospitalarios Exento
B24: 02 Sueldos (Incluye ingresos señalados en la fracción I del artículo 94 de LISR) | C24: 4 | D24: Reembolso de Gastos Médicos Dentales y Hospitalarios | E24: a | F24: a
C25: Artículo 84 LFT.- El salario se integra con los pagos hechos en efectivo por cuota diaria, gratificaciones, percepciones, habitación, primas, comisiones, prestaciones en especie y cualquiera otra cantidad o prestación que se entregue al trabajador por su trabajo.
C26: Artículo 93 LISR. No se pagará el impuesto sobre la renta por la obtención de los siguientes ingresos: VIII. Los percibidos con motivo de subsidios por incapacidad, becas educacionales para los trabajadores o sus hijos, guarderías infantiles, actividades culturales y deportivas, y otras prestaciones de previsión social, de naturaleza análoga, que se concedan de manera general, de acuerdo con las leyes o por contratos de trabajo. IX. La previsión social a que se refiere la fracción anterior es la establecida en el artículo 7, quinto párrafo de esta Ley. Sexto párrafo La exención aplicable a los ingresos obtenidos por concepto de prestaciones de previsión social se limitará cuando la suma de los ingresos por la prestación de servicios personales subordinados o aquellos que reciban, por parte de las sociedades cooperativas, los socios o miembros de las mismas y el monto de la exención exceda de una cantidad equivalente a siete veces el salario mínimo general del área geográfica del contribuyente, elevado al año; cuando dicha suma exceda de la cantidad citada, solamente se considerará como ingreso no sujeto al pago del impuesto un monto hasta de un salario mínimo general del área geográfica del contribuyente, elevado al año. Esta limitación en ningún caso deberá dar como resultado que la suma de los ingresos por la prestación de servicios personales subordinados o aquellos que reciban, por parte de las sociedades cooperativas, los socios o miembros de las mismas y el importe de la exención, sea inferior a siete veces el salario mínimo general del área geográfica del contribuyente, elevado al año. Séptimo párrafo Lo dispuesto en el párrafo anterior, no será aplicable tratándose de jubilaciones, pensiones, haberes de retiro, pensiones vitalicias, indemnizaciones por riesgos de trabajo o enfermedades, que se concedan de acuerdo con las leyes, contratos colectivos de trabajo o contratos ley, reembolsos de gastos médicos, dentales, hospitalarios y de funeral, concedidos de manera general de acuerdo con las leyes o contratos de trabajo, seguros de gastos médicos, seguros de vida y fondos de ahorro, siempre que se reúnan los requisitos establecidos en las fracciones XI y XXI del artículo 27 de esta Ley, aun cuando quien otorgue dichas prestaciones de previsión social no sea contribuyente del impuesto establecido en esta Ley.
E28: Clasificación apéndice seis guía de llenado del SAT | H28: Claves de deducción que disminuyen la base
B29: Tipo de régimen de contratación | C29: c_TipoPercepcion | D29: Descripción | E29: Gravado | F29: Exento | G29: Límite exención | H29: 029 Ajuste en Fondo de ahorro Exento 030 Ajuste en Caja de ahorro Exento 082 Ajuste en Fondo de ahorro Gravado 083 Ajuste en Caja de ahorro Gravado
B30: 02 Sueldos (Incluye ingresos señalados en la fracción I del artículo 94 de LISR) | C30: 5 | D30: Fondo de Ahorro | E30: a | F30: a
C31: 6 | D31: Caja de ahorro | E31: a | F31: a
C32: Artículo 84 LFT.- El salario se integra con los pagos hechos en efectivo por cuota diaria, gratificaciones, percepciones, habitación, primas, comisiones, prestaciones en especie y cualquiera otra cantidad o prestación que se entregue al trabajador por su trabajo.
C33: Artículo 93 LISR. No se pagará el impuesto sobre la renta por la obtención de los siguientes ingresos: XI. Los provenientes de cajas de ahorro de trabajadores y de fondos de ahorro establecidos por las empresas para sus trabajadores cuando reúnan los requisitos de deducibilidad del Título II de esta Ley o, en su caso, del presente Título. Requisitos Que sean otorgados en forma general a todos los trabajadores El monto del patrón tiene que ser igual a la aportación de los trabajadores No exceder del 13% del salario del trabajador Con un límite del 1.3 veces del valor de la UMA elevada al año Fundamento: Artículo 27 fracción XI LISR Sexto párrafo La exención aplicable a los ingresos obtenidos por concepto de prestaciones de previsión social se limitará cuando la suma de los ingresos por la prestación de servicios personales subordinados o aquellos que reciban, por parte de las sociedades cooperativas, los socios o miembros de las mismas y el monto de la exención exceda de una cantidad equivalente a siete veces el salario mínimo general del área geográfica del contribuyente, elevado al año; cuando dicha suma exceda de la cantidad citada, solamente se considerará como ingreso no sujeto al pago del impuesto un monto hasta de un salario mínimo general del área geográfica del contribuyente, elevado al año. Esta limitación en ningún caso deberá dar como resultado que la suma de los ingresos por la prestación de servicios personales subordinados o aquellos que reciban, por parte de las sociedades cooperativas, los socios o miembros de las mismas y el importe de la exención, sea inferior a siete veces el salario mínimo general del área geográfica del contribuyente, elevado al año. Séptimo párrafo Lo dispuesto en el párrafo anterior, no será aplicable tratándose de jubilaciones, pensiones, haberes de retiro, pensiones vitalicias, indemnizaciones por riesgos de trabajo o enfermedades, que se concedan de acuerdo con las leyes, contratos colectivos de trabajo o contratos ley, reembolsos de gastos médicos, dentales, hospitalarios y de funeral, concedidos de manera general de acuerdo con las leyes o contratos de trabajo, seguros de gastos médicos, seguros de vida y fondos de ahorro, siempre que se reúnan los requisitos establecidos en las fracciones XI y XXI del artículo 27 de esta Ley, aun cuando quien otorgue dichas prestaciones de previsión social no sea contribuyente del impuesto establecido en esta Ley.
E35: Clasificación apéndice seis guía de llenado del SAT | H35: Claves de deducción que disminuyen la base
B36: Tipo de régimen de contratación | C36: c_TipoPercepcion | D36: Descripción | E36: Gravado | F36: Exento | G36: Límite exención | H36: 031 Ajuste en Contribuciones a Cargo del Trabajador Pagadas por el Patrón Exento 032 Ajuste en Premios por puntualidad Gravado 035 Ajuste en Cuotas Sindicales Pagadas por el Patrón Exento 053 Ajuste en Comisiones Gravado 078 Ajuste en Premios por asistencia
B37: 02 Sueldos (Incluye ingresos señalados en la fracción I del artículo 94 de LISR) | C37: 9 | D37: Contribuciones a Cargo del Trabajador Pagadas por el Patrón | E37: a | F37: r | G37: No aplica
C38: 10 | D38: Premios por puntualidad | E38: a | F38: r
C39: 13 | D39: Cuotas Sindicales Pagadas por el Patrón | E39: a | F39: r
C40: 28 | D40: Comisiones | E40: a | F40: r
C41: 49 | D41: Premios por asistencia | E41: a | F41: r
C42: Artículo 84 LFT.- El salario se integra con los pagos hechos en efectivo por cuota diaria, gratificaciones, percepciones, habitación, primas, comisiones, prestaciones en especie y cualquiera otra cantidad o prestación que se entregue al trabajador por su trabajo.
E44: Clasificación apéndice seis guía de llenado del SAT | H44: Claves de deducción que disminuyen la base
B45: Tipo de régimen de contratación | C45: c_TipoPercepcion | D45: Descripción | E45: Gravado | F45: Exento | G45: Límite exención | H45: 033 Ajuste en Prima de Seguro de vida Exento 034 Ajuste en Seguro de Gastos Médicos Mayores Exento 035 Ajuste en Cuotas Sindicales Pagadas por el Patrón Exento 036 Ajuste en Subsidios por incapacidad Exento 037 Ajuste en Becas para trabajadores y/o hijos Exento 048 Ajuste en Seguro de retiro Exento 051 Ajuste en Reembolso por funeral Exento 054 Ajuste en Vales de despensa Exento 055 Ajuste en Vales de restaurante Exento 056 Ajuste en Vales de gasolina Exento 057 Ajuste en Vales de ropa Exento 058 Ajuste en Ayuda para renta Exento 059 Ajuste en Ayuda para artículos escolares Exento 060 Ajuste en Ayuda para anteojos Exento 061 Ajuste en Ayuda para transporte Exento 062 Ajuste en Ayuda para gastos de funeral Exento 074 Ajuste en Alimentación Exento 075 Ajuste en Alimentación Gravado 076 Ajuste en Habitación Exento 077 Ajuste en Habitación Gravado 084 Ajuste en Prima de Seguro de vida Gravado 086 Ajuste en Subsidios por incapacidad Gravado 087 Ajuste en Becas para trabajadores y/o hijos Gravado 088 Ajuste en Seguro de retiro Gravado 089 Ajuste en Vales de despensa Gravado 090 Ajuste en Vales de restaurante Gravado 091 Ajuste en Vales de gasolina Gravado 092 Ajuste en Vales de ropa Gravado 093 Ajuste en Ayuda para renta Gravado 094 Ajuste en Ayuda para artículos escolares Gravado 095 Ajuste en Ayuda para anteojos Gravado 096 Ajuste en Ayuda para transporte Gravado 097 Ajuste en Ayuda para gastos de funeral Gravado
B46: 02 Sueldos (Incluye ingresos señalados en la fracción I del artículo 94 de LISR) | C46: 11 | D46: Prima de Seguro de vida | E46: a | F46: a
C47: 12 | D47: Seguro de Gastos Médicos Mayores | E47: a | F47: a
C48: 14 | D48: Subsidios por incapacidad | E48: a | F48: a
C49: 15 | D49: Becas para trabajadores y/o hijos | E49: a | F49: a
C50: 24 | D50: Seguro de retiro | E50: a | F50: a
C51: 26 | D51: Reembolso por funeral | E51: a | F51: a
C52: 29 | D52: Vales de despensa | E52: a | F52: a
C53: 30 | D53: Vales de restaurante | E53: a | F53: a
C54: 31 | D54: Vales de gasolina | E54: a | F54: a
C55: 32 | D55: Vales de ropa | E55: a | F55: a
C56: 33 | D56: Ayuda para renta | E56: a | F56: a
C57: 34 | D57: Ayuda para artículos escolares | E57: a | F57: a
C58: 35 | D58: Ayuda para anteojos | E58: a | F58: a
C59: 36 | D59: Ayuda para transporte | E59: a | F59: a
C60: 37 | D60: Ayuda para gastos de funeral | E60: a | F60: a
C61: 38 | D61: Otros ingresos por salarios | E61: a | F61: a
C62: 047 | D62: Alimentación diferentes a los establecidos en el Art 94 último párrafo LISR | E62: a | F62: a
C63: 48 | D63: Habitación | E63: a | F63: a
C64: Artículo 84 LFT.- El salario se integra con los pagos hechos en efectivo por cuota diaria, gratificaciones, percepciones, habitación, primas, comisiones, prestaciones en especie y cualquiera otra cantidad o prestación que se entregue al trabajador por su trabajo.
C65: Artículo 93 LISR. No se pagará el impuesto sobre la renta por la obtención de los siguientes ingresos: VIII. Los percibidos con motivo de subsidios por incapacidad, becas educacionales para los trabajadores o sus hijos, guarderías infantiles, actividades culturales y deportivas, y otras prestaciones de previsión social, de naturaleza análoga, que se concedan de manera general, de acuerdo con las leyes o por contratos de trabajo. IX. La previsión social a que se refiere la fracción anterior es la establecida en el artículo 7, quinto párrafo de esta Ley. Sexto párrafo La exención aplicable a los ingresos obtenidos por concepto de prestaciones de previsión social se limitará cuando la suma de los ingresos por la prestación de servicios personales subordinados o aquellos que reciban, por parte de las sociedades cooperativas, los socios o miembros de las mismas y el monto de la exención exceda de una cantidad equivalente a siete veces el salario mínimo general del área geográfica del contribuyente, elevado al año; cuando dicha suma exceda de la cantidad citada, solamente se considerará como ingreso no sujeto al pago del impuesto un monto hasta de un salario mínimo general del área geográfica del contribuyente, elevado al año. Esta limitación en ningún caso deberá dar como resultado que la suma de los ingresos por la prestación de servicios personales subordinados o aquellos que reciban, por parte de las sociedades cooperativas, los socios o miembros de las mismas y el importe de la exención, sea inferior a siete veces el salario mínimo general del área geográfica del contribuyente, elevado al año. Séptimo párrafo Lo dispuesto en el párrafo anterior, no será aplicable tratándose de jubilaciones, pensiones, haberes de retiro, pensiones vitalicias, indemnizaciones por riesgos de trabajo o enfermedades, que se concedan de acuerdo con las leyes, contratos colectivos de trabajo o contratos ley, reembolsos de gastos médicos, dentales, hospitalarios y de funeral, concedidos de manera general de acuerdo con las leyes o contratos de trabajo, seguros de gastos médicos, seguros de vida y fondos de ahorro, siempre que se reúnan los requisitos establecidos en las fracciones XI y XXI del artículo 27 de esta Ley, aun cuando quien otorgue dichas prestaciones de previsión social no sea contribuyente del impuesto establecido en esta Ley.
E67: Clasificación apéndice seis guía de llenado del SAT | H67: Claves de deducción que disminuyen la base
B68: Tipo de régimen de contratación | C68: c_TipoPercepcion | D68: Descripción | E68: Gravado | F68: Exento | G68: Límite exención | H68: 038 Ajuste en Horas extra Exento 039 Ajuste en Horas extra Gravado 040 Ajuste en Prima dominical Exento 041 Ajuste en Prima dominical Gravado 042 Ajuste en Prima vacacional Exento 043 Ajuste en Prima vacacional Gravado
B69: 02 Sueldos (Incluye ingresos señalados en la fracción I del artículo 94 de LISR) | C69: 19 | D69: Horas extra | E69: a | F69: a | G69: 5 UMA's por semana de servicio Artículo 93 fracción i de la LISR
C70: 20 | D70: Prima dominical | E70: a | F70: a | G70: 1 UMA's por cada domingo laborado hasta 52 UMA's Artículo 93 fracción XIV de la LISR
C71: 21 | D71: Prima vacacional | E71: a | F71: a | G71: 15 UMA's Artículo 93 fracción XIV de la LISR
C72: Artículo 65 LFT.- En los casos de siniestro o riesgo inminente en que peligre la vida del trabajador, de sus compañeros o del patrón, o la existencia misma de la empresa, la jornada de trabajo podrá prolongarse por el tiempo estrictamente indispensable para evitar esos males. Artículo 66 LFT.- Podrá también prolongarse la jornada de trabajo por circunstancias extraordinarias, sin exceder nunca de tres horas diarias ni de tres veces en una semana. Artículo 67 LFT.- Las horas de trabajo a que se refiere el artículo 65, se retribuirán con una cantidad igual a la que corresponda a cada una de las horas de la jornada. Las horas de trabajo extraordinario se pagarán con un ciento por ciento más del salario que corresponda a las horas de la jornada. Artículo 68 LFT.- Los trabajadores no están obligados a prestar sus servicios por un tiempo mayor del permitido de este capítulo. La prolongación del tiempo extraordinario que exceda de nueve horas a la semana, obliga al patrón a pagar al trabajador el tiempo excedente con un doscientos por ciento más del salario que corresponda a las horas de la jornada, sin perjuicio de las sanciones establecidas en esta Ley. Artículo 71 LFT.- En los reglamentos de esta Ley se procurará que el día de descanso semanal sea el domingo. Los trabajadores que presten servicio en día domingo tendrán derecho a una prima adicional de un veinticinco por ciento, por lo menos, sobre el salario de los días ordinarios de trabajo. Artículo 80 LFT.- Los trabajadores tendrán derecho a una prima no menor de veinticinco por ciento sobre los salarios que les correspondan durante el período de vacaciones.
C73: Artículo 93 LISR. No se pagará el impuesto sobre la renta por la obtención de los siguientes ingresos: I. Las prestaciones distintas del salario que reciban los trabajadores del salario mínimo general para una o varias áreas geográficas, calculadas sobre la base de dicho salario, cuando no excedan de los mínimos señalados por la legislación laboral, así como las remuneraciones por concepto de tiempo extraordinario o de prestación de servicios que se realice en los días de descanso sin disfrutar de otros en sustitución, hasta el límite establecido en la legislación laboral, que perciban dichos trabajadores. Tratándose de los demás trabajadores, el 50% de las remuneraciones por concepto de tiempo extraordinario o de la prestación de servicios que se realice en los días de descanso sin disfrutar de otros en sustitución, que no exceda el límite previsto en la legislación laboral y sin que esta exención exceda del equivalente de cinco veces el salario mínimo general del área geográfica del trabajador por cada semana de servicios. XIV. Las gratificaciones que reciban los trabajadores de sus patrones, durante un año de calendario, hasta el equivalente del salario mínimo general del área geográfica del trabajador elevado a 30 días, cuando dichas gratificaciones se otorguen en forma general; así como las primas vacacionales que otorguen los patrones durante el año de calendario a sus trabajadores en forma general y la participación de los trabajadores en las utilidades de las empresas, hasta por el equivalente a 15 días de salario mínimo general del área geográfica del trabajador, por cada uno de los conceptos señalados. Tratándose de primas dominicales hasta por el equivalente de un salario mínimo general del área geográfica del trabajador por cada domingo que se labore.
E75: Clasificación apéndice seis guía de llenado del SAT | H75: Claves de deducción que disminuyen la base
B76: Tipo de régimen de contratación | C76: c_TipoPercepcion | D76: Descripción | E76: Gravado | F76: Exento | G76: Límite exención | H76: 035 Ajuste en Cuotas Sindicales Pagadas por el Patrón Exento 052 Ajuste en Cuotas de seguridad social pagadas por el patrón Exento
B77: 02 Sueldos (Incluye ingresos señalados en la fracción I del artículo 94 de LISR) | C77: 27 | D77: Cuotas de seguridad social pagadas por el patrón | E77: r | F77: a
C78: Artículo 93 LISR. No se pagará el impuesto sobre la renta por la obtención de los siguientes ingresos: XII. La cuota de seguridad social de los trabajadores pagada por los patrones.
E80: Clasificación apéndice seis guía de llenado del SAT | H80: Claves de deducción que disminuyen la base
B81: Tipo de régimen de contratación | C81: c_TipoPercepcion | D81: Descripción | E81: Gravado | F81: Exento | G81: Límite exención | H81: 063 Ajuste en Otros ingresos por salarios Exento 064 Ajuste en Otros ingresos por salarios Gravado 080 Ajuste en Viáticos gravados 100 Ajuste en Viáticos exentos
B82: 02 Sueldos (Incluye ingresos señalados en la fracción I del artículo 94 de LISR) | C82: 38 | D82: Otros ingresos por salarios | E82: r | F82: a
C83: 50 | D83: Viáticos | E83: r | F83: a
C84: Artículo 93 LISR. No se pagará el impuesto sobre la renta por la obtención de los siguientes ingresos: XVII. Los viáticos, cuando sean efectivamente erogados en servicio del patrón y se compruebe esta circunstancia con los comprobantes fiscales correspondientes.
E89: Clasificación apéndice seis guía de llenado del SAT | H89: Claves de deducción que disminuyen la base
B90: Tipo de régimen de contratación | C90: c_TipoPercepcion | D90: Descripción | E90: Gravado | F90: Exento | G90: Límite exención | H90: 098 Ajuste a ingresos asimilados a salarios gravados
B91: 05 Asimilados Miembros Sociedades Cooperativas Produccion 06 Asimilados Integrantes Sociedades Asociaciones Civiles 07 Asimilados Miembros consejos 08 Asimilados comisionistas 09 Asimilados Honorarios 10 Asimilados acciones 11 Asimilados otros | C91: 45 | D91: Ingresos en acciones o títulos valor que representan bienes | E91: a | F91: r
C92: 046 | D92: Ingresos asimilados a salarios | E92: a | F92: r
C93: Artículo 94 LISR. Se consideran ingresos por la prestación de un servicio personal subordinado, los salarios y demás prestaciones que deriven de una relación laboral, incluyendo la participación de los trabajadores en las utilidades de las empresas y las prestaciones percibidas como consecuencia de la terminación de la relación laboral. Para los efectos de este impuesto, se asimilan a estos ingresos los siguientes: I. Las remuneraciones y demás prestaciones, obtenidas por los funcionarios y trabajadores de la Federación, de las entidades federativas y de los municipios, aun cuando sean por concepto de gastos no sujetos a comprobación, así como los obtenidos por los miembros de las fuerzas armadas. II. Los rendimientos y anticipos, que obtengan los miembros de las sociedades cooperativas de producción, así como los anticipos que reciban los miembros de sociedades y asociaciones civiles. III. Los honorarios a miembros de consejos directivos, de vigilancia, consultivos o de cualquier otra índole, así como los honorarios a administradores, comisarios y gerentes generales. IV. Los honorarios a personas que presten servicios preponderantemente a un prestatario, siempre que los mismos se lleven a cabo en las instalaciones de este último. Para los efectos del párrafo anterior, se entiende que una persona presta servicios preponderantemente a un prestatario, cuando los ingresos que hubiera percibido de dicho prestatario en el año de calendario inmediato anterior, representen más del 50% del total de los ingresos obtenidos por los conceptos a que se refiere la fracción II del artículo 100 de esta Ley. ............................ V. Los honorarios que perciban las personas físicas de personas morales o de personas físicas con actividades empresariales a las que presten servicios personales independientes, cuando comuniquen por escrito al prestatario que optan por pagar el impuesto en los términos de este Capítulo. VI. Los ingresos que perciban las personas físicas de personas morales o de personas físicas con actividades empresariales, por las actividades empresariales que realicen, cuando comuniquen por escrito a la persona que efectúe el pago que optan por pagar el impuesto en los términos de este Capítulo. VII. Los ingresos obtenidos por las personas físicas por ejercer la opción otorgada por el empleador, o una parte relacionada del mismo, para adquirir, incluso mediante suscripción, acciones o títulos valor que representen bienes, sin costo alguno o a un precio menor o igual al de mercado que tengan dichas acciones o títulos valor al momento del ejercicio de la opción, independientemente de que las acciones o títulos valor sean emitidos por el empleador o la parte relacionada del mismo. El ingreso acumulable será la diferencia que exista entre el valor de mercado que tengan las acciones o títulos valor sujetos a la opción, al momento en el que el contribuyente ejerza la misma y el precio establecido al otorgarse la opción.
E98: Clasificación apéndice seis guía de llenado del SAT | H98: Claves de deducción que disminuyen la base
B99: Tipo de régimen de contratación | C99: c_TipoPercepcion | D99: Descripción | E99: Gravado | F99: Exento | G99: Límite exención | H99: 065 Ajuste en Jubilaciones, pensiones o haberes de retiro en una sola exhibición Exento 066 Ajuste en Jubilaciones, pensiones o haberes de retiro en una sola exhibición Gravado 105 Ajuste a pagos que se realicen a extrabajadores que obtengan una jubilación en una sola exhibición derivados de la ejecución de una resolución judicial o de un laudo gravados 106 Ajuste a pagos que se realicen a extrabajadores que obtengan una jubilación en una sola exhibición derivados de la ejecución de una resolución judicial o de un laudo exentos
B100: 03 Jubilados 04 Pensionados 12 Jubilados o Pensionados Pago en una sola exhibición | C100: 39 | D100: Jubilaciones, pensiones o haberes de retiro | E100: a | F100: a | G100: 90 UMA's elavadas al año Art. 171 RLISR
C101: 53 | D101: Pagos que se realicen a extrabajadores que obtengan una jubilación en una sola exhibición derivados de la ejecución de resoluciones judicial o de un laudo | E101: a | F101: a
C102: Artículo 93 LISR. No se pagará el impuesto sobre la renta por la obtención de los siguientes ingresos: IV. Las jubilaciones, pensiones, haberes de retiro, así como las pensiones vitalicias u otras formas de retiro, provenientes de la subcuenta del seguro de retiro o de la subcuenta de retiro, cesantía en edad avanzada y vejez, previstas en la Ley del Seguro Social y las provenientes de la cuenta individual del sistema de ahorro para el retiro prevista en la Ley del Instituto de Seguridad y Servicios Sociales de los Trabajadores del Estado, en los casos de invalidez, incapacidad, cesantía, vejez, retiro y muerte, cuyo monto diario no exceda de quince veces el salario mínimo general del área geográfica del contribuyente, y el beneficio previsto en la Ley de Pensión Universal. Por el excedente se pagará el impuesto en los términos de este Título. Artículo 171 RLISR. Cuando el trabajador convenga con el empleador en que el pago de la jubilación, pensión o haber de retiro, se cubra mediante pago único, no se pagará el Impuesto por éste, cuando el monto de dicho pago no exceda de noventa veces el salario mínimo general del área geográfica del trabajador elevados al año, a que se refiere el artículo 93, fracción XIII de la Ley. Por el excedente se pagará el Impuesto en términos del artículo 95 de la Ley.
E105: Clasificación apéndice seis guía de llenado del SAT | H105: Claves de deducción que disminuyen la base
B106: Tipo de régimen de contratación | C106: c_TipoPercepcion | D106: Descripción | E106: Gravado | F106: Exento | G106: Límite exención | H106: 069 Ajuste en Jubilaciones, pensiones o haberes de retiro en parcialidades Exento 070 Ajuste en Jubilaciones, pensiones o haberes de retiro en parcialidades Gravado 102 Ajuste a pagos por gratificaciones, primas, compensaciones, recompensas u otros a extrabajadores derivados de jubilación en parcialidades, gravados 103 Ajuste a pagos que se realicen a extrabajadores que obtengan una jubilación en parcialidades derivados de la ejecución de una resolución judicial o de un laudo gravados 104 Ajuste a pagos que se realicen a extrabajadores que obtengan una jubilación en parcialidades derivados de la ejecución de una resolución judicial o de un laudo exentos
B107: 03 Jubilados 04 Pensionados 12 Jubilados o Pensionados Pago en en parcialidades | C107: 44 | D107: Jubilaciones, pensiones o haberes de retiro en parcialidades | E107: a | F107: a | G107: 90 UMA's por año de servicio Art. 93 fracción XIII LISR
C108: 51 | D108: Pagos por gratificaciones, primas, compensaciones, recompensas u otros a extrabajadores derivados de jubilación en parcialidades | E108: a | F108: r | G108: N/A
C109: 52 | D109: Pagos que se realicen a extrabajadores que obtengan una jubilación en parcialidades derivados de la ejecución de resoluciones judicial o de un laudo | E109: a | F109: a
C110: Artículo 93 LISR. No se pagará el impuesto sobre la renta por la obtención de los siguientes ingresos: IV. Las jubilaciones, pensiones, haberes de retiro, así como las pensiones vitalicias u otras formas de retiro, provenientes de la subcuenta del seguro de retiro o de la subcuenta de retiro, cesantía en edad avanzada y vejez, previstas en la Ley del Seguro Social y las provenientes de la cuenta individual del sistema de ahorro para el retiro prevista en la Ley del Instituto de Seguridad y Servicios Sociales de los Trabajadores del Estado, en los casos de invalidez, incapacidad, cesantía, vejez, retiro y muerte, cuyo monto diario no exceda de quince veces el salario mínimo general del área geográfica del contribuyente, y el beneficio previsto en la Ley de Pensión Universal. Por el excedente se pagará el impuesto en los términos de este Título. XIII. Los que obtengan las personas que han estado sujetas a una relación laboral en el momento de su separación, por concepto de primas de antigüedad, retiro e indemnizaciones u otros pagos, así como los obtenidos con cargo a la subcuenta del seguro de retiro o a la subcuenta de retiro, cesantía en edad avanzada y vejez, previstas en la Ley del Seguro Social y los que obtengan los trabajadores al servicio del Estado con cargo a la cuenta individual del sistema de ahorro para el retiro, prevista en la Ley del Instituto de Seguridad y Servicios Sociales de los Trabajadores del Estado, y los que obtengan por concepto del beneficio previsto en la Ley de Pensión Universal, hasta por el equivalente a noventa veces el salario mínimo general del área geográfica del contribuyente por cada año de servicio o de contribución en el caso de la subcuenta del seguro de retiro, de la subcuenta de retiro, cesantía en edad avanzada y vejez o de la cuenta individual del sistema de ahorro para el retiro. Los años de servicio serán los que se hubieran considerado para el cálculo de los conceptos mencionados. Toda fracción de
E114: Clasificación apéndice seis guía de llenado del SAT | H114: Claves de deducción que disminuyen la base
B115: Tipo de régimen de contratación | C115: c_TipoPercepcion | D115: Descripción | E115: Gravado | F115: Exento | G115: Límite exención | H115: 044 Ajuste en Prima por antigüedad Exento 045 Ajuste en Prima por antigüedad Gravado 046 Ajuste en Pagos por separación Exento 047 Ajuste en Pagos por separación Gravado 049 Ajuste en Indemnizaciones Exento 050 Ajuste en Indemnizaciones Gravado
B116: 13 Indeminización o separación | C116: 22 | D116: Prima por antigüedad | E116: a | F116: a | G116: 90 UMA's por año de servicio Art. 93, fracción Xlll
C117: 23 | D117: Pagos por separación | E117: a | F117: r | G117: 90 UMA's por año de servicio Art. 93, fracción Xlll
C118: 25 | D118: Indemnizaciones | E118: a | F118: a | G118: 90 UMA's por año de servicio Art. 93, fracción Xlll
C119: Artículo 93 LISR. No se pagará el impuesto sobre la renta por la obtención de los siguientes ingresos: XIII. Los que obtengan las personas que han estado sujetas a una relación laboral en el momento de su separación, por concepto de primas de antigüedad, retiro e indemnizaciones u otros pagos, así como los obtenidos con cargo a la subcuenta del seguro de retiro o a la subcuenta de retiro, cesantía en edad avanzada y vejez, previstas en la Ley del Seguro Social y los que obtengan los trabajadores al servicio del Estado con cargo a la cuenta individual del sistema de ahorro para el retiro, prevista en la Ley del Instituto de Seguridad y Servicios Sociales de los Trabajadores del Estado, y los que obtengan por concepto del beneficio previsto en la Ley de Pensión Universal, hasta por el equivalente a noventa veces el salario mínimo general del área geográfica del contribuyente por cada año de servicio o de contribución en el caso de la subcuenta del seguro de retiro, de la subcuenta de retiro, cesantía en edad avanzada y vejez o de la cuenta individual del sistema de ahorro para el retiro. Los años de servicio serán los que se hubieran considerado para el cálculo de los conceptos mencionados. Toda fracción de

Sheet ANTIGUEDAD (hidden)
B2: Capture la información de las celdas en color
B4: Determinación de la antigüedad
B6: Fecha final de pago | C6: 2024-06-19
B7: Fecha de inicio de la relación laboral | C7: 2014-10-25
B9: Antigüedad en años, meses y días
B10: Años | C10: =IFERROR(DATEDIF(C7,C6,"y"),"") -> 9
B11: Meses | C11: =IFERROR(DATEDIF(C7,C6,"ym"),"") -> 7
B12: Días | C12: =IFERROR(DATEDIF(C7,C6,"md"),"") -> 25
B14: Se presenta en el CFDI | C14: =IF(AND(C10>0,C11>0,C12>0),"P"&C10&"Y"&C11&"M"&C12&"D",IF(AND(C10=0,C11>0,C12>0),"P"&C11&"M"&C12&"D",IF(AND(C10=0,C11=0,C12>0),"P"&C12&"D",IF(AND(C10=0,C11>0,C12=0),"P"&C11&"M",IF(AND(C10>0,C11=0,C12=0),"P"&C10&"Y",""))))) -> P9Y7M25D
B16: Antigüedad en semanas | C16: =IFERROR("P"&INT(DATEDIF(C7,C6,"d")/7)&"W","") -> P503W

Sheet CFDIN (hidden)
B3: Nodo comprobante | E3: Nodo emisor | I3: Nodo receptor
B4: Fecha de expedición * | E4: RFC * | I4: RFC *
B5: Serie | E5: Nombre o razón social * | I5: Nombre o razón social *
B6: Folio | E6: Domicilio fiscal * | I6: Domicilio fiscal *
B7: Método de pago ** | C7: PUE | E7: Régimen fiscal * | I7: Régimen fiscal *
B8: Forma de pago ** | C8: Este campo no debe de existir | E8: FacAtrAdquirente ** | F8: Este campo no debe de existir | I8: País de residencia **
B9: Moneda * | C9: MXN | I9: Registro tributario **
B10: Tipo de cambio ** | C10: Este campo no debe de existir | I10: Uso del CFDI * | J10: CN01
B11: Condiciones de pago | C11: Este campo no debe de existir
B12: Lugar de expedición *
B13: Exportación* | C13: 01
B14: Tipo de comprobante * | C14: N
B16: Nodo tipo de relación
B17: Tipo de relación ** | E17: UUID **
B19: Nodo conceptos
B20: ClaveProdServ * | C20: 84111505 | E20: No. De identificación ** | F20: Este campo no debe de existir | I20: Clave de unidad de medida * | J20: ACT
B22: Unidad ** | C22: Este campo no debe de existir | E22: Cantidad * | F22: 1 | I22: Valor unitario *
B24: Descripción * | C24: Pago de nómina | E24: Importe * | I24: Descuento **
B26: Objeto impuestos * | E26: No. de pedimento ** | F26: Este campo no debe de existir | I26: No. de la cuenta predial ** | J26: Este campo no debe de existir
B28: Complemento de nómina
B29: Tipo de nómina | H29: Número de empleado
B30: Fecha de pago | H30: Departamento
B31: Fecha inicial de pago | H31: Puesto
B32: Fecha final de pago | H32: Riesgo de puesto
B33: Número de días pagados | H33: Periodicidad de pago
B34: Fecha inicio relación laboral | H34: Banco
B35: Antigüedad | H35: Cuenta bancaria
B36: Tipo de contrato | H36: Salario base cuota aportación
B37: Tipo de jornada | H37: Salario diario integrado
B38: Tipo de régimen | H38: Clave entidad federativa
B40: c_TipoPercepcion | C40: Descripción | E40: Gravado | F40: Exento | H40: c_TipoDeduccion | I40: Descripción | J40: Importe
B41: 1 | C41: Sueldos, Salarios Rayas y Jornales | H41: 1 | I41: Seguridad social
B42: 2 | C42: Gratificación Anual (Aguinaldo) | H42: 2 | I42: ISR
B43: 3 | C43: Participación de los Trabajadores en las Utilidades PTU | H43: 3 | I43: Aportaciones a retiro, cesantía en edad avanzada y vejez.
B44: 4 | C44: Reembolso de Gastos Médicos Dentales y Hospitalarios | H44: 4 | I44: Otros
B45: 5 | C45: Fondo de Ahorro | H45: 5 | I45: Aportaciones a Fondo de vivienda
B46: 6 | C46: Caja de ahorro | H46: 6 | I46: Descuento por incapacidad
B47: 9 | C47: Contribuciones a Cargo del Trabajador Pagadas por el Patrón | H47: 7 | I47: Pensión alimenticia
B48: 10 | C48: Premios por puntualidad | H48: 8 | I48: Renta
B49: 11 | C49: Prima de Seguro de vida | H49: 9 | I49: Préstamos provenientes del Fondo Nacional de la Vivienda para los Trabajadores
B50: 12 | C50: Seguro de Gastos Médicos Mayores | H50: 10 | I50: Pago por crédito de vivienda
B51: 13 | C51: Cuotas Sindicales Pagadas por el Patrón | H51: 11 | I51: Pago de abonos INFONACOT
B52: 14 | C52: Subsidios por incapacidad | H52: 12 | I52: Anticipo de salarios
B53: 15 | C53: Becas para trabajadores y/o hijos | H53: 13 | I53: Pagos hechos con exceso al trabajador
B54: 19 | C54: Horas extra | H54: 14 | I54: Errores
B55: 20 | C55: Prima dominical | H55: 15 | I55: Pérdidas
B56: 21 | C56: Prima vacacional | H56: 16 | I56: Averías
B57: 22 | C57: Prima por antigüedad | H57: 17 | I57: Adquisición de artículos producidos por la empresa o establecimiento
B58: 23 | C58: Pagos por separación | H58: 18 | I58: Cuotas para la constitución y fomento de sociedades cooperativas y de cajas de ahorro
B59: 24 | C59: Seguro de retiro | H59: 19 | I59: Cuotas sindicales
B60: 25 | C60: Indemnizaciones | H60: 20 | I60: Ausencia (Ausentismo)
B61: 26 | C61: Reembolso por funeral | H61: 21 | I61: Cuotas obrero patronales
B62: 27 | C62: Cuotas de seguridad social pagadas por el patrón | H62: 22 | I62: Impuestos Locales
B63: 28 | C63: Comisiones | H63: 23 | I63: Aportaciones voluntarias
B64: 29 | C64: Vales de despensa | H64: 24 | I64: Ajuste en Gratificación Anual (Aguinaldo) Exento
B65: 30 | C65: Vales de restaurante | H65: 25 | I65: Ajuste en Gratificación Anual (Aguinaldo) Gravado
B66: 31 | C66: Vales de gasolina | H66: 26 | I66: Ajuste en Participación de los Trabajadores en las Utilidades PTU Exento
B67: 32 | C67: Vales de ropa | H67: 27 | I67: Ajuste en Participación de los Trabajadores en las Utilidades PTU Gravado
B68: 33 | C68: Ayuda para renta | H68: 28 | I68: Ajuste en Reembolso de Gastos Médicos Dentales y Hospitalarios Exento
B69: 34 | C69: Ayuda para artículos escolares | H69: 29 | I69: Ajuste en Fondo de ahorro Exento
B70: 35 | C70: Ayuda para anteojos | H70: 30 | I70: Ajuste en Caja de ahorro Exento
B71: 36 | C71: Ayuda para transporte | H71: 31 | I71: Ajuste en Contribuciones a Cargo del Trabajador Pagadas por el Patrón Exento
B72: 37 | C72: Ayuda para gastos de funeral | H72: 32 | I72: Ajuste en Premios por puntualidad Gravado
B73: 38 | C73: Otros ingresos por salarios | H73: 33 | I73: Ajuste en Prima de Seguro de vida Exento
B74: 39 | C74: Jubilaciones, pensiones o haberes de retiro | H74: 34 | I74: Ajuste en Seguro de Gastos Médicos Mayores Exento
B75: 44 | C75: Jubilaciones, pensiones o haberes de retiro en parcialidades | H75: 35 | I75: Ajuste en Cuotas Sindicales Pagadas por el Patrón Exento
B76: 45 | C76: Ingresos en acciones o títulos valor que representan bienes | H76: 36 | I76: Ajuste en Subsidios por incapacidad Exento
B77: 46 | C77: Ingresos asimilados a salarios | H77: 37 | I77: Ajuste en Becas para trabajadores y/o hijos Exento
B78: 47 | C78: Alimentación diferentes a los establecidos en el Art 94 último párrafo LISR | H78: 38 | I78: Ajuste en Horas extra Exento
B79: 48 | C79: Habitación | H79: 39 | I79: Ajuste en Horas extra Gravado
B80: 49 | C80: Premios por asistencia | H80: 40 | I80: Ajuste en Prima dominical Exento
B81: 50 | C81: Viáticos | H81: 41 | I81: Ajuste en Prima dominical Gravado
B82: 51 | C82: Pagos por gratificaciones, primas, compensaciones, recompensas u otros a extrabajadores derivados de jubilación en parcialidades | H82: 42 | I82: Ajuste en Prima vacacional Exento
B83: 52 | C83: Pagos que se realicen a extrabajadores que obtengan una jubilación en parcialidades derivados de la ejecución de resoluciones judicial o de un laudo | H83: 43 | I83: Ajuste en Prima vacacional Gravado
B84: 53 | C84: Pagos que se realicen a extrabajadores que obtengan una jubilación en una sola exhibición derivados de la ejecución de resoluciones judicial o de un laudo | H84: 44 | I84: Ajuste en Prima por antigüedad Exento
H85: 45 | I85: Ajuste en Prima por antigüedad Gravado
B86: c_TipoOtroPago | C86: Descripción | F86: Importe | H86: 46 | I86: Ajuste en Pagos por separación Exento
B87: 1 | C87: Reintegro de ISR pagado en exceso (siempre que no haya sido enterado al SAT). | H87: 47 | I87: Ajuste en Pagos por separación Gravado
B88: 2 | C88: Subsidio para el empleo (efectivamente entregado al trabajador). | H88: 48 | I88: Ajuste en Seguro de retiro Exento
C89: SUBSIDIO AL EMPLEO CAUSADO | H89: 49 | I89: Ajuste en Indemnizaciones Exento
B90: 3 | C90: Viáticos (entregados al trabajador). | H90: 50 | I90: Ajuste en Indemnizaciones Gravado
B91: 4 | C91: Aplicación de saldo a favor por compensación anual. | H91: 51 | I91: Ajuste en Reembolso por funeral Exento
B92: 5 | C92: Reintegro de ISR retenido en exceso de ejercicio anterior (siempre que no haya sido enterado al SAT). | H92: 52 | I92: Ajuste en Cuotas de seguridad social pagadas por el patrón Exento
B93: 6 | C93: Alimentos en bienes (Servicios de comedor y comida) Art 94 último párrafo LISR. | H93: 53 | I93: Ajuste en Comisiones Gravado
B94: 7 | C94: ISR ajustado por subsidio. | H94: 54 | I94: Ajuste en Vales de despensa Exento
B95: 8 | C95: Subsidio efectivamente entregado que no correspondía (Aplica sólo cuando haya ajuste al cierre de mes en relación con el Apéndice 7 de la guía de llenado de nómina). | H95: 55 | I95: Ajuste en Vales de restaurante Exento
B96: 9 | C96: Reembolso de descuentos efectuados para el crédito de vivienda. | H96: 56 | I96: Ajuste en Vales de gasolina Exento
B97: 999 | C97: Pagos distintos a los listados y que no deben considerarse como ingreso por sueldos, salarios o ingresos asimilados. | H97: 57 | I97: Ajuste en Vales de ropa Exento
H98: 58 | I98: Ajuste en Ayuda para renta Exento
H99: 59 | I99: Ajuste en Ayuda para artículos escolares Exento
H100: 60 | I100: Ajuste en Ayuda para anteojos Exento
H101: 61 | I101: Ajuste en Ayuda para transporte Exento
H102: 62 | I102: Ajuste en Ayuda para gastos de funeral Exento
H103: 63 | I103: Ajuste en Otros ingresos por salarios Exento
H104: 64 | I104: Ajuste en Otros ingresos por salarios Gravado
H105: 65 | I105: Ajuste en Jubilaciones, pensiones o haberes de retiro en una sola exhibición Exento
H106: 66 | I106: Ajuste en Jubilaciones, pensiones o haberes de retiro en una sola exhibición Gravado
H107: 67 | I107: Ajuste en Pagos por separación Acumulable
H108: 68 | I108: Ajuste en Pagos por separación No acumulable
H109: 69 | I109: Ajuste en Jubilaciones, pensiones o haberes de retiro en parcialidades Exento
H110: 70 | I110: Ajuste en Jubilaciones, pensiones o haberes de retiro en parcialidades Gravado
H111: 71 | I111: Ajuste en Subsidio para el empleo (efectivamente entregado al trabajador)
H112: 72 | I112: Ajuste en Ingresos en acciones o títulos valor que representan bienes Exento
H113: 73 | I113: Ajuste en Ingresos en acciones o títulos valor que representan bienes Gravado
H114: 74 | I114: Ajuste en Alimentación Exento
H115: 75 | I115: Ajuste en Alimentación Gravado
H116: 76 | I116: Ajuste en Habitación Exento
H117: 77 | I117: Ajuste en Habitación Gravado
H118: 78 | I118: Ajuste en Premios por asistencia
H119: 79 | I119: Ajuste en Pagos distintos a los listados y que no deben considerarse como ingreso por sueldos, salarios o ingresos asimilados.
H120: 80 | I120: Ajuste en Viáticos gravados
H121: 81 | I121: Ajuste en Viáticos (entregados al trabajador)
H122: 082 | I122: Ajuste en Fondo de ahorro Gravado
H123: 083 | I123: Ajuste en Caja de ahorro Gravado
H124: 084 | I124: Ajuste en Prima de Seguro de vida Gravado
H125: 085 | I125: Ajuste en Seguro de Gastos Médicos Mayores Gravado
H126: 086 | I126: Ajuste en Subsidios por incapacidad Gravado
H127: 087 | I127: Ajuste en Becas para trabajadores y/o hijos Gravado
H128: 088 | I128: Ajuste en Seguro de retiro Gravado
H129: 089 | I129: Ajuste en Vales de despensa Gravado
H130: 090 | I130: Ajuste en Vales de restaurante Gravado
H131: 091 | I131: Ajuste en Vales de gasolina Gravado
H132: 092 | I132: Ajuste en Vales de ropa Gravado
H133: 093 | I133: Ajuste en Ayuda para renta Gravado
H134: 094 | I134: Ajuste en Ayuda para artículos escolares Gravado
H135: 095 | I135: Ajuste en Ayuda para anteojos Gravado
H136: 096 | I136: Ajuste en Ayuda para transporte Gravado
H137: 097 | I137: Ajuste en Ayuda para gastos de funeral Gravado
H138: 098 | I138: Ajuste a ingresos asimilados a salarios gravados
H139: 099 | I139: Ajuste a ingresos por sueldos y salarios gravados
H140: 100 | I140: Ajuste en Viáticos exentos
H141: 101 | I141: ISR Retenido de ejercicio anterior
H142: 102 | I142: Ajuste a pagos por gratificaciones, primas, compensaciones, recompensas u otros a extrabajadores derivados de jubilación en parcialidades, gravados
H143: 103 | I143: Ajuste a pagos que se realicen a extrabajadores que obtengan una jubilación en parcialidades derivados de la ejecución de una resolución judicial o de un laudo gravados
H144: 104 | I144: Ajuste a pagos que se realicen a extrabajadores que obtengan una jubilación en parcialidades derivados de la ejecución de una resolución judicial o de un laudo exentos
H145: 105 | I145: Ajuste a pagos que se realicen a extrabajadores que obtengan una jubilación en una sola exhibición derivados de la ejecución de una resolución judicial o de un laudo gravados
H146: 106 | I146: Ajuste a pagos que se realicen a extrabajadores que obtengan una jubilación en una sola exhibición derivados de la ejecución de una resolución judicial o de un laudo exentos
H147: 107 | I147: Ajuste al Subsidio Causado
B199: * Es campo obligatorio
B200: ** Campo condicional
B201: Los campos en color rojo son nuevos de la versión 4.0

Sheet EJEMPLO (hidden)
B4: Nodo comprobante | E4: Nodo emisor | H4: Nodo receptor
B6: Fecha de expedición * | C6: =TODAY() -> 2024-11-07 | E6: RFC * | F6: JBE980215KI8 | H6: RFC * | I6: MEM890603KI8
B7: Serie ** | E7: Nombre * | F7: JBE | H7: Nombre * | I7: MEM
B8: Folio ** | C8: 8965 | E8: Régimen fiscal * | F8: 601 | H8: Domicilio fiscal del receptor * | I8: 06600
E9: FacAtrAdquirente *** | H9: Residencia fiscal ***
H10: No. de registro tributario ***
B11: Forma de pago *** | C11: 99 | D11: =IFERROR(VLOOKUP(C11,CATALOGO!$B$4:$C$25,2,FALSE)&IF(VLOOKUP(C11,CATALOGO!$B$4:$D$25,3,FALSE)="Sí"," (Bancarizado)",""),"") -> Por definir | H11: Régimen fiscal * | I11: 601 | J11: =IFERROR(VLOOKUP(I11,CATALOGO!$F$29:$G$47,2,FALSE),"") -> General de Ley Personas Morales
B12: Método de pago *** | C12: PPD | D12: =IFERROR(VLOOKUP(C12,CATALOGO!$B$28:$C$29,2,FALSE),"") -> Pago en parcialidades o diferido | H12: Uso del CFDI * | I12: G01 | J12: =IF(AND(I11<>"",I12<>""),IF(ISERROR(FIND(I11,INDIRECT("CATALOGO!J"&MATCH(I12,CATALOGO!$H:$H,0))))=FALSE,VLOOKUP(I12,CATALOGO!$H$51:$I$74,2,FALSE),"Esta clave no puede utilizarse con el tipo de régimen seleccionado"),"") -> Adquisición de mercancías.
B13: Moneda * | C13: MXN
B14: Tipo de cambio ***
B15: Tipo de comprobante * | C15: I | D15: =IFERROR(VLOOKUP(C15,CATALOGO!$B$32:$C$37,2,FALSE),"") -> Ingreso
B16: Exportación * | C16: 01 | D16: =IFERROR(IF(C16="02",HYPERLINK("#"&"COMPLEMENTOCE!$B$4","Definitiva con clave A1"),VLOOKUP(C16,CATALOGO!$B$40:$C$43,2,FALSE)),"") -> No aplica
B17: Lugar de expedición * | C17: 14410
B18: Confirmación ***
B20: CFDI relacionados **
B22: Tipo de relación | D22: =IFERROR(VLOOKUP(C22,CATALOGO!$H$77:$I$83,2,FALSE),"") ->  | H22: UUID
B24: Nodo factura global **
B26: Periodicidad * | E26: Meses * | H26: Año *
B28: Nodo conceptos
B30: Clave producto/ servicio * | C30: 84111506 | E30: No. de identificación ** | H30: Cantidad * | I30: 1
B32: Clave de unidad * | C32: ACT | E32: Unidad ** | H32: Descripción * | I32: Anticipo de mercancía
B34: Valor unitario * | C34: 50000 | E34: Importe * | F34: =I30*C34 -> 50000 | H34: Descuento **
B36: Objeto de impuesto * | C36: 02 | E36: Pedimento *** | H36: Número ***
B38: Nodo de impuestos trasladados **
B39: Base * | C39: =F34-I34 -> 50000 | E39: Impuesto * | F39: 02 | H39: Tipo factor * | I39: Tasa
B41: Tasa o cuota ** | C41: 0.16 | E41: Importe ** | F41: =C39*C41 -> 8000
B44: Nodo de impuestos retenidos **
B45: Base * | E45: Impuesto * | H45: Tipo factor *
B47: Tasa o cuota ** | E47: Importe **
H50: Subtotal * | I50: =F34 -> 50000
H51: (-) Descuento ** | I51: =I34 -> 0
H52: (+) Impuestos trasladados ** | I52: =F41 -> 8000
H53: (-) Impuestos retenidos **
H54: (=) Total * | I54: =I50-I51+I52-I53 -> 58000
B56: * Campo obligatorio
B57: ** Campo opcional
B58: *** Campo condicional
B61: El cliente solicita el cambio de CFDI por error en el campo descripción
B63: Emisor
B74: Nodo comprobante | E74: Nodo emisor | H74: Nodo receptor
B76: Fecha de expedición * | C76: 2024-06-20 | E76: RFC * | F76: JBE980215KI8 | H76: RFC * | I76: MEM890603KI8
B77: Serie ** | E77: Nombre * | F77: JBE | H77: Nombre * | I77: MEM
B78: Folio ** | C78: 8965 | E78: Régimen fiscal * | F78: 601 | H78: Domicilio fiscal del receptor * | I78: 06600
E79: FacAtrAdquirente *** | H79: Residencia fiscal ***
H80: No. de registro tributario ***
B81: Forma de pago *** | C81: 99 | D81: =IFERROR(VLOOKUP(C81,CATALOGO!$B$4:$C$25,2,FALSE)&IF(VLOOKUP(C81,CATALOGO!$B$4:$D$25,3,FALSE)="Sí"," (Bancarizado)",""),"") -> Por definir | H81: Régimen fiscal * | I81: 601 | J81: =IFERROR(VLOOKUP(I81,CATALOGO!$F$29:$G$47,2,FALSE),"") -> General de Ley Personas Morales
B82: Método de pago *** | C82: PPD | D82: =IFERROR(VLOOKUP(C82,CATALOGO!$B$28:$C$29,2,FALSE),"") -> Pago en parcialidades o diferido | H82: Uso del CFDI * | I82: G01 | J82: =IF(AND(I81<>"",I82<>""),IF(ISERROR(FIND(I81,INDIRECT("CATALOGO!J"&MATCH(I82,CATALOGO!$H:$H,0))))=FALSE,VLOOKUP(I82,CATALOGO!$H$51:$I$74,2,FALSE),"Esta clave no puede utilizarse con el tipo de régimen seleccionado"),"") -> Adquisición de mercancías.
B83: Moneda * | C83: MXN
B84: Tipo de cambio ***
B85: Tipo de comprobante * | C85: I | D85: =IFERROR(VLOOKUP(C85,CATALOGO!$B$32:$C$37,2,FALSE),"") -> Ingreso
B86: Exportación * | C86: 01 | D86: =IFERROR(IF(C86="02",HYPERLINK("#"&"COMPLEMENTOCE!$B$4","Definitiva con clave A1"),VLOOKUP(C86,CATALOGO!$B$40:$C$43,2,FALSE)),"") -> No aplica
B87: Lugar de expedición * | C87: 14410
B88: Confirmación ***
B90: CFDI relacionados **
B92: Tipo de relación | C92: 04 | D92: =IFERROR(VLOOKUP(C92,CATALOGO!$H$77:$I$83,2,FALSE),"") -> Sustitución de los CFDI previos | H92: UUID | I92: Folio fiscal del cancelado
B94: Nodo factura global **
B96: Periodicidad * | E96: Meses * | H96: Año *
B98: Nodo conceptos
B100: Clave producto/ servicio * | C100: 84111506 | E100: No. de identificación ** | H100: Cantidad * | I100: 1
B102: Clave de unidad * | C102: ACT | E102: Unidad ** | H102: Descripción * | I102: Anticipo del bien o servicio
B104: Valor unitario * | C104: 50000 | E104: Importe * | F104: =I100*C104 -> 50000 | H104: Descuento **
B106: Objeto de impuesto * | C106: 02 | E106: Pedimento *** | H106: Número ***
B108: Nodo de impuestos trasladados **
B109: Base * | C109: =F104-I104 -> 50000 | E109: Impuesto * | F109: 02 | H109: Tipo factor * | I109: Tasa
B111: Tasa o cuota ** | C111: 0.16 | E111: Importe ** | F111: =C109*C111 -> 8000
B114: Nodo de impuestos retenidos **
B115: Base * | E115: Impuesto * | H115: Tipo factor *
B117: Tasa o cuota ** | E117: Importe **
H120: Subtotal * | I120: =F104 -> 50000
H121: (-) Descuento ** | I121: =I104 -> 0
H122: (+) Impuestos trasladados ** | I122: =F111 -> 8000
H123: (-) Impuestos retenidos **
H124: (=) Total * | I124: =I120-I121+I122-I123 -> 58000
B126: * Campo obligatorio
B127: ** Campo opcional
B128: *** Campo condicional
B131: Se emtie el CFDI por la venta total y se aplica el anticipo con una nota de crédito
B133: Nodo comprobante | E133: Nodo emisor | H133: Nodo receptor
B135: Fecha de expedición * | C135: 2024-06-25 | E135: RFC * | F135: JBE980215KI8 | H135: RFC * | I135: MEM890603KI8
B136: Serie ** | E136: Nombre * | F136: JBE | H136: Nombre * | I136: MEM
B137: Folio ** | C137: 9856 | E137: Régimen fiscal * | F137: 601 | H137: Domicilio fiscal del receptor * | I137: 06600
E138: FacAtrAdquirente *** | H138: Residencia fiscal ***
H139: No. de registro tributario ***
B140: Forma de pago *** | C140: 03 | D140: =IFERROR(VLOOKUP(C140,CATALOGO!$B$4:$C$25,2,FALSE)&IF(VLOOKUP(C140,CATALOGO!$B$4:$D$25,3,FALSE)="Sí"," (Bancarizado)",""),"") -> Transferencia electrónica de fondos (Bancarizado) | H140: Régimen fiscal * | I140: 601 | J140: =IFERROR(VLOOKUP(I140,CATALOGO!$F$29:$G$47,2,FALSE),"") -> General de Ley Personas Morales
B141: Método de pago *** | C141: PUE | D141: =IFERROR(VLOOKUP(C141,CATALOGO!$B$28:$C$29,2,FALSE),"") -> Pago en una sola exhibición | H141: Uso del CFDI * | I141: G01 | J141: =IF(AND(I140<>"",I141<>""),IF(ISERROR(FIND(I140,INDIRECT("CATALOGO!J"&MATCH(I141,CATALOGO!$H:$H,0))))=FALSE,VLOOKUP(I141,CATALOGO!$H$51:$I$74,2,FALSE),"Esta clave no puede utilizarse con el tipo de régimen seleccionado"),"") -> Adquisición de mercancías.
B142: Moneda * | C142: MXN
B143: Tipo de cambio ***
B144: Tipo de comprobante * | C144: I | D144: =IFERROR(VLOOKUP(C144,CATALOGO!$B$32:$C$37,2,FALSE),"") -> Ingreso
B145: Exportación * | C145: 01 | D145: =IFERROR(IF(C145="02",HYPERLINK("#"&"COMPLEMENTOCE!$B$4","Definitiva con clave A1"),VLOOKUP(C145,CATALOGO!$B$40:$C$43,2,FALSE)),"") -> No aplica
B146: Lugar de expedición * | C146: 14410
B147: Confirmación ***
B150: CFDI relacionados **
B152: Tipo de relación | C152: 07 | D152: =IFERROR(VLOOKUP(C152,CATALOGO!$H$77:$I$83,2,FALSE),"") -> CFDI por aplicación de anticipo | H152: UUID | I152: Folio fiscal del anticipo
B154: Nodo conceptos
B156: Clave producto/ servicio * | C156: 50202200 | E156: No. de identificación ** | H156: Cantidad * | I156: 100
B158: Clave de unidad * | C158: XBX | E158: Unidad ** | H158: Descripción * | I158: Vino tinto de 750ml
B160: Valor unitario * | C160: 1350 | E160: Importe * | F160: =I156*C160 -> 135000 | H160: Descuento **
B162: Objeto de impuesto * | C162: 02 | E162: Pedimento *** | H162: Número ***
B164: Nodo de impuestos trasladados **
B165: Base * | C165: =F160-I160 -> 135000 | E165: Impuesto * | F165: 02 | H165: Tipo factor * | I165: Tasa
B167: Tasa o cuota ** | C167: 0.16 | E167: Importe ** | F167: =C165*C167 -> 21600
H170: Subtotal * | I170: =F160 -> 135000
H171: (-) Descuento ** | I171: =I160 -> 0
H172: (+) Impuestos trasladados ** | I172: =F167 -> 21600
H173: (-) Impuestos retenidos **
H174: (=) Total * | I174: =I170-I171+I172-I173 -> 156600
B176: * Campo obligatorio
B177: ** Campo opcional
B178: *** Campo condicional
B182: Nodo comprobante | E182: Nodo emisor | H182: Nodo receptor
B184: Fecha de expedición * | C184: 2024-06-25 | E184: RFC * | F184: JBE980215KI8 | H184: RFC * | I184: MEM890603KI8
B185: Serie ** | E185: Nombre * | F185: JBE | H185: Nombre * | I185: MEM
B186: Folio ** | C186: 9856 | E186: Régimen fiscal * | F186: 601 | H186: Domicilio fiscal del receptor * | I186: 06600
E187: FacAtrAdquirente *** | H187: Residencia fiscal ***
H188: No. de registro tributario ***
B189: Forma de pago *** | C189: 30 | D189: =IFERROR(VLOOKUP(C189,CATALOGO!$B$4:$C$25,2,FALSE)&IF(VLOOKUP(C189,CATALOGO!$B$4:$D$25,3,FALSE)="Sí"," (Bancarizado)",""),"") -> Aplicación de anticipos | H189: Régimen fiscal * | I189: 601 | J189: =IFERROR(VLOOKUP(I189,CATALOGO!$F$29:$G$47,2,FALSE),"") -> General de Ley Personas Morales
B190: Método de pago *** | C190: PUE | D190: =IFERROR(VLOOKUP(C190,CATALOGO!$B$28:$C$29,2,FALSE),"") -> Pago en una sola exhibición | H190: Uso del CFDI * | I190: G01 | J190: =IF(AND(I189<>"",I190<>""),IF(ISERROR(FIND(I189,INDIRECT("CATALOGO!J"&MATCH(I190,CATALOGO!$H:$H,0))))=FALSE,VLOOKUP(I190,CATALOGO!$H$51:$I$74,2,FALSE),"Esta clave no puede utilizarse con el tipo de régimen seleccionado"),"") -> Adquisición de mercancías.
B191: Moneda * | C191: MXN
B192: Tipo de cambio ***
B193: Tipo de comprobante * | C193: E | D193: =IFERROR(VLOOKUP(C193,CATALOGO!$B$32:$C$37,2,FALSE),"") -> Egreso
B194: Exportación * | C194: 01 | D194: =IFERROR(IF(C194="02",HYPERLINK("#"&"COMPLEMENTOCE!$B$4","Definitiva con clave A1"),VLOOKUP(C194,CATALOGO!$B$40:$C$43,2,FALSE)),"") -> No aplica
B195: Lugar de expedición * | C195: 14410
B196: Confirmación ***
B199: CFDI relacionados **
B201: Tipo de relación | C201: 07 | D201: =IFERROR(VLOOKUP(C201,CATALOGO!$H$77:$I$83,2,FALSE),"") -> CFDI por aplicación de anticipo | H201: UUID | I201: Folio fiscal de la venta
B203: Nodo conceptos
B205: Clave producto/ servicio * | C205: 84111506 | E205: No. de identificación ** | H205: Cantidad * | I205: 1
B207: Clave de unidad * | C207: ACT | E207: Unidad ** | H207: Descripción * | I207: Aplicación de anticipo
B209: Valor unitario * | C209: 50000 | E209: Importe * | F209: =I205*C209 -> 50000 | H209: Descuento **
B211: Objeto de impuesto * | C211: 02 | E211: Pedimento *** | H211: Número ***
B213: Nodo de impuestos trasladados **
B214: Base * | C214: =F209-I209 -> 50000 | E214: Impuesto * | F214: 02 | H214: Tipo factor * | I214: Tasa
B216: Tasa o cuota ** | C216: 0.16 | E216: Importe ** | F216: =C214*C216 -> 8000
H219: Subtotal * | I219: =F209 -> 50000
H220: (-) Descuento ** | I220: =I209 -> 0
H221: (+) Impuestos trasladados ** | I221: =F216 -> 8000
H222: (-) Impuestos retenidos **
H223: (=) Total * | I223: =I219-I220+I221-I222 -> 58000
B225: * Campo obligatorio
B226: ** Campo opcional
B227: *** Campo condicional
B229: Aplicación de anticipo en la misma factura de la venta
B231: Nodo comprobante | E231: Nodo emisor | H231: Nodo receptor
B233: Fecha de expedición * | C233: 2024-06-25 | E233: RFC * | F233: JBE980215KI8 | H233: RFC * | I233: MEM890603KI8
B234: Serie ** | E234: Nombre * | F234: JBE | H234: Nombre * | I234: MEM
B235: Folio ** | C235: 9856 | E235: Régimen fiscal * | F235: 601 | H235: Domicilio fiscal del receptor * | I235: 06600
E236: FacAtrAdquirente *** | H236: Residencia fiscal ***
H237: No. de registro tributario ***
B238: Forma de pago *** | C238: 03 | D238: =IFERROR(VLOOKUP(C238,CATALOGO!$B$4:$C$25,2,FALSE)&IF(VLOOKUP(C238,CATALOGO!$B$4:$D$25,3,FALSE)="Sí"," (Bancarizado)",""),"") -> Transferencia electrónica de fondos (Bancarizado) | H238: Régimen fiscal * | I238: 601 | J238: =IFERROR(VLOOKUP(I238,CATALOGO!$F$29:$G$47,2,FALSE),"") -> General de Ley Personas Morales
B239: Método de pago *** | C239: PUE | D239: =IFERROR(VLOOKUP(C239,CATALOGO!$B$28:$C$29,2,FALSE),"") -> Pago en una sola exhibición | H239: Uso del CFDI * | I239: G01 | J239: =IF(AND(I238<>"",I239<>""),IF(ISERROR(FIND(I238,INDIRECT("CATALOGO!J"&MATCH(I239,CATALOGO!$H:$H,0))))=FALSE,VLOOKUP(I239,CATALOGO!$H$51:$I$74,2,FALSE),"Esta clave no puede utilizarse con el tipo de régimen seleccionado"),"") -> Adquisición de mercancías.
B240: Moneda * | C240: MXN
B241: Tipo de cambio ***
B242: Tipo de comprobante * | C242: I | D242: =IFERROR(VLOOKUP(C242,CATALOGO!$B$32:$C$37,2,FALSE),"") -> Ingreso
B243: Exportación * | C243: 01 | D243: =IFERROR(IF(C243="02",HYPERLINK("#"&"COMPLEMENTOCE!$B$4","Definitiva con clave A1"),VLOOKUP(C243,CATALOGO!$B$40:$C$43,2,FALSE)),"") -> No aplica
B244: Lugar de expedición * | C244: 14410
B245: Confirmación ***
B248: CFDI relacionados **
B250: Tipo de relación | C250: 07 | D250: =IFERROR(VLOOKUP(C250,CATALOGO!$H$77:$I$83,2,FALSE),"") -> CFDI por aplicación de anticipo | H250: UUID | I250: Folio fiscal del anticipo
B252: Nodo conceptos
B254: Clave producto/ servicio * | C254: 50202200 | E254: No. de identificación ** | H254: Cantidad * | I254: 100
B256: Clave de unidad * | C256: XBX | E256: Unidad ** | H256: Descripción * | I256: Vino tinto de 750ml, CFDI por remanente de un anticipo
B258: Valor unitario * | C258: 1350 | E258: Importe * | F258: =I254*C258 -> 135000 | H258: Descuento ** | I258: 50000
B260: Objeto de impuesto * | C260: 02 | E260: Pedimento *** | H260: Número ***
B262: Nodo de impuestos trasladados **
B263: Base * | C263: =F258-I258 -> 85000 | E263: Impuesto * | F263: 02 | H263: Tipo factor * | I263: Tasa
B265: Tasa o cuota ** | C265: 0.16 | E265: Importe ** | F265: =C263*C265 -> 13600
H268: Subtotal * | I268: =F258 -> 135000
H269: (-) Descuento ** | I269: =I258 -> 50000
H270: (+) Impuestos trasladados ** | I270: =F265 -> 13600
H271: (-) Impuestos retenidos **
H272: (=) Total * | I272: =I268-I269+I270-I271 -> 98600
B274: * Campo obligatorio
B275: ** Campo opcional
B276: *** Campo condicional
B281: Nodo comprobante | E281: Nodo emisor | H281: Nodo receptor
B283: Fecha de expedición * | C283: =TODAY() -> 2024-11-07 | E283: RFC * | F283: MOSE870302LO9 | H283: RFC * | I283: MEM890603KI8
B284: Serie ** | E284: Nombre * | F284: Enrique Montes Sa | H284: Nombre * | I284: MEM
B285: Folio ** | C285: 5749 | E285: Régimen fiscal * | F285: 612 | H285: Domicilio fiscal del receptor * | I285: 06600
E286: FacAtrAdquirente *** | H286: Residencia fiscal ***
H287: No. de registro tributario ***
B288: Forma de pago *** | C288: 99 | D288: =IFERROR(VLOOKUP(C288,CATALOGO!$B$4:$C$25,2,FALSE)&IF(VLOOKUP(C288,CATALOGO!$B$4:$D$25,3,FALSE)="Sí"," (Bancarizado)",""),"") -> Por definir | H288: Régimen fiscal * | I288: 601 | J288: =IFERROR(VLOOKUP(I288,CATALOGO!$F$29:$G$47,2,FALSE),"") -> General de Ley Personas Morales
B289: Método de pago *** | C289: PPD | D289: =IFERROR(VLOOKUP(C289,CATALOGO!$B$28:$C$29,2,FALSE),"") -> Pago en parcialidades o diferido | H289: Uso del CFDI * | I289: G03 | J289: =IF(AND(I288<>"",I289<>""),IF(ISERROR(FIND(I288,INDIRECT("CATALOGO!J"&MATCH(I289,CATALOGO!$H:$H,0))))=FALSE,VLOOKUP(I289,CATALOGO!$H$51:$I$74,2,FALSE),"Esta clave no puede utilizarse con el tipo de régimen seleccionado"),"") -> Gastos en general.
B290: Moneda * | C290: MXN
B291: Tipo de cambio ***
B292: Tipo de comprobante * | C292: I | D292: =IFERROR(VLOOKUP(C292,CATALOGO!$B$32:$C$37,2,FALSE),"") -> Ingreso
B293: Exportación * | C293: 01 | D293: =IFERROR(IF(C293="02",HYPERLINK("#"&"COMPLEMENTOCE!$B$4","Definitiva con clave A1"),VLOOKUP(C293,CATALOGO!$B$40:$C$43,2,FALSE)),"") -> No aplica
B294: Lugar de expedición * | C294: 14410
B295: Confirmación ***
B298: Nodo conceptos
B300: Clave producto/ servicio * | C300: 84111500 | E300: No. de identificación ** | H300: Cantidad * | I300: 1
B302: Clave de unidad * | C302: E48 | E302: Unidad ** | H302: Descripción * | I302: Servicio contable junio 2024
B304: Valor unitario * | C304: 6000 | E304: Importe * | F304: =I300*C304 -> 6000 | H304: Descuento **
B306: Objeto de impuesto * | C306: 02 | E306: Pedimento *** | H306: Número ***
B308: Nodo de impuestos trasladados **
B309: Base * | C309: =F304-I304 -> 6000 | E309: Impuesto * | F309: 02 | H309: Tipo factor * | I309: Tasa
B311: Tasa o cuota ** | C311: 0.16 | E311: Importe ** | F311: =C309*C311 -> 960
H315: Subtotal * | I315: =F304 -> 6000
H316: (-) Descuento ** | I316: =I304 -> 0
H317: (+) Impuestos trasladados ** | I317: =F311 -> 960
H318: (-) Impuestos retenidos **
... 4 more rows

Sheet EJEMPLON (hidden)
B3: Trabajador de salario mínimo
B4: Salario diario | C4: 248.93
B5: Tiempo extra | C5: 9 | D5: Artículo 67 y 68 LFT
B6: Día de descanso trabajado | C6: 1 | D6: Artículo 73 LFT
B8: Tiempo extra | C8: 9
B9: (x) Cuota x hora | C9: =C4/4 -> 62.2325
B10: Total | C10: =C8*C9 -> 560.0925
B11: (+) Día de descanso | C11: =C4*2 -> 497.86
B13: Tope tiempo extra | C13: =108.57*5 -> 542.85
B14: Valor de la uma mensual | C14: 3300.53
B17: Tipo de percepción | C17: Descripción | D17: Gravado | E17: Exento
B18: 1 | C18: Sueldos, Salarios Rayas y Jornales | D18: =C4*7 -> 1742.51
B19: 38 | C19: Tiempo extra | E19: =C10 -> 560.0925
B20: 38 | C20: Día de descanso | E20: =C11 -> 497.86
B22: Tipo | C22: Descripción | E22: Importe
B23: 2 | C23: Subsidio para el empleo (efectivamente entregado al trabajador). | E23: 0
C24: Subsidio al empleo causado | E24: =IFERROR(ROUND(C14*11.82%/30.4*7,2),"") -> 89.83
B28: ISR causado | C28: =IFERROR(ROUND(((D18-VLOOKUP(D18,TSEMANAL,1))*VLOOKUP(D18,TSEMANAL,4)%)+VLOOKUP(D18,TSEMANAL,3),2),"") -> 116.56
B36: II. Tarifa aplicable cuando hagan pagos que correspondan a un periodo de 7 días, correspondiente a 2024 a que se refieren los artículos 96 de la Ley del ISR y 175 de su Reglamento, así como la regla 3.12.2.
B37: Límite inferior | C37: Límite superior | D37: Cuota fija | E37: Por ciento para aplicarse sobre el excedente del límite inferior
B38: $ | C38: $ | D38: $ | E38: %
B39: 0.01 | C39: 171.78 | D39: 0 | E39: 1.92
B40: 171.79 | C40: 1458.03 | D40: 3.29 | E40: 6.4
B41: 1458.04 | C41: 2562.35 | D41: 85.61 | E41: 10.88
B42: 2562.36 | C42: 2978.64 | D42: 205.8 | E42: 16
B43: 2978.65 | C43: 3566.22 | D43: 272.37 | E43: 17.92
B44: 3566.23 | C44: 7192.64 | D44: 377.65 | E44: 21.36
B45: 7192.65 | C45: 11336.57 | D45: 1152.27 | E45: 23.52
B46: 11336.58 | C46: 21643.3 | D46: 2126.95 | E46: 30
B47: 21643.31 | C47: 28857.78 | D47: 5218.92 | E47: 32
B48: 28857.79 | C48: 86573.34 | D48: 7527.59 | E48: 34
B49: 86573.35 | C49: En adelante | D49: 27150.83 | E49: 35

Sheet CATALOGO (hidden)
B3: c_FormaPago | C3: Descripción | D3: Bancarizado | F3: C_UnidadMedida | G3: Descripción
B4: 01 | C4: Efectivo | D4: No | F4: 01 | G4: KILO
B5: 02 | C5: Cheque nominativo | D5: Sí | F5: 02 | G5: GRAMO
B6: 03 | C6: Transferencia electrónica de fondos | D6: Sí | F6: 03 | G6: METRO LINEAL
B7: 04 | C7: Tarjeta de crédito | D7: Sí | F7: 04 | G7: METRO CUADRADO
B8: 05 | C8: Monedero electrónico | D8: Sí | F8: 05 | G8: METRO CUBICO
B9: 06 | C9: Dinero electrónico | D9: Sí | F9: 06 | G9: PIEZA
B10: 08 | C10: Vales de despensa | D10: No | F10: 07 | G10: CABEZA
B11: 12 | C11: Dación en pago | D11: No | F11: 08 | G11: LITRO
B12: 13 | C12: Pago por subrogación | D12: No | F12: 09 | G12: PAR
B13: 14 | C13: Pago por consignación | D13: No | F13: 10 | G13: KILOWATT
B14: 15 | C14: Condonación | D14: No | F14: 11 | G14: MILLAR
B15: 17 | C15: Compensación | D15: No | F15: 12 | G15: JUEGO
B16: 23 | C16: Novación | D16: No | F16: 13 | G16: KILOWATT/HORA
B17: 24 | C17: Confusión | D17: No | F17: 14 | G17: TONELADA
B18: 25 | C18: Remisión de deuda | D18: No | F18: 15 | G18: BARRIL
B19: 26 | C19: Prescripción o caducidad | D19: No | F19: 16 | G19: GRAMO NETO
B20: 27 | C20: A satisfacción del acreedor | D20: No | F20: 17 | G20: DECENAS
B21: 28 | C21: Tarjeta de débito | D21: Sí | F21: 18 | G21: CIENTOS
B22: 29 | C22: Tarjeta de servicios | D22: Sí | F22: 19 | G22: DOCENAS
B23: 30 | C23: Aplicación de anticipos | D23: No | F23: 20 | G23: CAJA
B24: 31 | C24: Intermediario pagos | D24: No | F24: 21 | G24: BOTELLA
B25: 99 | C25: Por definir | D25: Opcional | F25: 22 | G25: CARAT
F26: 99 | G26: SERVICIO
B27: c_MetodoPago | C27: Descripción
B28: PUE | C28: Pago en una sola exhibición | F28: c_RegimenFiscal | G28: Descripción
B29: PPD | C29: Pago en parcialidades o diferido | F29: 601 | G29: General de Ley Personas Morales
F30: 603 | G30: Personas Morales con Fines no Lucrativos
B31: c_TipoDeComprobante | C31: Descripción | F31: 605 | G31: Sueldos y Salarios e Ingresos Asimilados a Salarios
B32: I | C32: Ingreso | F32: 606 | G32: Arrendamiento
B33: E | C33: Egreso | F33: 607 | G33: Régimen de Enajenación o Adquisición de Bienes
B34: T | C34: Traslado | F34: 608 | G34: Demás ingresos
B35: N | C35: Nómina | F35: 610 | G35: Residentes en el Extranjero sin Establecimiento Permanente en México
F36: 611 | G36: Ingresos por Dividendos (socios y accionistas)
B37: P | C37: Pago | F37: 612 | G37: Personas Físicas con Actividades Empresariales y Profesionales
F38: 614 | G38: Ingresos por intereses
B39: c_Exportacion | C39: Descripción | F39: 615 | G39: Régimen de los ingresos por obtención de premios
B40: 01 | C40: No aplica | F40: 616 | G40: Sin obligaciones fiscales
B41: 02 | C41: Definitiva con clave A1 | F41: 620 | G41: Sociedades Cooperativas de Producción que optan por diferir sus ingresos
B42: 03 | C42: Temporal | F42: 621 | G42: Incorporación Fiscal
B43: 04 | C43: Definitiva con clave distinta a A1 o cuando no existe enajenación en términos del CFF | F43: 622 | G43: Actividades Agrícolas, Ganaderas, Silvícolas y Pesqueras
F44: 623 | G44: Opcional para Grupos de Sociedades
B45: c_MotivoTraslado | C45: Descripción | F45: 624 | G45: Coordinados
B46: 01 | C46: Envío de mercancias facturadas con anterioridad | F46: 625 | G46: Régimen de las Actividades Empresariales con ingresos a través de Plataformas Tecnológicas
B47: 02 | C47: Reubicación de mercancías propias | F47: 626 | G47: Régimen Simplificado de Confianza
B48: 03 | C48: Envío de mercancías objeto de contrato de consignación
B49: 04 | C49: Envío de mercancías para posterior enajenación | H49: c_UsoCFDI | I49: Descripción | J49: Régimen Fiscal Receptor
B50: 05 | C50: Envío de mercancías propiedad de terceros
B51: 99 | C51: Otros | H51: G01 | I51: Adquisición de mercancías. | J51: 601, 603, 606, 612, 620, 621, 622, 623, 624, 625,626
H52: G02 | I52: Devoluciones, descuentos o bonificaciones. | J52: 601, 603, 606, 612, 616, 620, 621, 622, 623, 624, 625,626
B53: c_ClavePedimento | C53: Descripción | H53: G03 | I53: Gastos en general. | J53: 601, 603, 606, 612, 620, 621, 622, 623, 624, 625, 626
B54: A1 | C54: IMPORTACION O EXPORTACION DEFINITIVA | H54: I01 | I54: Construcciones. | J54: 601, 603, 606, 612, 620, 621, 622, 623, 624, 625, 626
H55: I02 | I55: Mobiliario y equipo de oficina por inversiones. | J55: 601, 603, 606, 612, 620, 621, 622, 623, 624, 625, 626
B56: c_INCOTERM | C56: Descripción | H56: I03 | I56: Equipo de transporte. | J56: 601, 603, 606, 612, 620, 621, 622, 623, 624, 625, 626
B57: CFR | C57: COSTE Y FLETE (PUERTO DE DESTINO CONVENIDO). | H57: I04 | I57: Equipo de computo y accesorios. | J57: 601, 603, 606, 612, 620, 621, 622, 623, 624, 625, 626
B58: CIF | C58: COSTE, SEGURO Y FLETE (PUERTO DE DESTINO CONVENIDO). | H58: I05 | I58: Dados, troqueles, moldes, matrices y herramental. | J58: 601, 603, 606, 612, 620, 621, 622, 623, 624, 625, 626
B59: CPT | C59: TRANSPORTE PAGADO HASTA (EL LUGAR DE DESTINO CONVENIDO). | H59: I06 | I59: Comunicaciones telefónicas. | J59: 601, 603, 606, 612, 620, 621, 622, 623, 624, 625, 626
B60: CIP | C60: TRANSPORTE Y SEGURO PAGADOS HASTA (LUGAR DE DESTINO CONVENIDO). | H60: I07 | I60: Comunicaciones satelitales. | J60: 601, 603, 606, 612, 620, 621, 622, 623, 624, 625, 626
B61: DAP | C61: ENTREGADA EN LUGAR. | H61: I08 | I61: Otra maquinaria y equipo. | J61: 601, 603, 606, 612, 620, 621, 622, 623, 624, 625, 626
B62: DDP | C62: ENTREGADA DERECHOS PAGADOS (LUGAR DE DESTINO CONVENIDO). | H62: D01 | I62: Honorarios médicos, dentales y gastos hospitalarios. | J62: 605, 606, 608, 611, 612, 614, 607, 615, 625
B63: DPU | C63: ENTREGADA Y DESCARGADA EN LUGAR ACORDADO. | H63: D02 | I63: Gastos médicos por incapacidad o discapacidad. | J63: 605, 606, 608, 611, 612, 614, 607, 615, 625
B64: EXW | C64: EN FABRICA (LUGAR CONVENIDO). | H64: D03 | I64: Gastos funerales. | J64: 605, 606, 608, 611, 612, 614, 607, 615, 625
B65: FCA | C65: FRANCO TRANSPORTISTA (LUGAR DESIGNADO). | H65: D04 | I65: Donativos. | J65: 605, 606, 608, 611, 612, 614, 607, 615, 625
B66: FAS | C66: FRANCO AL COSTADO DEL BUQUE (PUERTO DE CARGA CONVENIDO). | H66: D05 | I66: Intereses reales efectivamente pagados por créditos hipotecarios (casa habitación). | J66: 605, 606, 608, 611, 612, 614, 607, 615, 625
B67: FOB | C67: FRANCO A BORDO (PUERTO DE CARGA CONVENIDO). | H67: D06 | I67: Aportaciones voluntarias al SAR. | J67: 605, 606, 608, 611, 612, 614, 607, 615, 625
H68: D07 | I68: Primas por seguros de gastos médicos. | J68: 605, 606, 608, 611, 612, 614, 607, 615, 625
B69: c_FraccionArancelaria | C69: Descripción | D69: Fecha de inicio de vigencia | E69: Fecha de fin de vigencia | F69: UMT | H69: D08 | I69: Gastos de transportación escolar obligatoria. | J69: 605, 606, 608, 611, 612, 614, 607, 615, 625
B70: 0101210100 | C70: Reproductores de raza pura | D70: 2024-01-18 | F70: 07 | H70: D09 | I70: Depósitos en cuentas para el ahorro, primas que tengan como base planes de pensiones. | J70: 605, 606, 608, 611, 612, 614, 607, 615, 625
B71: 0101290200 | C71: Sin pedigree, para reproducción | D71: 2024-01-18 | F71: 06 | H71: D10 | I71: Pagos por servicios educativos (colegiaturas). | J71: 605, 606, 608, 611, 612, 614, 607, 615, 625
B72: 0101290300 | C72: Para abasto, cuando la importación la realicen empacadoras Tipo Inspección Federal | D72: 2024-01-18 | F72: 06 | H72: S01 | I72: Sin efectos fiscales. | J72: 601, 603, 605, 606, 608, 610, 611, 612, 614, 616, 620, 621, 622, 623, 624, 607, 615, 625, 626
B73: 0101299901 | C73: Para saltos o carreras | D73: 2024-01-18 | F73: 06 | H73: CP01 | I73: Pagos | J73: 601, 603, 605, 606, 608, 610, 611, 612, 614, 616, 620, 621, 622, 623, 624, 607, 615, 625, 626
B74: 0101299999 | C74: Los demás | D74: 2024-01-18 | F74: 06 | H74: CN01 | I74: Nómina | J74: 605
B75: 0101300100 | C75: Asnos | D75: 2024-01-18 | F75: 07
B76: 0101909900 | C76: Los demás | D76: 2024-01-18 | F76: 07 | H76: c_TipoRelacion | I76: Descripción
B77: 0102210100 | C77: Reproductores de raza pura | D77: 2024-01-18 | F77: 07 | H77: 01 | I77: Nota de crédito de los documentos relacionados
B78: 0102290100 | C78: Vacas lecheras | D78: 2024-01-18 | F78: 06 | H78: 02 | I78: Nota de débito de los documentos relacionados
B79: 0102290200 | C79: Con pedigree o certificado de alto registro, excepto lo comprendido en la fracción arancelaria 0102.29.01 | D79: 2024-01-18 | F79: 06 | H79: 03 | I79: Devolución de mercancía sobre facturas o traslados previos
B80: 0102299900 | C80: Los demás | D80: 2024-01-18 | F80: 06 | H80: 04 | I80: Sustitución de los CFDI previos
B81: 0102310100 | C81: Reproductores de raza pura | D81: 2024-01-18 | F81: 07 | H81: 05 | I81: Traslados de mercancías facturados previamente
B82: 0102399900 | C82: Los demás | D82: 2024-01-18 | F82: 07 | H82: 06 | I82: Factura generada por los traslados previos
B83: 0102909900 | C83: Los demás | D83: 2024-01-18 | F83: 07 | H83: 07 | I83: CFDI por aplicación de anticipo
B84: 0103100100 | C84: Reproductores de raza pura | D84: 2024-01-18 | F84: 07
B85: 0103910100 | C85: Con pedigree o certificado de alto registro | D85: 2024-01-18 | F85: 07 | H85: c_ClaveTipoCombustible | I85: Tipo de combustible
B86: 0103919900 | C86: Los demás | D86: 2024-01-18 | F86: 07 | H86: 1 | I86: Gasolina menor a 92 octanos
B87: 0103920100 | C87: Con pedigree o certificado de alto registro | D87: 2024-01-18 | F87: 07 | H87: 2 | I87: Gasolina mayor o igual a 92 octanos
B88: 0103929900 | C88: Los demás | D88: 2024-01-18 | F88: 07 | H88: 3 | I88: Diesel
B89: 0104100100 | C89: Con pedigree o certificado de alto registro | D89: 2024-01-18 | F89: 06 | H89: 4 | I89: Diesel Marino
B90: 0104109901 | C90: Para abasto | D90: 2024-01-18 | F90: 06 | H90: 5 | I90: Otros
B91: 0104109999 | C91: Los demás | D91: 2024-01-18 | F91: 06
B92: 0104200100 | C92: Con pedigree o certificado de alto registro | D92: 2024-01-18 | F92: 07
B93: 0104200200 | C93: Borrego cimarrón | D93: 2024-01-18 | F93: 07
B94: 0104209900 | C94: Los demás | D94: 2024-01-18 | F94: 07
B95: 0105110301 | C95: Aves reproductoras de la línea de postura | D95: 2024-01-18 | F95: 06
B96: 0105110302 | C96: Aves reproductoras de la línea de engorda | D96: 2024-01-18 | F96: 06
B97: 0105110303 | C97: Aves progenitoras de la línea de engorda | D97: 2024-01-18 | F97: 06
B98: 0105110391 | C98: Las demás de postura | D98: 2024-01-18 | F98: 06
B99: 0105110392 | C99: Las demás de engorda | D99: 2024-01-18 | F99: 06
B100: 0105119900 | C100: Los demás | D100: 2024-01-18 | F100: 06
B101: 0105120100 | C101: Pavos (gallipavos) | D101: 2024-01-18 | F101: 06
B102: 0105130100 | C102: Patos | D102: 2024-01-18 | F102: 07
B103: 0105140100 | C103: Gansos | D103: 2024-01-18 | F103: 07
B104: 0105150100 | C104: Pintadas | D104: 2024-01-18 | F104: 07
B105: 0105940100 | C105: Gallos de pelea | D105: 2024-01-18 | F105: 07
B106: 0105949900 | C106: Los demás | D106: 2024-01-18 | F106: 07
B107: 0105999900 | C107: Los demás | D107: 2024-01-18 | F107: 07
B108: 0106110100 | C108: Monos (simios) de las variedades Macacus rhesus o Macacus cercophitecus | D108: 2024-01-18 | F108: 07
B109: 0106119900 | C109: Los demás | D109: 2024-01-18 | F109: 07
B110: 0106120100 | C110: Ballenas, delfines y marsopas (mamíferos del orden Cetacea); manatíes y dugones o dugongos (mamíferos del orden Sirenia); otarios y focas, leones marinos y morsas (mamíferos del suborden Pinnipedia) | D110: 2024-01-18 | F110: 07
B111: 0106130100 | C111: Camellos y demás camélidos (Camelidae) | D111: 2024-01-18 | F111: 07
B112: 0106140100 | C112: Conejos y liebres | D112: 2024-01-18 | F112: 07
B113: 0106190200 | C113: Venado rojo (Cervus elaphus); gamo (Dama dama) | D113: 2024-01-18 | F113: 07
B114: 0106199901 | C114: Perros | D114: 2024-01-18 | F114: 07
B115: 0106199999 | C115: Los demás | D115: 2024-01-18 | F115: 07
B116: 0106200400 | C116: Reptiles (incluidas las serpientes y tortugas de mar) | D116: 2024-01-18 | F116: 07
B117: 0106310100 | C117: Aves de rapiña | D117: 2024-01-18 | F117: 06
B118: 0106320100 | C118: Psitaciformes (incluidos los loros, guacamayos, cacatúas y demás papagayos) | D118: 2024-01-18 | F118: 07
B119: 0106330100 | C119: Avestruces; emúes (Dromaius novaehollandiae) | D119: 2024-01-18 | F119: 07
B120: 0106399900 | C120: Las demás | D120: 2024-01-18 | F120: 07
B121: 0106410100 | C121: Abejas | D121: 2024-01-18 | F121: 01
B122: 0106499900 | C122: Los demás | D122: 2024-01-18 | F122: 01
B123: 0106900200 | C123: Lombriz Rebellus (Lumbricus rubellus) | D123: 2024-01-18 | F123: 01
B124: 0106900300 | C124: Lombriz acuática | D124: 2024-01-18 | F124: 01
B125: 0106900400 | C125: Ácaros Phytoseiulus persimilis | D125: 2024-01-18 | F125: 01
B126: 0106909900 | C126: Los demás | D126: 2024-01-18 | F126: 06
B127: 0201100100 | C127: En canales o medias canales | D127: 2024-01-18 | F127: 01
B128: 0201209100 | C128: Los demás cortes (trozos) sin deshuesar | D128: 2024-01-18 | F128: 01
B129: 0201300100 | C129: Deshuesada | D129: 2024-01-18 | F129: 01
B130: 0202100100 | C130: En canales o medias canales | D130: 2024-01-18 | F130: 01
B131: 0202209100 | C131: Los demás cortes (trozos) sin deshuesar | D131: 2024-01-18 | F131: 01
B132: 0202300100 | C132: Deshuesada | D132: 2024-01-18 | F132: 01
B133: 0203110100 | C133: En canales o medias canales | D133: 2024-01-18 | F133: 01
B134: 0203120101 | C134: Paletas y sus trozos | D134: 2024-01-18 | F134: 01
B135: 0203120102 | C135: Piernas y sus trozos | D135: 2024-01-18 | F135: 01
B136: 0203199900 | C136: Las demás | D136: 2024-01-18 | F136: 01
B137: 0203210100 | C137: En canales o medias canales | D137: 2024-01-18 | F137: 01
B138: 0203220101 | C138: Paletas y sus trozos | D138: 2024-01-18 | F138: 01
B139: 0203220102 | C139: Piernas y sus trozos | D139: 2024-01-18 | F139: 01
B140: 0203299900 | C140: Las demás | D140: 2024-01-18 | F140: 01
B141: 0204100100 | C141: Canales o medias canales de cordero, frescas o refrigeradas | D141: 2024-01-18 | F141: 01
B142: 0204210100 | C142: En canales o medias canales | D142: 2024-01-18 | F142: 01
B143: 0204229100 | C143: Los demás cortes (trozos) sin deshuesar | D143: 2024-01-18 | F143: 01
B144: 0204230100 | C144: Deshuesadas | D144: 2024-01-18 | F144: 01
B145: 0204300100 | C145: Canales o medias canales de cordero, congeladas | D145: 2024-01-18 | F145: 01
B146: 0204410100 | C146: En canales o medias canales | D146: 2024-01-18 | F146: 01
B147: 0204429100 | C147: Los demás cortes (trozos) sin deshuesar | D147: 2024-01-18 | F147: 01
B148: 0204430100 | C148: Deshuesadas | D148: 2024-01-18 | F148: 01
B149: 0204500100 | C149: Carne de animales de la especie caprina | D149: 2024-01-18 | F149: 01
B150: 0205000100 | C150: Carne de animales de las especies caballar, asnal o mular, fresca, refrigerada o congelada | D150: 2024-01-18 | F150: 01
B151: 0206100100 | C151: De la especie bovina, frescos o refrigerados | D151: 2024-01-18 | F151: 01
B152: 0206210100 | C152: Lenguas | D152: 2024-01-18 | F152: 01
B153: 0206220100 | C153: Hígados | D153: 2024-01-18 | F153: 01
B154: 0206299900 | C154: Los demás | D154: 2024-01-18 | F154: 01
B155: 0206300100 | C155: Pieles de cerdo enteras o en recortes, refrigerados, excepto el cuero precocido en trozos ("pellets") | D155: 2024-01-18 | F155: 01
B156: 0206309900 | C156: Los demás | D156: 2024-01-18 | F156: 01
B157: 0206410100 | C157: Hígados | D157: 2024-01-18 | F157: 01
B158: 0206490100 | C158: Pieles de cerdo enteras o en recortes, excepto el cuero precocido en trozos ("pellets") | D158: 2024-01-18 | F158: 01
B159: 0206499900 | C159: Los demás | D159: 2024-01-18 | F159: 01
B160: 0206809100 | C160: Los demás, frescos o refrigerados | D160: 2024-01-18 | F160: 01
B161: 0206909100 | C161: Los demás, congelados | D161: 2024-01-18 | F161: 01
B162: 0207110100 | C162: Sin trocear, frescos o refrigerados | D162: 2024-01-18 | F162: 01
B163: 0207120100 | C163: Sin trocear, congelados | D163: 2024-01-18 | F163: 01
B164: 0207130401 | C164: Mecánicamente deshuesados (pastas) | D164: 2024-01-18 | F164: 01
B165: 0207130402 | C165: Carcasas | D165: 2024-01-18 | F165: 01
B166: 0207130403 | C166: Piernas, muslos o piernas unidas al muslo | D166: 2024-01-18 | F166: 01
B167: 0207130404 | C167: Alas y sus partes | D167: 2024-01-18 | F167: 01
B168: 0207130405 | C168: Pechuga, sus trozos y recortes, con hueso | D168: 2024-01-18 | F168: 01
B169: 0207130406 | C169: Filetes de pechuga y pechuga, sus trozos y recortes, sin hueso (deshuesada) | D169: 2024-01-18 | F169: 01
B170: 0207130499 | C170: Los demás | D170: 2024-01-18 | F170: 01
B171: 0207140200 | C171: Hígados | D171: 2024-01-18 | F171: 01
B172: 0207149901 | C172: Mecánicamente deshuesados (pastas) | D172: 2024-01-18 | F172: 01
B173: 0207149902 | C173: Piernas, muslos o piernas unidas al muslo | D173: 2024-01-18 | F173: 01
B174: 0207149903 | C174: Alas y sus partes | D174: 2024-01-18 | F174: 01
B175: 0207149904 | C175: Pechuga, sus trozos y recortes, con hueso | D175: 2024-01-18 | F175: 01
B176: 0207149905 | C176: Filetes de pechuga y pechuga, sus trozos y recortes, sin hueso (deshuesada) | D176: 2024-01-18 | F176: 01
B177: 0207149999 | C177: Los demás | D177: 2024-01-18 | F177: 01
B178: 0207240100 | C178: Sin trocear, frescos o refrigerados | D178: 2024-01-18 | F178: 01
B179: 0207250100 | C179: Sin trocear, congelados | D179: 2024-01-18 | F179: 01
B180: 0207260301 | C180: Mecánicamente deshuesados (pastas) | D180: 2024-01-18 | F180: 01
B181: 0207260399 | C181: Los demás | D181: 2024-01-18 | F181: 01
B182: 0207270200 | C182: Hígados | D182: 2024-01-18 | F182: 01
B183: 0207279901 | C183: Mecánicamente deshuesados (pastas) | D183: 2024-01-18 | F183: 01
B184: 0207279999 | C184: Los demás | D184: 2024-01-18 | F184: 01
B185: 0207410100 | C185: Sin trocear, frescos o refrigerados | D185: 2024-01-18 | F185: 01
B186: 0207420100 | C186: Sin trocear, congelados | D186: 2024-01-18 | F186: 01
B187: 0207430100 | C187: Hígados grasos, frescos o refrigerados | D187: 2024-01-18 | F187: 01
B188: 0207449100 | C188: Los demás, frescos o refrigerados | D188: 2024-01-18 | F188: 01
B189: 0207450100 | C189: Hígados | D189: 2024-01-18 | F189: 01
B190: 0207459900 | C190: Los demás | D190: 2024-01-18 | F190: 01
B191: 0207510100 | C191: Sin trocear, frescos o refrigerados | D191: 2024-01-18 | F191: 01
B192: 0207520100 | C192: Sin trocear, congelados | D192: 2024-01-18 | F192: 01
B193: 0207530100 | C193: Hígados grasos, frescos o refrigerados | D193: 2024-01-18 | F193: 01
B194: 0207549100 | C194: Los demás, frescos o refrigerados | D194: 2024-01-18 | F194: 01
B195: 0207550100 | C195: Hígados | D195: 2024-01-18 | F195: 01
B196: 0207559900 | C196: Los demás | D196: 2024-01-18 | F196: 01
B197: 0207600300 | C197: De pintada | D197: 2024-01-18 | F197: 01
B198: 0208100100 | C198: De conejo o liebre | D198: 2024-01-18 | F198: 01
B199: 0208300100 | C199: De primates | D199: 2024-01-18 | F199: 01
B200: 0208400100 | C200: De ballenas, delfines y marsopas (mamíferos del orden Cetacea); de manatíes y dugones o dugongos (mamíferos del orden Sirenia); de otarios y focas, leones marinos y morsas (mamíferos del suborden Pinnipedia) | D200: 2024-01-18 | F200: 01
B201: 0208500100 | C201: De reptiles (incluidas las serpientes y tortugas de mar) | D201: 2024-01-18 | F201: 01
B202: 0208600100 | C202: De camellos y demás camélidos (Camelidae) | D202: 2024-01-18 | F202: 01
... 11386 more rows
